Workbook

Sheet TOC
B1: F2016 Cost of Service - Forecast Cost
B4: Table of Contents
B5: Schedule | C5: Description | D5: Page
B6: 1 | C6: Functionalization Details | D6: 2
B7: 2 | C7: Classification of Generation Function | D7: =D6+1 -> 3
B8: 2.1 | C8: Classification of Transmission Function | D8: =D7+1 -> 4
B9: 2.2 | C9: Classification of Distribution Function | D9: 5
B10: 2.3 | C10: Classification of Customer Care | D10: 6
B11: 3 | C11: Allocation of Generation to Rate Classes | D11: 7
B12: 3.1 | C12: Allocation of Transmission to Rate Classes | D12: 8
B13: 3.2 | C13: Allocation of Distribution to Rate Classes | D13: 9
B14: 3.3 | C14: ='3.3'!B1 -> Allocation of Customer Care Costs | D14: 10
B15: 4 | C15: Summary of Costs by Function & R/C Ratios | D15: 11
B16: 4.1 | C16: Summary of Costs by Classification | D16: 12
B17: 5 | C17: Energy Allocators | D17: 13
B18: 5.1 | C18: Demand Allocators | D18: 14
B19: 5.2 | C19: ='5.2'!B1 -> Distribution Customer Allocators | D19: 15
B20: 5.3 | C20: Customer Care Allocators | D20: 16
B21: 5.4 | C21: Transformer Allocators | D21: 17
B22: 6 | C22: Distribution Classification by Sub-Functionalization | D22: 18
B23: 6.1 | C23: Rate Base | D23: 19
B24: RRA 1.0 | C24: ='RRA 1.0'!A1 -> Revenue Requirements Summary | D24: 20
B25: RRA 2.1 | C25: ='RRA 2.1'!$A$1 -> Deferral Accounts | D25: 21
B26: RRA 2.2 | C26: ='RRA 2.2'!$A$1 -> Other Regulatory Accounts | D26: 22
B27: RRA 3.0 | C27: ='RRA 3.0'!$A$1 -> Reconciliation of Current and Gross Views | D27: =D26+4 -> 26
B28: RRA 3.4 | C28: ='RRA 3.4'!$A$1 -> Total Current Costs - Transmission | D28: =D27+2 -> 28
B29: RRA 4.0 | C29: ='RRA 4.0'!$A$1 -> Cost of Energy | D29: =D28+2 -> 30
B30: RRA 5.0 | C30: ='RRA 5.0'!$A$1 -> Operating Costs and Provisions - Total Company | D30: =D29+2 -> 32
B31: RRA 5.1 | C31: ='RRA 5.1'!$A$1 -> Operating Costs - Corporate Groups | D31: =D30+3 -> 35
B32: RRA 5.2 | C32: ='RRA 5.2'!$A$1 -> Operating Costs - Generation | D32: 36
B33: RRA 5.4 | C33: ='RRA 5.4'!$A$1 -> Operating Costs - Transmission & Distribution | D33: 37
B34: RRA 6.0 | C34: ='RRA 6.0'!$A$1 -> Taxes | D34: 38
B35: RRA 7.0 | C35: ='RRA 7.0'!$A$1 -> Depreciation and Amortization | D35: 39
B36: RRA 8.0 | C36: ='RRA 8.0'!$A$1 -> Finance Charges | D36: =D35+2 -> 41
B37: RRA 9.0 | C37: ='RRA 9.0'!$A$1 -> Return on Equity | D37: =D36+2 -> 43
B38: RRA 10.0 | C38: ='RRA 10.0'!$A$1 -> Rate Base | D38: =D37+2 -> 45
B39: RRA 12.1 | C39: ='RRA 12.1'!$A$1 -> Assets - Corporate Groups | D39: =D38+1 -> 46
B40: RRA 12.2 | C40: ='RRA 12.2'!$A$1 -> Assets - Generation | D40: 47
B41: RRA 12.4 | C41: ='RRA 12.4'!$A$1 -> Assets - Transmission | D41: =D40+1 -> 48
B42: RRA 12.5 | C42: ='RRA 12.5'!$A$1 -> Assets - Distribution | D42: 49
B43: RRA 15.0 | C43: ='RRA 15.0'!$A$1 -> Miscellaneous Revenue | D43: =D42+1 -> 50
B45: Note: | C45: All costs are in $ X 1 million unless otherwise noted.

Sheet 1.0
A1: F2016 Cost of Service - Planned Cost
E3: F2016 Forecast Revenue Requirement | F3: Generation | G3: Transmission | H3: Distribution | I3: Customer Care
A4: Revenue Requirement Schedule (F2016 Plan)
C5: Cost of Energy
A6: Sched 4, L 11 | D6: IPPs and Long-term Purchases commitment | E6: ='RRA 4.0'!$G$23+IF('4.0'!E16="SQ",0,'RRA 4.0'!$G$131) -> 975.5 | F6: =E6 -> 975.5 | G6: 0 | H6: 0 | I6: 0
A7: Sched 4, L 15 | D7: Domestic Transmission (Non-Heritage) | E7: =+'RRA 4.0'!$G$27 -> 0 | F7: 0 | G7: =E7 -> 0 | H7: 0 | I7: 0
A8: Sched 4, L 13 | D8: NIA Generation | E8: =+'RRA 4.0'!$G$25 -> 34.3 | F8: =E8 -> 34.3 | G8: 0 | H8: 0 | I8: 0
A9: Sched 4, L 14 | D9: Gas Transportation | E9: =+'RRA 4.0'!$G$26 -> 12.1 | F9: =E9 -> 12.1 | G9: 0 | H9: 0 | I9: 0
A10: Sched 4, L 1 + L10 | D10: Water Rentals | E10: =+'RRA 4.0'!$G$10+'RRA 4.0'!$G$22 -> 391.9 | F10: =E10 -> 391.9 | G10: 0 | H10: 0 | I10: 0
A11: Sched 4, L 2 + L3 | D11: Market Purchases | E11: =+'RRA 4.0'!$G$12+'RRA 4.0'!$G$21+'RRA 4.0'!$G$11 -> 56.6 | F11: =E11 -> 56.6 | G11: 0 | H11: 0 | I11: 0
A12: Sched 4, L 4 | D12: Natural gas for thermal generation | E12: =+'RRA 4.0'!$G$13 -> 26.9 | F12: =E12 -> 26.9 | G12: 0 | H12: 0 | I12: 0
A13: Sched 4, L 5 | D13: Domestic Transmission (Heritage) | E13: =+'RRA 4.0'!$G$14 -> 25.7 | F13: 0 | G13: =+E13 -> 25.7 | H13: 0 | I13: 0
A14: Sched 4, L 5.1 | D14: Non-treaty storage agreement | E14: =+'RRA 4.0'!$G$15 -> -19.8 | F14: =+E14 -> -19.8 | G14: 0 | H14: 0 | I14: 0
A15: Sched 4, L 6 + L7 | D15: Other and Surplus Sales | E15: =+'RRA 4.0'!$G$16+'RRA 4.0'!$G$17 -> -116.3 | F15: =E15 -> -116.3 | G15: 0 | H15: 0 | I15: 0
A16: Sched 4, L 16 | D16: Net purchases (sales) from Powerex | E16: =+'RRA 4.0'!$G$28 -> 4.8 | F16: =+E16 -> 4.8 | G16: 0 | H16: 0 | I16: 0
A17: Sched 4, L 55 | D17: Heritage Deferral Account Recoveries | E17: =-'RRA 3.0'!$G$18 -> 17.74124709 | F17: =E17 -> 17.74124709 | G17: 0 | H17: 0 | I17: 0
A18: Sched 4, L 56 | D18: Non-Heritage Deferral Account Recoveries | E18: =-'RRA 3.0'!$G$19 -> 104.8216344 | F18: =E18 -> 104.8216344 | G18: 0 | H18: 0 | I18: 0
C19: Total | E19: =SUM(E6:E18) -> 1514.262881 | F19: =SUM(F6:F18) -> 1488.562881 | G19: =SUM(G6:G18) -> 25.7 | H19: =SUM(H6:H18) -> 0 | I19: =SUM(I6:I18) -> 0
F20: 1488.562881 | G20: 25.7 | H20: 0 | I20: 0
C21: O M & A Expenses
D22: Generation Business Unit | E22: ='RRA 5.2'!$G$20-E23-E24 -> 176.7260634 | F22: =E22 -> 176.7260634 | G22: 0 | H22: 0 | I22: 0
D23: Energy Planning & Econ Development | E23: ='RRA 5.2'!$G$16 -> 9.4286305 | F23: =IF('4.0'!$E$17="SQ",0,1)*$E$23 -> 0 | G23: 0 | H23: 0 | I23: =IF('4.0'!$E$17="SQ",1,0)*$E$23 -> 9.4286305
D24: IT | E24: ='RRA 5.2'!$G$19 -> 112.2979017 | F24: =$E24*IF('4.0'!$E$15="SQ",1,SUM(F22:F23,F25:F30,F37,F44,F47)/SUM($E$22:$E$23,$E$25:$E$30,$E37,$E44,$E47)) -> 112.2979017 | G24: =$E24*IF('4.0'!$E$15="SQ",0,SUM(G22:G23,G25:G30,G37,G44,G47)/SUM($E$22:$E$23,$E$25:$E$30,$E37,$E44,$E47)) -> 0 | H24: =$E24*IF('4.0'!$E$15="SQ",0,SUM(H22:H23,H25:H30,H37,H44,H47)/SUM($E$22:$E$23,$E$25:$E$30,$E37,$E44,$E47)) -> 0 | I24: =$E24*IF('4.0'!$E$15="SQ",0,SUM(I22:I23,I25:I30,I37,I44,I47)/SUM($E$22:$E$23,$E$25:$E$30,$E37,$E44,$E47)) -> 0
D25: Provisions | E25: ='RRA 5.0'!$G$100 -> 3.618191 | F25: 3.618191 | G25: 0 | H25: 0 | I25: 0
D26: PCB Remediation | E26: ='RRA 5.0'!$G$122 -> 0.3196961421 | F26: 0.3196961421 | G26: 0 | H26: 0 | I26: 0
D27: Asbestos Remediation | E27: ='RRA 5.0'!$G$127 -> 2.012008535 | F27: 2.012008535 | G27: 0 | H27: 0 | I27: 0
D28: Arrow Water Divestiture | E28: ='RRA 5.0'!$G$132 -> 4.514142287 | F28: 4.514142287 | G28: 0 | H28: 0 | I28: 0
D29: Arrow Water Provision | E29: ='RRA 5.0'!$G$133 -> 0.3 | F29: 0.3 | G29: 0 | H29: 0 | I29: 0
D30: Capital Project Investigation | E30: ='RRA 5.0'!$G$44 -> 4.83104108 | F30: 4.83104108 | G30: 0 | H30: 0 | I30: 0
A31: Sched 3.2, L 2 | D31: Generation | E31: =SUM(E22:E30) -> 314.0476747 | F31: =SUM(F22:F30) -> 304.6190442 | G31: =SUM(G22:G30) -> 0 | H31: =SUM(H22:H30) -> 0 | I31: =SUM(I22:I30) -> 9.4286305
D32: T&D Business Unit | E32: ='RRA 5.4'!$G$36 -> 179.1331 | F32: 0 | G32: =E32 -> 179.1331 | H32: 0 | I32: 0
D33: Provisions | E33: ='RRA 5.0'!$G$101 -> 8.3 | F33: 0 | G33: =E33 -> 8.3 | H33: 0 | I33: 0
D34: PCB Remediation | E34: ='RRA 5.0'!$G$123 -> 7.142331554 | F34: 0 | G34: =E34 -> 7.142331554 | H34: 0 | I34: 0
D35: Asbestos Remediation | E35: ='RRA 5.0'!$G$128 -> 0.162358765 | F35: 0 | G35: =E35 -> 0.162358765 | H35: 0 | I35: 0
D36: First Nations | E36: ='RRA 5.0'!$G$39 -> 43.21863497 | F36: =IF('4.0'!$E$20="SQ",0,-'RRA 3.4'!$G$30) -> 0 | G36: =IF('4.0'!$E$20="SQ",$E36,$E36-F36) -> 43.21863497 | H36: 0 | I36: 0
A37: Sched 3.4, L 2 | D37: Transmission | E37: =SUM(E32:E36) -> 237.9564253 | F37: =SUM(F32:F36) -> 0 | G37: =SUM(G32:G36) -> 237.9564253 | H37: =SUM(H32:H36) -> 0 | I37: =SUM(I32:I36) -> 0
D38: T&D Business Unit | E38: ='RRA 5.4'!$G$37 -> 156.2410042 | F38: 0 | G38: 0 | H38: =E38 -> 156.2410042 | I38: 0
D39: Provisions | E39: ='RRA 5.0'!$G$102 -> 22.7 | F39: 0 | G39: 0 | H39: 22.7 | I39: 0
D40: PCB Remediation | E40: ='RRA 5.0'!$G$124 -> 5.613747103 | F40: 0 | G40: 0 | H40: 5.613747103 | I40: 0
D41: Asbestos Remediation | E41: ='RRA 5.0'!$G$129 -> 8.582979696 | F41: 0 | G41: 0 | H41: 8.582979696 | I41: 0
D42: Storm Restoration | E42: ='RRA 5.0'!$G$41 -> -1.372259664 | F42: 0 | G42: 0 | H42: -1.372259664 | I42: 0
D43: SMI | E43: ='RRA 5.0'!$G$46 -> 31.32624282 | F43: =$E43*IF('4.0'!$E$25="Option 4",0.05,0) -> 0 | G43: 0 | H43: =$E43*IF('4.0'!$E$25="Option 4",0.95,1) -> 31.32624282 | I43: 0
A44: Sched 3.5, L 2 | D44: Distribution | E44: =SUM(E38:E43) -> 223.0917141 | F44: =SUM(F38:F43) -> 0 | G44: =SUM(G38:G43) -> 0 | H44: =SUM(H38:H43) -> 223.0917141 | I44: =SUM(I38:I43) -> 0
D45: Cust Care Costs | E45: ='RRA 5.1'!$G$11 -> 73.16400601 | F45: 0 | G45: 0 | H45: 0 | I45: =E45 -> 73.16400601
D46: IPP Capital Leases | E46: =IF('4.0'!E16="SQ",'RRA 5.1'!$G$20,0) -> 33.77013204 | F46: 0 | G46: 0 | H46: 0 | I46: =E46 -> 33.77013204
A47: Sched 5.1 | D47: Customer Care | E47: =SUM(E45:E46) -> 106.9341381 | F47: =SUM(F45:F46) -> 0 | G47: =SUM(G45:G46) -> 0 | H47: =SUM(H45:H46) -> 0 | I47: =SUM(I45:I46) -> 106.9341381
D48: Corporate Business Unit | E48: ='RRA 5.1'!$G$23-'RRA 5.1'!$G$20-'RRA 5.1'!$G$11 -> 86.17745687 | F48: =$E48*SUM(F$31,F37,F44,F47)/SUM($E$31,$E$37,$E$44,$E$47) -> 29.76236178 | G48: =$E48*SUM(G$31,G37,G44,G47)/SUM($E$31,$E$37,$E$44,$E$47) -> 23.24918732 | H48: =$E48*SUM(H$31,H37,H44,H47)/SUM($E$31,$E$37,$E$44,$E$47) -> 21.79685228 | I48: =$E48*SUM(I$31,I37,I44,I47)/SUM($E$31,$E$37,$E$44,$E$47) -> 11.36905549
D49: Real Property Sales | E49: ='RRA 5.0'!$G$107 -> -10 | F49: =$E49*F$48/$E$48 -> -3.453613377 | G49: -2.697827038 | H49: -2.529298621 | I49: -1.319260965
D50: Provisions | E50: ='RRA 5.0'!$G$104 -> 5.107358 | F50: 1.763883991 | G50: 1.37787685 | H50: 1.291803355 | I50: 0.6737938042
D51: PCB Remediation | E51: ='RRA 5.0'!$G$125 -> 0.2155272829 | F51: =$E51*IF('4.0'!$E$20="SQ",F$48/$E$48,F$26/SUM($E$26,$E$34,$E$40)) -> 0.07443479072 | G51: =$E51*IF('4.0'!$E$20="SQ",G$48/$E$48,G$34/SUM($E$26,$E$34,$E$40)) -> 0.0581455331 | H51: =$E51*IF('4.0'!$E$20="SQ",H$48/$E$48,H$40/SUM($E$26,$E$34,$E$40)) -> 0.05451328593 | I51: =$E51*IF('4.0'!$E$20="SQ",I$48/$E$48,I$40/SUM($E$26,$E$34,$E$40)) -> 0.02843367311
D52: Rock Bay Remediation | E52: ='RRA 5.0'!$G$131 -> 50.48603421 | F52: =$E52*F$48/$E$48 -> 17.43592431 | G52: =$E52*G$48/$E$48 -> 13.62025881 | H52: =$E52*H$48/$E$48 -> 12.76942567 | I52: =$E52*I$48/$E$48 -> 6.660425419
D53: Rate Smoothing | E53: ='RRA 5.0'!$G$135 -> -121.2 | F53: =$E53*IF('4.0'!$E$20="SQ",F$48/$E$48,SUM(F19,F31,F37,F44,F47,F81,F89,F112,F119,F124,F132)/SUM($E19,$E31,$E$37,$E$44,$E47,$E81,$E89,$E112,$E119,$E124,$E132)) -> -41.85779413 | G53: =$E53*IF('4.0'!$E$20="SQ",G$48/$E$48,SUM(G19,G31,G37,G44,G47,G81,G89,G112,G119,G124,G132)/SUM($E19,$E31,$E$37,$E$44,$E47,$E81,$E89,$E112,$E119,$E124,$E132)) -> -32.6976637 | H53: =$E53*IF('4.0'!$E$20="SQ",H$48/$E$48,SUM(H19,H31,H37,H44,H47,H81,H89,H112,H119,H124,H132)/SUM($E19,$E31,$E$37,$E$44,$E47,$E81,$E89,$E112,$E119,$E124,$E132)) -> -30.65509928 | I53: =$E53*IF('4.0'!$E$20="SQ",I$48/$E$48,SUM(I19,I31,I37,I44,I47,I81,I89,I112,I119,I124,I132)/SUM($E19,$E31,$E$37,$E$44,$E47,$E81,$E89,$E112,$E119,$E124,$E132)) -> -15.98944289
D54: Home Purchase Option Plan | E54: ='RRA 5.0'!$G$47 -> 11.32880707 | F54: =$E54*F$48/$E$48 -> 3.912531964 | G54: 3.056316202 | H54: 2.86539361 | I54: 1.494565294
D55: IFRS PP&E | E55: ='RRA 5.0'!$G$49 -> 19.82892108 | F55: 6.848142709 | G55: 5.349499941 | H55: 5.015326274 | I55: 2.615952155
D56: IFRS Pension | E56: ='RRA 5.0'!$G$50 -> 38.23888889 | F56: 13.20623382 | G56: 10.31619083 | H56: 9.671756893 | I56: 5.044707344
D57: Non-Current PEB - Pension | E57: ='RRA 5.0'!$G$48 -> 15.52069231 | F57: =$E57*SUM(F$31,F37,F44,F47)/SUM($E$31,$E$37,$E$44,$E$47) -> 5.360247058 | G57: =$E57*SUM(G$31,G37,G44,G47)/SUM($E$31,$E$37,$E$44,$E$47) -> 4.187214335 | H57: =$E57*SUM(H$31,H37,H44,H47)/SUM($E$31,$E$37,$E$44,$E$47) -> 3.925646565 | I57: =$E57*SUM(I$31,I37,I44,I47)/SUM($E$31,$E$37,$E$44,$E$47) -> 2.047584351
A58: Sched 3.1, L 2 | D58: Corp Service | E58: =SUM(E48:E57) -> 95.7036857 | F58: =SUM(F48:F57) -> 33.05235292 | G58: =SUM(G48:G57) -> 25.81919909 | H58: =SUM(H48:H57) -> 24.20632002 | I58: =SUM(I48:I57) -> 12.62581367
C59: Total | E59: =SUM(E31,E37,E44,E47,E58) -> 977.7336379 | F59: =SUM(F31,F37,F44,F47,F58) -> 337.6713971 | G59: =SUM(G31,G37,G44,G47,G58) -> 263.7756244 | H59: =SUM(H31,H37,H44,H47,H58) -> 247.2980342 | I59: =SUM(I31,I37,I44,I47,I58) -> 128.9885822
F60: 337.6713971 | G60: 263.7756244 | H60: 247.2980342 | I60: 128.9885822
C61: Depreciation & Amortization
D62: Amort on March 2014 Assets | E62: ='RRA 12.2'!$G$17 -> 220.8283754 | F62: =E62 -> 220.8283754 | G62: 0 | H62: 0 | I62: 0
D63: Amortization on Additions | E63: ='RRA 12.2'!$G$18 -> 36.5916246 | F63: =E63 -> 36.5916246 | G63: 0 | H63: 0 | I63: 0
D64: DSM Amortization | E64: ='RRA 7.0'!$G$62*0.9 -> 74.9787806 | F64: =E64 -> 74.9787806 | G64: 0 | H64: 0 | I64: 0
A65: Sched 7, L 60 | D65: Generation | E65: =SUM(E62:E64) -> 332.3987806 | F65: =SUM(F62:F64) -> 332.3987806 | G65: =SUM(G62:G64) -> 0 | H65: =SUM(H62:H64) -> 0 | I65: =SUM(I62:I64) -> 0
D66: Amort on March 2014 Assets | E66: ='RRA 12.4'!$G$17 -> 132.4980716 | F66: 0 | G66: =E66 -> 132.4980716 | H66: 0 | I66: 0
D67: Amortization on Additions | E67: ='RRA 12.4'!$G$18 -> 46.3059284 | F67: 0 | G67: =E67 -> 46.3059284 | H67: 0 | I67: 0
D68: DSM Amortization | E68: ='RRA 7.0'!$G$62*IF('4.0'!E19="SQ",0.1,0.05) -> 8.330975622 | F68: 0 | G68: =E68 -> 8.330975622 | H68: 0 | I68: 0
A69: Sched 7, L 61 | D69: Transmission | E69: =SUM(E66:E68) -> 187.1349756 | F69: =SUM(F66:F68) -> 0 | G69: =SUM(G66:G68) -> 187.1349756 | H69: =SUM(H66:H68) -> 0 | I69: =SUM(I66:I68) -> 0
D70: Amort on March 2014 Assets | E70: ='RRA 12.5'!$G$17 -> 209.3217625 | F70: 0 | G70: 0 | H70: =E70 -> 209.3217625 | I70: 0
D71: Amortization on Additions | E71: ='RRA 12.5'!$G$18 -> 16.0082375 | F71: 0 | G71: 0 | H71: =E71 -> 16.0082375 | I71: 0
D72: Pre-1996 CIAC Amortization | E72: ='RRA 7.0'!$G$81 -> -4.69 | F72: 0 | G72: 0 | H72: =E72 -> -4.69 | I72: 0
D73: DSM Amortization | E73: ='RRA 7.0'!$G$62*IF('4.0'!E19="SQ",0,0.05) -> 0 | F73: 0 | G73: 0 | H73: =E73 -> 0 | I73: 0
A74: Sched 7, L 62 | D74: Distribution | E74: =SUM(E70:E73) -> 220.64 | F74: =SUM(F70:F73) -> 0 | G74: =SUM(G70:G73) -> 0 | H74: =SUM(H70:H73) -> 220.64 | I74: =SUM(I70:I73) -> 0
D75: IPP Capital Leases | E75: =IF('4.0'!E16="SQ",'RRA 7.0'!$G$99,0) -> 25.8 | F75: 0 | G75: 0 | H75: 0 | I75: =E75 -> 25.8
A76: Sched 7, L 63 | D76: Customer Care | E76: =SUM(E75) -> 25.8 | F76: =SUM(F75) -> 0 | G76: =SUM(G75) -> 0 | H76: 0 | I76: 25.8
D77: Amort on March 2014 Assets | E77: ='RRA 12.1'!$G$17 -> 31.686 | F77: =$E77*SUM(F$65)/(SUM($E$65,$E$69,$E$74,$E$76)-IF('4.0'!$E$18="SQ",$E$69,0)) -> 18.19571894 | G77: =$E77*IF('4.0'!$E$18="SQ",0,SUM(G$69)/(SUM($E$65,$E$69,$E$74,$E$76))) -> 0 | H77: =$E77*SUM(H$74)/(SUM($E$65,$E$69,$E$74,$E$76)-IF('4.0'!$E$18="SQ",$E$69,0)) -> 12.07797279 | I77: =$E77*SUM(I$76)/(SUM($E$65,$E$69,$E$74,$E$76)-IF('4.0'!$E$18="SQ",$E$69,0)) -> 1.412308275
D78: Amortization on Additions | E78: ='RRA 12.1'!$G$18 -> 7.791 | F78: =$E78*SUM(F$65)/(SUM($E$65,$E$69,$E$74,$E$76)-IF('4.0'!$E$18="SQ",$E$69,0)) -> 4.473989972 | G78: =$E78*IF('4.0'!$E$18="SQ",0,SUM(G$69)/(SUM($E$65,$E$69,$E$74,$E$76))) -> 0 | H78: =$E78*SUM(H$74)/(SUM($E$65,$E$69,$E$74,$E$76)-IF('4.0'!$E$18="SQ",$E$69,0)) -> 2.969749605 | I78: =$E78*SUM(I$76)/(SUM($E$65,$E$69,$E$74,$E$76)-IF('4.0'!$E$18="SQ",$E$69,0)) -> 0.3472604233
D79: Capital Additions | E79: ='RRA 7.0'!$G$88 -> -9.419063011 | F79: =$E79*SUM(F$65)/(SUM($E$65,$E$69,$E$74,$E$76)-IF('4.0'!$E$18="SQ",$E$69,0)) -> -5.408906874 | G79: =$E79*IF('4.0'!$E$18="SQ",0,SUM(G$69)/(SUM($E$65,$E$69,$E$74,$E$76))) -> 0 | H79: =$E79*SUM(H$74)/(SUM($E$65,$E$69,$E$74,$E$76)-IF('4.0'!$E$18="SQ",$E$69,0)) -> -3.590329695 | I79: =$E79*SUM(I$76)/(SUM($E$65,$E$69,$E$74,$E$76)-IF('4.0'!$E$18="SQ",$E$69,0)) -> -0.4198264419
A80: Sched 7, L 64 | D80: Corporate Services | E80: =SUM(E77:E79) -> 30.05793699 | F80: =SUM(F77:F79) -> 17.26080204 | G80: =SUM(G77:G79) -> 0 | H80: =SUM(H77:H79) -> 11.4573927 | I80: =SUM(I77:I79) -> 1.339742257
C81: Total | E81: =SUM(E65,E69,E74,E76,E80) -> 796.0316932 | F81: =SUM(F65,F69,F74,F76,F80) -> 349.6595826 | G81: =SUM(G65,G69,G74,G76,G80) -> 187.1349756 | H81: =SUM(H65,H69,H74,H76,H80) -> 232.0973927 | I81: =SUM(I65,I69,I74,I76,I80) -> 27.13974226
F82: 349.6595826 | G82: 187.1349756 | H82: 232.0973927 | I82: 27.13974226
C83: Taxes
A84: Sched 6, L 29 | D84: Generation | E84: =+'RRA 6.0'!$G53 -> 43.069 | F84: =E84 -> 43.069 | G84: 0 | H84: 0 | I84: 0
A85: Sched 6, L 30 | D85: Transmission | E85: =+'RRA 6.0'!$G54 -> 131.963 | F85: 0 | G85: =E85 -> 131.963 | H85: 0 | I85: 0
A86: Sched 6, L 31 | D86: Distribution | E86: =+'RRA 6.0'!$G55 -> 27.586 | F86: 0 | G86: 0 | H86: =E86 -> 27.586 | I86: 0
A87: Sched 6, L 32 | D87: Customer Care | E87: =IF('4.0'!E16="SQ",'RRA 6.0'!$G56,0) -> 5.754555554 | F87: 0 | G87: 0 | H87: 0 | I87: =E87 -> 5.754555554
A88: Sched 6, L 33 | D88: Corporate | E88: =+'RRA 6.0'!$G57 -> 15.758 | F88: =$E88*SUM(F84:F87)/(SUM($E84:$E87)-IF('4.0'!$E$18="SQ",$E85,0)) -> 8.8821522 | G88: =$E88*IF('4.0'!$E$18="SQ",0,SUM(G84:G87)/(SUM($E84:$E87))) -> 0 | H88: =$E88*SUM(H84:H87)/(SUM($E84:$E87)-IF('4.0'!$E$18="SQ",$E85,0)) -> 5.689081488 | I88: =$E88*SUM(I84:I87)/(SUM($E84:$E87)-IF('4.0'!$E$18="SQ",$E85,0)) -> 1.186766312
C89: Total | E89: =SUM(E84:E88) -> 224.1305556 | F89: =SUM(F84:F88) -> 51.9511522 | G89: =SUM(G84:G88) -> 131.963 | H89: =SUM(H84:H88) -> 33.27508149 | I89: =SUM(I84:I88) -> 6.941321865
F90: 51.9511522 | G90: 131.963 | H90: 33.27508149 | I90: 6.941321865
C91: Finance Charges
A92: Sched 8, L 78 | D92: Generation | E92: =('RRA 8.0'!$G$86-IF('4.0'!E16="SQ",0,'RRA 8.0'!$G$80))*'RRA 8.0'!$G$114 -> 344.373179 | F92: =E92 -> 344.373179 | G92: 0 | H92: 0 | I92: 0
A93: Sched 8, L 79 | D93: Transmission | E93: =('RRA 8.0'!$G$86-IF('4.0'!E16="SQ",0,'RRA 8.0'!$G$80))*'RRA 8.0'!$G$115 -> 261.240276 | F93: 0 | G93: =E93 -> 261.240276 | H93: 0 | I93: 0
A94: Sched 8, L 80 | D94: Distribution | E94: =('RRA 8.0'!$G$86-IF('4.0'!E16="SQ",0,'RRA 8.0'!$G$80))*'RRA 8.0'!$G$116 -> 209.0162197 | F94: 0 | G94: 0 | H94: =E94 -> 209.0162197 | I94: 0
A95: Sched 8, L 81 | D95: Customer Care | E95: =+'RRA 8.0'!$G125 -> -0.001295373444 | F95: 0 | G95: 0 | H95: 0 | I95: =+E95 -> -0.001295373444
A96: Sched 2.1, L 4 | D96: Heritage Deferral Account | E96: =-'RRA 2.1'!$G$11 -> -1.893107539 | F96: =E96 -> -1.893107539 | G96: 0 | H96: 0 | I96: 0
A97: Sched 2.1, L 11 | D97: Non-Heritage Deferral Account | E97: =-'RRA 2.1'!$G$20 -> -11.18515656 | F97: =E97 -> -11.18515656 | G97: 0 | H97: 0 | I97: 0
A98: Sched 2.1, L 19 | D98: Trade Income Deferral Account | E98: =-'RRA 2.1'!$G$30 -> -10.71641927 | F98: =E98 -> -10.71641927 | G98: 0 | H98: 0 | I98: 0
A99: Sched 2.2, L 12 | D99: First Nations | E99: =-'RRA 2.2'!$G$21 -> -7.192286674 | F99: =$E99*F36/$E36 -> 0 | G99: =$E99*G36/$E36 -> -7.192286674 | H99: =$E99*H36/$E36 -> 0 | I99: =$E99*I36/$E36 -> 0
A100: Sched 2.2, L 26 | D100: Site C | E100: =-'RRA 2.2'!$G$41 -> -16.84868091 | F100: =E100 -> -16.84868091 | G100: 0 | H100: 0 | I100: 0
A101: Sched 2.2, L 45 | D101: Storm Restoration Costs | E101: =-'RRA 2.2'!$G$68 -> 0.02741564706 | F101: =$E101*F42/$E42 -> 0 | G101: =$E101*G42/$E42 -> 0 | H101: =$E101*H42/$E42 -> 0.02741564706 | I101: =$E101*I42/$E42 -> 0
A102: Sched 2.2, L 86 | D102: Capital Additions | E102: =-'RRA 2.2'!$G$123 -> 0.2064011577 | F102: =$E102*F79/$E79 -> 0.1185260826 | G102: =$E102*G79/$E79 -> 0 | H102: =$E102*H79/$E79 -> 0.07867536345 | I102: =$E102*I79/$E79 -> 0.009199711644
A103: Sched 2.2, L 103 | D103: SMI | E103: =-'RRA 2.2'!$G$144 -> -12.52450705 | F103: =$E103*F43/$E43 -> 0 | G103: =$E103*G43/$E43 -> 0 | H103: =$E103*H43/$E43 -> -12.52450705 | I103: =$E103*I43/$E43 -> 0
A104: Sched 2.2, L 109 | D104: Home Purchase Option Plan | E104: =-'RRA 2.2'!$G$152 -> -0.2444517525 | F104: =$E104*F54/$E54 -> -0.08442418424 | G104: =$E104*G54/$E54 -> -0.06594885472 | H104: =$E104*H54/$E54 -> -0.06182914804 | I104: =$E104*I54/$E54 -> -0.03224956548
A105: Sched 2.2, L 136 | D105: Rock Bay Remediation | E105: =-'RRA 2.2'!$G$187 -> -1.0803562 | F105: =$E105*F52/$E52 -> -0.3731132623 | G105: =$E105*G52/$E52 -> -0.2914614165 | H105: =$E105*H52/$E52 -> -0.2732543446 | I105: =$E105*I52/$E52 -> -0.1425271762
A106: Sched 2.2, L 157 | D106: Arrow Water Divestiture Costs | E106: =-'RRA 2.2'!$G$216 -> -0.09768116021 | F106: =$E106*F28/$E28 -> -0.09768116021 | G106: =$E106*G28/$E28 -> 0 | H106: =$E106*H28/$E28 -> 0 | I106: =$E106*I28/$E28 -> 0
A107: Sched 2.2, L 168 | D107: Asbestos Remediation | E107: =-'RRA 2.2'!$G$231 -> -0.1882697047 | F107: =$E107*E27/SUM($E$27,$E$35,$E$41) -> -0.03521316668 | G107: =$E107*E35/SUM($E$27,$E$35,$E$41) -> -0.00284152187 | H107: =$E107*E41/SUM($E$27,$E$35,$E$41) -> -0.1502150162 | I107: 0
A108: Sched 3.0, L 30 | D108: Interest on Regulatory Accounts | E108: =SUM(E96:E107) -> -61.73710002 | F108: =IF('4.0'!$E$20="SQ",$E108*$E92/SUM($E$92:$E$95),SUM(F96:F107)) -> -26.09852779 | G108: =IF('4.0'!$E$20="SQ",$E108*$E93/SUM($E$92:$E$95),SUM(G96:G107)) -> -19.79825091 | H108: =IF('4.0'!$E$20="SQ",$E108*$E94/SUM($E$92:$E$95),SUM(H96:H107)) -> -15.84041949 | I108: =IF('4.0'!$E$20="SQ",$E108*$E95/SUM($E$92:$E$95),SUM(I96:I107)) -> 9.817065286e-05
A109: Sched 8.0, L 67 | D109: Foreign Exchange Gains/Losses | E109: ='RRA 8.0'!$G$94 -> -0.7 | F109: =IF('4.0'!$E$20="SQ",$E109*F92/SUM($E92:$E95),$E109*F108/$E108) -> -0.295915575 | G109: =IF('4.0'!$E$20="SQ",$E109*G93/SUM($E92:$E95),$E109*G108/$E108) -> -0.224480509 | H109: =IF('4.0'!$E$20="SQ",$E109*H94/SUM($E92:$E95),$E109*H108/$E108) -> -0.1796050291 | I109: =IF('4.0'!$E$20="SQ",$E109*I95/SUM($E92:$E95),$E109*I108/$E108) -> 1.113098234e-06
A110: Sched 8.0, L 69 | D110: Total Finance Charges | E110: ='RRA 8.0'!$G$96 -> -25.54266194 | F110: =IF('4.0'!$E$20="SQ",$E110*F92/SUM($E92:$E95),$E110*F108/$E108) -> -10.79781642 | G110: =IF('4.0'!$E$20="SQ",$E110*G93/SUM($E92:$E95),$E110*G108/$E108) -> -8.191185362 | H110: =IF('4.0'!$E$20="SQ",$E110*H94/SUM($E92:$E95),$E110*H108/$E108) -> -6.553700774 | I110: =IF('4.0'!$E$20="SQ",$E110*I95/SUM($E92:$E95),$E110*I108/$E108) -> 4.0616417e-05
A111: Sched 3.0, L 32 | D111: Regulatory Account Recoveries | E111: =SUM(E109:E110) -> -26.24266194 | F111: =SUM(F109:F110) -> -11.093732 | G111: -8.415665871 | H111: -6.733305803 | I111: 4.172951523e-05
C112: Total | E112: =SUM(E92:E95,E108,E111) -> 726.6486174 | F112: =SUM(F92:F95,F108,F111) -> 307.1809192 | G112: =SUM(G92:G95,G108,G111) -> 233.0263593 | H112: =SUM(H92:H95,H108,H111) -> 186.4424944 | I112: =SUM(I92:I95,I108,I111) -> -0.001155473275
F113: 307.1809192 | G113: 233.0263593 | H113: 186.4424944 | I113: -0.001155473275
C114: Allowed Net Income
A115: Sched 9, L 60 | D115: Generation | E115: =+'RRA 9.0'!$G93 -> 275.5613168 | F115: =E115 -> 275.5613168 | G115: 0 | H115: 0 | I115: 0
A116: Sched 9, L 61 | D116: Transmission | E116: =IF('4.0'!E19="SQ",'6.1'!$E$7,'6.1'!$G$7)*'RRA 9.0'!$G$82 -> 209.039468 | F116: 0 | G116: =E116 -> 209.039468 | H116: 0 | I116: 0
A117: Sched 9, L 62 | D117: Distribution | E117: =IF('4.0'!E19="SQ",'6.1'!$E$9,'6.1'!$G$9)*'RRA 9.0'!$G$82 -> 167.2507778 | F117: 0 | G117: 0 | H117: =E117 -> 167.2507778 | I117: 0
A118: Sched 9, L 63 | D118: Customer Care | E118: =+'RRA 9.0'!$G96 -> -0.001162037843 | F118: 0 | G118: 0 | H118: 0 | I118: =E118 -> -0.001162037843
C119: Total | E119: =SUM(E115:E118) -> 651.8504005 | F119: =SUM(F115:F118) -> 275.5613168 | G119: 209.039468 | H119: 167.2507778 | I119: -0.001162037843
F120: 275.5613168 | G120: 209.039468 | H120: 167.2507778 | I120: -0.001162037843
C121: Miscellaneous Revenues
A122: Sched 15, L 4, 10, 11.3, 19 | D122: Non Tariff Revenue (Functionalized) | E122: =+SUM(F122:I122) -> -112.0786357 | F122: =-'RRA 15.0'!$G$12 -> -3.0698 | G122: =-'RRA 15.0'!$G$21 -> -39.19134332 | H122: =-'RRA 15.0'!$G$27 -> -51.08936132 | I122: =-'RRA 15.0'!$G$37+'RRA 15.0'!$G$32 -> -18.72813103
A123: Sched 15, L 26 | D123: Corporate Miscellaneous Revenue | E123: =-'RRA 15.0'!$G$46 -> -11.1827724 | F123: =$E123*F122/($E122) -> -0.3062927605 | G123: =$E123*G122/($E122) -> -3.910360523 | H123: -5.097498701 | I123: -1.868620416
C124: Total | E124: =SUM(E122:E123) -> -123.2614081 | F124: =SUM(F122:F123) -> -3.376092761 | G124: -43.10170384 | H124: -56.18686002 | I124: -20.59675145
F125: -3.376092761 | G125: -43.10170384 | H125: -56.18686002 | I125: -20.59675145
C126: Deferral Accounts, Revenue Offsets & Other
A127: Sched 1, L17 | D127: Subsidiary Net Income | E127: ='RRA 3.0'!$G$76+'RRA 3.0'!$G$81 -> -14.69113463 | F127: =+E127 -> -14.69113463 | G127: 0 | H127: 0 | I127: 0
A128: Sched 1.0, L24 | D128: Other Utility Revenue | E128: ='RRA 1.0'!$G$40 -> -16.49991634 | F128: =+E128 -> -16.49991634 | G128: 0 | H128: 0 | I128: 0
A129: Sched 1.0, L21 | D129: Deferral Rider Revenue | E129: ='RRA 1.0'!$G$48 -> -222.9917468 | F129: =E129 -> -222.9917468 | G129: 0 | H129: 0 | I129: 0
A130: Sched 1.0, L8 | D130: Intersegment revenues | E130: ='RRA 1.0'!$G$21 -> -53.51035904 | F130: =+E130-G130 -> -3 | G130: ='RRA 3.0'!$G$66+'RRA 3.0'!$G$67 -> -50.51035904 | H130: 0 | I130: 0
A131: Sched 3.4, L11 (L9, L10) | D131: Internal Allocations (GRTA, SDA) | E131: 0 | F131: =-'RRA 3.4'!$G$24 -> 43.3 | G131: =-(F131+H131) -> -191.5740661 | H131: =-'RRA 3.4'!$G$25 -> 148.2740661 | I131: 0
C132: Total | E132: =SUM(E127,E128,E129,E130,E131) -> -307.6931568 | F132: =SUM(F127,F128,F129,F130,F131) -> -213.8827978 | G132: =SUM(G127,G128,G129,G130,G131) -> -242.0844252 | H132: =SUM(H127,H128,H129,H130,H131) -> 148.2740661 | I132: =SUM(I127,I128,I129,I130,I131) -> 0
F133: -213.8827978 | G133: -242.0844252 | H133: 148.2740661 | I133: 0
C134: Total Revenue Requirement | E134: =ROUND(+E19+E59+E81+E89+E112+E119+E124+E132,2) -> 4459.7 | F134: =+F19+F59+F81+F89+F112+F119+F124+F132 -> 2593.328359 | G134: =+G19+G59+G81+G89+G112+G119+G124+G132 -> 765.4532982 | H134: =+H19+H59+H81+H89+H112+H119+H124+H132 -> 958.4509867 | I134: =+I19+I59+I81+I89+I112+I119+I124+I132 -> 142.4705774
E136: =4459.7-E134 -> 0

Sheet 2.0
A1: Classification of Generation Function
A2: (Functionalized Costs from Schedule 1.0)
D4: Functionalized Costs | E4: Demand Related | F4: Energy Related | G4: Demand Costs | H4: Energy Costs | I4: Comments
B6: ='1.0'!$C$5 -> Cost of Energy
C7: ='1.0'!D6 -> IPPs and Long-term Purchases commitment | D7: ='1.0'!F6 -> 975.5 | E7: =IF('4.0'!E22="SQ",0,0.074) -> 0 | F7: =100%-E7 -> 1 | G7: =D7*E7 -> 0 | H7: =+D7*F7 -> 975.5
C8: ='1.0'!D7 -> Domestic Transmission (Non-Heritage) | D8: ='1.0'!F7 -> 0 | E8: 0 | F8: 1 | G8: 0 | H8: =+D8*F8 -> 0
C9: ='1.0'!D8 -> NIA Generation | D9: ='1.0'!F8 -> 34.3 | E9: 0 | F9: 1 | G9: 0 | H9: =+D9*F9 -> 34.3
C10: ='1.0'!D9 -> Gas Transportation | D10: ='1.0'!F9 -> 12.1 | E10: 0 | F10: 1 | G10: 0 | H10: 12.1
C11: ='1.0'!D10 -> Water Rentals | D11: ='1.0'!F10 -> 391.9 | E11: 0.1 | F11: 0.9 | G11: 39.19 | H11: 352.71 | I11: Based on Water Rental Rate
C12: ='1.0'!D11 -> Market Purchases | D12: ='1.0'!F11 -> 56.6 | E12: 0 | F12: 1 | G12: 0 | H12: 56.6
C13: ='1.0'!D12 -> Natural gas for thermal generation | D13: ='1.0'!F12 -> 26.9 | E13: 0 | F13: 1 | G13: =D13*E13 -> 0 | H13: =+D13*F13 -> 26.9
C14: ='1.0'!D13 -> Domestic Transmission (Heritage) | D14: ='1.0'!F13 -> 0 | E14: 1 | F14: 0 | G14: 0 | H14: 0
C15: Non-treaty storage agreement | D15: ='1.0'!F14 -> -19.8 | E15: 0 | F15: 1 | G15: 0 | H15: -19.8
C16: ='1.0'!D15 -> Other and Surplus Sales | D16: ='1.0'!F15 -> -116.3 | E16: 0 | F16: 1 | G16: =D16*E16 -> 0 | H16: =+D16*F16 -> -116.3
C17: Net purchases (sales) from Powerex | D17: =+'1.0'!E16 -> 4.8 | E17: 0 | F17: 1 | G17: =D17*E17 -> 0 | H17: =+D17*F17 -> 4.8
C18: Heritage Deferral Account Recoveries | D18: =+'1.0'!E17 -> 17.74124709 | E18: =$E$23 -> 0.579 | F18: =1-E18 -> 0.421 | G18: =D18*E18 -> 10.27218206 | H18: =+D18*F18 -> 7.469065023
C19: Non-Heritage Deferral Account Recoveries | D19: =+'1.0'!E18 -> 104.8216344 | E19: =$E$23 -> 0.579 | F19: =1-E19 -> 0.421 | G19: =D19*E19 -> 60.6917263 | H19: =+D19*F19 -> 44.12990807
B20: Total | D20: =SUM(D7:D19) -> 1488.562881 | G20: =SUM(G7:G19) -> 110.1539084 | H20: =SUM(H7:H19) -> 1378.408973
B22: ='1.0'!$C$21 -> O M & A Expenses
C23: ='1.0'!D31 -> Generation | D23: ='1.0'!F31-D24 -> 284.1846334 | E23: =IF('4.0'!E23="SQ",0.579,ROUND(IF('4.0'!E23="Option 1B",0.45,IF('4.0'!E23="Option 3",0.55,0.5)),2)) -> 0.579 | F23: =1-E23 -> 0.421 | G23: =D23*E23 -> 164.5429027 | H23: 119.6417307
C24: Thermal Generation | D24: =20434410.8/1000000 -> 20.4344108 | E24: =IF('4.0'!E24="SQ",E23,1) -> 0.579 | F24: 0.421 | G24: 11.83152385 | H24: =+D24*F24 -> 8.602886947
C25: ='1.0'!D37 -> Transmission | D25: ='1.0'!F37 -> 0 | E25: =$E$24 -> 0.579 | F25: 0.421 | G25: 0 | H25: 0
C26: ='1.0'!D44 -> Distribution | D26: ='1.0'!F44 -> 0 | E26: =$E$24 -> 0.579 | F26: 0.421 | G26: 0 | H26: 0
C27: Customer Care | D27: ='1.0'!F47 -> 0 | E27: =$E$24 -> 0.579 | F27: 0.421 | G27: 0 | H27: =+D27*F27 -> 0
C28: ='1.0'!D58 -> Corp Service | D28: ='1.0'!F58 -> 33.05235292 | E28: =E23 -> 0.579 | F28: 0.421 | G28: 19.13731234 | H28: 13.91504058
B29: Total | D29: =SUM(D23:D28) -> 337.6713971 | G29: =SUM(G23:G28) -> 195.5117389 | H29: =SUM(H23:H28) -> 142.1596582
H30: 0
B31: ='1.0'!$C$61 -> Depreciation & Amortization | H31: 0
C32: ='1.0'!D65 -> Generation | D32: ='1.0'!F65 -> 332.3987806 | E32: =$E$23 -> 0.579 | F32: =1-E32 -> 0.421 | G32: =D32*E32 -> 192.458894 | H32: 139.9398866
C33: ='1.0'!D69 -> Transmission | D33: ='1.0'!F69 -> 0 | E33: =$E$23 -> 0.579 | F33: =1-E33 -> 0.421 | G33: 0 | H33: 0
C34: ='1.0'!D74 -> Distribution | D34: ='1.0'!F74 -> 0 | E34: 0.579 | F34: 0.421 | G34: 0 | H34: 0
C35: Customer Care | D35: ='1.0'!F76 -> 0 | E35: 0.579 | F35: 0.421 | G35: 0 | H35: =+D35*F35 -> 0
C36: ='1.0'!D80 -> Corporate Services | D36: ='1.0'!F80 -> 17.26080204 | E36: 0.579 | F36: =1-E36 -> 0.421 | G36: 9.994004379 | H36: 7.266797657
B37: Total | D37: =SUM(D32:D36) -> 349.6595826 | G37: =SUM(G32:G36) -> 202.4528983 | H37: =SUM(H32:H36) -> 147.2066843
H38: 0
B39: ='1.0'!$C$83 -> Taxes | H39: 0
C40: ='1.0'!D84 -> Generation | D40: ='1.0'!F84 -> 43.069 | E40: =$E$23 -> 0.579 | F40: =1-E40 -> 0.421 | G40: =D40*E40 -> 24.936951 | H40: 18.132049
C41: ='1.0'!D85 -> Transmission | D41: ='1.0'!F85 -> 0 | E41: =$E$23 -> 0.579 | F41: =1-E41 -> 0.421 | G41: 0 | H41: 0
C42: ='1.0'!D86 -> Distribution | D42: ='1.0'!F86 -> 0 | E42: 0.579 | F42: 0.421 | G42: 0 | H42: 0
C43: ='1.0'!D87 -> Customer Care | D43: ='1.0'!F87 -> 0 | E43: 0.579 | F43: 0.421 | G43: 0 | H43: 0
C44: ='1.0'!D88 -> Corporate | D44: ='1.0'!F88 -> 8.8821522 | E44: =$E$23 -> 0.579 | F44: =1-E44 -> 0.421 | G44: 5.142766124 | H44: 3.739386076
B45: Total | D45: =SUM(D40:D44) -> 51.9511522 | G45: =SUM(G40:G44) -> 30.07971712 | H45: =SUM(H40:H44) -> 21.87143508
H46: 0
B47: ='1.0'!$C$91 -> Finance Charges | H47: 0
C48: ='1.0'!D92 -> Generation | D48: ='1.0'!F92 -> 344.373179 | E48: =$E$23 -> 0.579 | F48: =1-E48 -> 0.421 | G48: =D48*E48 -> 199.3920707 | H48: 144.9811084
C49: ='1.0'!D93 -> Transmission | D49: ='1.0'!F93 -> 0 | E49: =$E$23 -> 0.579 | F49: =1-E49 -> 0.421 | G49: 0 | H49: 0
C50: ='1.0'!D94 -> Distribution | D50: ='1.0'!F94 -> 0 | E50: 0.579 | F50: 0.421 | G50: 0 | H50: 0
C51: ='1.0'!D95 -> Customer Care | D51: ='1.0'!F95 -> 0 | E51: 0.579 | F51: 0.421 | G51: 0 | H51: 0
C52: Interest on Deferral Accounts | D52: =SUM('1.0'!F96:F98) -> -23.79468337 | E52: =IF('4.0'!$E$20="SQ",$E$23,G20/SUM(G20,H20)) -> 0.579 | F52: =1-E52 -> 0.421 | G52: =D52*E52 -> -13.77712167 | H52: =+D52*F52 -> -10.0175617
C53: Interest on Regulatory Accounts | D53: ='1.0'!F108-D52 -> -2.303844415 | E53: =$E$48 -> 0.579 | F53: =1-E53 -> 0.421 | G53: -1.333925916 | H53: =+D53*F53 -> -0.9699184988
C54: Regulatory Account Recoveries | D54: ='1.0'!F111 -> -11.093732 | E54: =$E$48 -> 0.579 | F54: =1-E54 -> 0.421 | G54: -6.423270827 | H54: -4.670461171
B55: Total | D55: =SUM(D48:D54) -> 307.1809192 | G55: =SUM(G48:G54) -> 177.8577522 | H55: =SUM(H48:H54) -> 129.323167
H56: 0
B57: ='1.0'!$C$114 -> Allowed Net Income | H57: 0
C58: ='1.0'!D115 -> Generation | D58: ='1.0'!F115 -> 275.5613168 | E58: =$E$23 -> 0.579 | F58: =1-E58 -> 0.421 | G58: =D58*E58 -> 159.5500024 | H58: 116.0113144
C59: ='1.0'!D116 -> Transmission | D59: ='1.0'!F116 -> 0 | E59: 0.579 | F59: 0 | G59: =D59*E59 -> 0 | H59: 0
C60: ='1.0'!D117 -> Distribution | D60: ='1.0'!F117 -> 0 | E60: 0.579 | F60: 0 | G60: =D60*E60 -> 0 | H60: 0
C61: ='1.0'!D118 -> Customer Care | D61: ='1.0'!F118 -> 0 | E61: 0.579 | F61: 0 | G61: =D61*E61 -> 0 | H61: 0
B62: Total | D62: =SUM(D58:D61) -> 275.5613168 | G62: =SUM(G58:G61) -> 159.5500024 | H62: =SUM(H58:H61) -> 116.0113144
H63: 0
B64: ='1.0'!$C$121 -> Miscellaneous Revenues | H64: 0
C65: ='1.0'!D122 -> Non Tariff Revenue (Functionalized) | D65: ='1.0'!F122 -> -3.0698 | E65: =$E$23 -> 0.579 | F65: =1-E65 -> 0.421 | G65: =D65*E65 -> -1.7774142 | H65: -1.2923858
C66: ='1.0'!D123 -> Corporate Miscellaneous Revenue | D66: ='1.0'!F123 -> -0.3062927605 | E66: =$E$23 -> 0.579 | F66: =1-E66 -> 0.421 | G66: =D66*E66 -> -0.1773435083 | H66: -0.1289492522
B67: Total | D67: =SUM(D65:D66) -> -3.376092761 | G67: =SUM(G65:G66) -> -1.954757708 | H67: =SUM(H65:H66) -> -1.421335052
H68: 0
B69: ='1.0'!$C$126 -> Deferral Accounts, Revenue Offsets & Other | H69: 0
C70: ='1.0'!D127 -> Subsidiary Net Income | D70: ='1.0'!F127 -> -14.69113463 | E70: =(G67+G62+G55+G45+G37+G29+G20+SUM(G71:G74))/(SUM($G$67:$H$67)+SUM($G$62:$H$62)+SUM($G$55:$H$55)+SUM($G$45:$H$45)+SUM($G$37:$H$37)+SUM($G$29:$H$29)+SUM($G$20:$H$20)+SUM($G$71:$H$74)) -> 0.2907644244 | F70: =(H67+H62+H55+H45+H37+H29+H20+SUM(H71:H74))/(SUM($G$67:$H$67)+SUM($G$62:$H$62)+SUM($G$55:$H$55)+SUM($G$45:$H$45)+SUM($G$37:$H$37)+SUM($G$29:$H$29)+SUM($G$20:$H$20)+SUM($G$71:$H$74)) -> 0.7092355756 | G70: =D70*E70 -> -4.271659304 | H70: =+D70*F70 -> -10.41947533 | I70: Total costs before subsidiary income
C71: ='1.0'!D128 -> Other Utility Revenue | D71: ='1.0'!F128 -> -16.49991634 | E71: =$E$23 -> 0.579 | F71: =1-E71 -> 0.421 | G71: -9.553451558 | H71: -6.946464777
C72: Deferral Rider Revenue | D72: ='1.0'!F129 -> -222.9917468 | E72: =E23 -> 0.579 | F72: 0.421 | G72: =D72*E72 -> -129.1122214 | H72: =+D72*F72 -> -93.87952542
C73: ='1.0'!D130 -> Intersegment revenues | D73: ='1.0'!F130 -> -3 | E73: 0.579 | F73: 0.421 | G73: -1.737 | H73: -1.263
C74: ='1.0'!D131 -> Internal Allocations (GRTA, SDA) | D74: ='1.0'!F131 -> 43.3 | E74: 0.579 | F74: 0.421 | G74: 25.0707 | H74: 18.2293
B75: Total | D75: =SUM(D70:D74) -> -213.8827978 | G75: =SUM(G70:G74) -> -119.6036323 | H75: =SUM(H70:H74) -> -94.27916552
B77: Total Generation Costs | D77: =D67+D62+D55+D45+D37+D29+D20+D75 -> 2593.328359 | G77: =G67+G62+G55+G45+G37+G29+G20+G75 -> 754.0476274 | H77: =H67+H62+H55+H45+H37+H29+H20+H75 -> 1839.280731
D79: =IF(ROUND(D77,2)<>ROUND('1.0'!F134,2),"error","") -> 

Sheet 2.1
A1: Classification of Transmission Function
A2: (Functionalized Costs from Schedule 1.0)
D4: Functionalized Costs | E4: Demand Related | F4: Demand Costs
B6: ='1.0'!$C$5 -> Cost of Energy
C7: ='1.0'!D6 -> IPPs and Long-term Purchases commitment | D7: ='1.0'!G6 -> 0 | E7: =$E$14 -> 1 | F7: =D7*E7 -> 0
C8: ='1.0'!D7 -> Domestic Transmission (Non-Heritage) | D8: ='1.0'!G7 -> 0 | E8: 1 | F8: =D8*E8 -> 0
C9: ='1.0'!D8 -> NIA Generation | D9: ='1.0'!G8 -> 0 | E9: 1 | F9: =D9*E9 -> 0
C10: ='1.0'!D9 -> Gas Transportation | D10: ='1.0'!G9 -> 0 | E10: 1 | F10: =D10*E10 -> 0
C11: ='1.0'!D10 -> Water Rentals | D11: ='1.0'!G10 -> 0 | E11: 1 | F11: =D11*E11 -> 0
C12: ='1.0'!D11 -> Market Purchases | D12: ='1.0'!G11 -> 0 | E12: 1 | F12: =D12*E13 -> 0
C13: ='1.0'!D12 -> Natural gas for thermal generation | D13: ='1.0'!G12 -> 0 | E13: =$E$14 -> 1 | F13: =D13*E13 -> 0
C14: ='1.0'!D13 -> Domestic Transmission (Heritage) | D14: ='1.0'!G13 -> 25.7 | E14: 1 | F14: =D14*E14 -> 25.7
C15: ='1.0'!D15 -> Other and Surplus Sales | D15: ='1.0'!G15 -> 0 | F15: =D15*E15 -> 0
B16: Total | D16: =SUM(D7:D15) -> 25.7 | F16: =SUM(F7:F15) -> 25.7
B18: ='1.0'!$C$21 -> O M & A Expenses
C19: ='1.0'!D31 -> Generation | D19: ='1.0'!G31 -> 0 | E19: =$E$14 -> 1 | F19: =D19*E19 -> 0
C20: ='1.0'!D37 -> Transmission | D20: ='1.0'!G37 -> 237.9564253 | E20: 1 | F20: =D20*E20 -> 237.9564253
C21: ='1.0'!D44 -> Distribution | D21: ='1.0'!G44 -> 0 | E21: 1 | F21: =D21*E21 -> 0
C22: Customer Care | D22: ='1.0'!G47 -> 0 | E22: 1 | F22: =D22*E22 -> 0
C23: ='1.0'!D58 -> Corp Service | D23: ='1.0'!G58 -> 25.81919909 | E23: 1 | F23: =D23*E23 -> 25.81919909
B24: Total | D24: =SUM(D19:D23) -> 263.7756244 | F24: =SUM(F19:F23) -> 263.7756244
B26: ='1.0'!$C$61 -> Depreciation & Amortization
C27: ='1.0'!D65 -> Generation | D27: ='1.0'!G65 -> 0 | E27: =$E$14 -> 1 | F27: =D27*E27 -> 0
C28: ='1.0'!D69 -> Transmission | D28: ='1.0'!G69 -> 187.1349756 | E28: 1 | F28: =D28*E28 -> 187.1349756
C29: ='1.0'!D74 -> Distribution | D29: ='1.0'!G74 -> 0 | E29: 1 | F29: =D29*E29 -> 0
C30: Customer Care | D30: ='1.0'!G76 -> 0 | E30: 1 | F30: =D30*E30 -> 0
C31: ='1.0'!D80 -> Corporate Services | D31: ='1.0'!G80 -> 0 | E31: 1 | F31: =D31*E31 -> 0
B32: Total | D32: =SUM(D27:D31) -> 187.1349756 | F32: =SUM(F27:F31) -> 187.1349756
B34: ='1.0'!$C$83 -> Taxes
C35: ='1.0'!D84 -> Generation | D35: ='1.0'!G84 -> 0 | E35: =$E$14 -> 1 | F35: =D35*E35 -> 0
C36: ='1.0'!D85 -> Transmission | D36: ='1.0'!G85 -> 131.963 | E36: 1 | F36: =D36*E36 -> 131.963
C37: ='1.0'!D86 -> Distribution | D37: ='1.0'!G86 -> 0 | E37: 1 | F37: =D37*E37 -> 0
C38: ='1.0'!D87 -> Customer Care | D38: ='1.0'!G87 -> 0 | E38: 1 | F38: =D38*E38 -> 0
C39: ='1.0'!D88 -> Corporate | D39: ='1.0'!G88 -> 0 | E39: 1 | F39: =D39*E39 -> 0
B40: Total | D40: =SUM(D36:D39) -> 131.963 | F40: =SUM(F36:F39) -> 131.963
B42: ='1.0'!$C$91 -> Finance Charges
C43: ='1.0'!D92 -> Generation | D43: ='1.0'!G92 -> 0 | E43: =$E$14 -> 1 | F43: =D43*E43 -> 0
C44: ='1.0'!D93 -> Transmission | D44: ='1.0'!G93 -> 261.240276 | E44: 1 | F44: 261.240276
C45: ='1.0'!D94 -> Distribution | D45: ='1.0'!G94 -> 0 | E45: 1 | F45: 0
C46: ='1.0'!D95 -> Customer Care | D46: ='1.0'!G95 -> 0 | E46: 1 | F46: 0
C47: Interest on Regulatory Accounts | D47: ='1.0'!G108 -> -19.79825091 | E47: 1 | F47: -19.79825091
C48: Regulatory Account Recoveries | D48: ='1.0'!G111 -> -8.415665871 | E48: 1 | F48: -8.415665871
B49: Total | D49: =SUM(D43:D48) -> 233.0263593 | F49: =SUM(F43:F48) -> 233.0263593
B51: ='1.0'!$C$114 -> Allowed Net Income
C52: ='1.0'!D115 -> Generation | D52: ='1.0'!G115 -> 0 | E52: =$E$14 -> 1 | F52: =D52*E52 -> 0
C53: ='1.0'!D116 -> Transmission | D53: ='1.0'!G116 -> 209.039468 | E53: 1 | F53: =D53*E53 -> 209.039468
C54: ='1.0'!D117 -> Distribution | D54: ='1.0'!G117 -> 0 | E54: 1 | F54: =D54*E54 -> 0
C55: Customer Care | D55: ='1.0'!G118 -> 0 | E55: 1 | F55: =D55*E55 -> 0
B56: Total | D56: =SUM(D52:D55) -> 209.039468 | F56: =SUM(F52:F55) -> 209.039468
B58: ='1.0'!$C$121 -> Miscellaneous Revenues
C59: ='1.0'!D122 -> Non Tariff Revenue (Functionalized) | D59: ='1.0'!G122 -> -39.19134332 | E59: =$E$14 -> 1 | F59: =D59*E59 -> -39.19134332
C60: ='1.0'!D123 -> Corporate Miscellaneous Revenue | D60: ='1.0'!G123 -> -3.910360523 | E60: =$E$14 -> 1 | F60: =D60*E60 -> -3.910360523
B61: Total | D61: =SUM(D59:D60) -> -43.10170384 | F61: =SUM(F59:F60) -> -43.10170384
B63: ='1.0'!$C$126 -> Deferral Accounts, Revenue Offsets & Other
C64: ='1.0'!D127 -> Subsidiary Net Income | D64: ='1.0'!G127 -> 0 | E64: =$E$14 -> 1 | F64: =D64*E64 -> 0
C65: ='1.0'!D128 -> Other Utility Revenue | D65: ='1.0'!G128 -> 0 | E65: 1 | F65: =D65*E65 -> 0
C66: Deferral Rider Revenue | D66: ='1.0'!G129 -> 0 | E66: 1 | F66: =D66*E66 -> 0
C67: ='1.0'!D130 -> Intersegment revenues | D67: ='1.0'!G130 -> -50.51035904 | E67: 1 | F67: =D67*E67 -> -50.51035904
C68: ='1.0'!D131 -> Internal Allocations (GRTA, SDA) | D68: ='1.0'!G131 -> -191.5740661 | E68: 1 | F68: =D68*E68 -> -191.5740661
B69: Total | D69: =SUM(D64:D68) -> -242.0844252 | F69: =SUM(F64:F68) -> -242.0844252
B71: Total Transmission Costs | D71: =D61+D56+D49+D40+D32+D24+D16+D69 -> 765.4532982 | F71: =F61+F56+F49+F40+F32+F24+F16+F69 -> 765.4532982
D73: =IF(ROUND(D71,2)<>ROUND('1.0'!G134,2),"error","") -> 

Sheet 2.2
A1: Classification of Distribution Function
A2: (Functionalized Costs from Schedule 1.0)
D4: Functionalized Costs | E4: Demand Related | F4: Customer Related | G4: SMI Energy Related | H4: Streetlighting Costs (Direct Assigned) | I4: Demand Costs | J4: Customer Costs | K4: SMI Energy Costs
B6: ='1.0'!$C$5 -> Cost of Energy
C7: ='1.0'!D6 -> IPPs and Long-term Purchases commitment | D7: ='1.0'!H6 -> 0 | E7: =$E$26 -> 0.65 | F7: =1-E7 -> 0.35 | I7: =($D7-$H7)*E7 -> 0 | J7: =($D7-$H7)*F7 -> 0 | K7: =($D7-$H7)*G7 -> 0
C8: ='1.0'!D7 -> Domestic Transmission (Non-Heritage) | D8: ='1.0'!H7 -> 0 | E8: 0.65 | F8: =1-E8 -> 0.35 | I8: =($D8-$H8)*E8 -> 0 | J8: =($D8-$H8)*F8 -> 0 | K8: =($D8-$H8)*G8 -> 0
C9: ='1.0'!D8 -> NIA Generation | D9: ='1.0'!H8 -> 0 | E9: 0.65 | F9: 0.35 | I9: 0 | J9: 0 | K9: 0
C10: ='1.0'!D9 -> Gas Transportation | D10: ='1.0'!H9 -> 0 | E10: 0.65 | F10: 0.35 | I10: 0 | J10: 0 | K10: 0
C11: ='1.0'!D10 -> Water Rentals | D11: ='1.0'!H10 -> 0 | E11: 0.65 | F11: 0.35 | I11: 0 | J11: 0 | K11: 0
C12: ='1.0'!D11 -> Market Purchases | D12: ='1.0'!H11 -> 0 | E12: 0.65 | F12: 0.35 | I12: 0 | J12: 0 | K12: 0
C13: ='1.0'!D12 -> Natural gas for thermal generation | D13: ='1.0'!H12 -> 0 | E13: 0.65 | F13: 0.35 | I13: 0 | J13: 0 | K13: 0
C14: ='1.0'!D13 -> Domestic Transmission (Heritage) | D14: ='1.0'!H13 -> 0 | E14: 0.65 | F14: 0.35 | I14: 0 | J14: 0 | K14: 0
C15: ='1.0'!D14 -> Non-treaty storage agreement | D15: ='1.0'!H14 -> 0 | E15: 0.65 | F15: 0.35 | I15: 0 | J15: 0 | K15: 0
C16: ='1.0'!D15 -> Other and Surplus Sales | D16: ='1.0'!H15 -> 0 | E16: 0.65 | F16: 0.35 | I16: 0 | J16: 0 | K16: 0
C17: ='1.0'!D16 -> Net purchases (sales) from Powerex | D17: ='1.0'!H16 -> 0 | E17: 0.65 | F17: 0.35 | I17: 0 | J17: 0 | K17: 0
C18: ='1.0'!D17 -> Heritage Deferral Account Recoveries | D18: ='1.0'!H17 -> 0 | E18: 0.65 | F18: 0.35 | I18: 0 | J18: 0 | K18: 0
C19: ='1.0'!D18 -> Non-Heritage Deferral Account Recoveries | D19: ='1.0'!H18 -> 0 | E19: 0.65 | F19: 0.35 | I19: 0 | J19: 0 | K19: 0
B20: Total | D20: =SUM(D7:D19) -> 0 | H20: =SUM(H7:H19) -> 0 | I20: =SUM(I7:I19) -> 0 | J20: =SUM(J7:J19) -> 0 | K20: =SUM(K7:K19) -> 0
B22: ='1.0'!$C$21 -> O M & A Expenses
C23: ='1.0'!D31 -> Generation | D23: ='1.0'!H31 -> 0 | E23: =$E$26 -> 0.65 | F23: =1-E23 -> 0.35 | I23: =($D23-$H23)*E23 -> 0 | J23: 0 | K23: =($D23-$H23)*G23 -> 0
C24: ='1.0'!D37 -> Transmission | D24: ='1.0'!H37 -> 0 | E24: =$E$26 -> 0.65 | F24: =1-E24 -> 0.35 | I24: 0 | J24: 0 | K24: 0
C25: SMI | D25: ='1.0'!H43 -> 31.32624282 | E25: =IF('4.0'!$E$25="SQ",E26,0) -> 0.65 | F25: =1-E25-G25 -> 0.35 | G25: =IF('4.0'!$E$25="Option 3",0.3,IF('4.0'!$E$25="Option 5",0.05,0)) -> 0 | I25: 20.36205783 | J25: 10.96418499 | K25: 0
C26: ='1.0'!D44 -> Distribution | D26: ='1.0'!H44-D25 -> 191.7654713 | E26: =ROUND(IF('4.0'!E26="SQ",0.65,'6.0'!$H$10),2) -> 0.65 | F26: =1-E26 -> 0.35 | H26: 1.231238709 | I26: =($D26-$H26)*E26 -> 123.8472512 | J26: 66.68698142 | K26: 0
C27: Customer Care | D27: ='1.0'!H47 -> 0 | E27: =$E$26 -> 0.65 | F27: =1-E27 -> 0.35 | I27: 0 | J27: 0 | K27: 0
C28: ='1.0'!D58 -> Corp Service | D28: ='1.0'!H58 -> 24.20632002 | E28: =$E$26 -> 0.65 | F28: =1-E28 -> 0.35 | I28: 15.73410802 | J28: 8.472212009 | K28: 0
B29: Total | D29: =SUM(D23:D28) -> 247.2980342 | H29: =SUM(H23:H28) -> 1.231238709 | I29: =SUM(I23:I28) -> 159.943417 | J29: =SUM(J23:J28) -> 86.12337841 | K29: =SUM(K23:K28) -> 0
B31: ='1.0'!$C$61 -> Depreciation & Amortization
C32: ='1.0'!D65 -> Generation | D32: ='1.0'!H65 -> 0 | E32: =$E$26 -> 0.65 | F32: =1-E32 -> 0.35 | I32: =($D32-$H32)*E32 -> 0 | J32: =($D32-$H32)*F32 -> 0 | K32: 0
C33: ='1.0'!D69 -> Transmission | D33: ='1.0'!H69 -> 0 | E33: 0.65 | F33: 0.35 | I33: 0 | J33: 0 | K33: 0
C34: ='1.0'!D74 -> Distribution | D34: ='1.0'!H74 -> 220.64 | E34: =$E$26 -> 0.65 | F34: =1-E34 -> 0.35 | H34: 1.158969588 | I34: 142.6626698 | J34: 76.81836064 | K34: 0
C35: Customer Care | D35: ='1.0'!H76 -> 0 | E35: =$E$26 -> 0.65 | F35: =1-E35 -> 0.35 | I35: 0 | J35: 0 | K35: 0
C36: ='1.0'!D80 -> Corporate Services | D36: ='1.0'!H80 -> 11.4573927 | E36: =$E$26 -> 0.65 | F36: =1-E36 -> 0.35 | I36: 7.447305253 | J36: 4.010087444 | K36: 0
B37: Total | D37: =SUM(D32:D36) -> 232.0973927 | H37: =SUM(H32:H36) -> 1.158969588 | I37: =SUM(I32:I36) -> 150.109975 | J37: =SUM(J32:J36) -> 80.82844809
B39: ='1.0'!$C$83 -> Taxes
C40: ='1.0'!D84 -> Generation | D40: ='1.0'!H84 -> 0 | E40: =$E$26 -> 0.65 | F40: =1-E40 -> 0.35 | I40: =($D40-$H40)*E40 -> 0 | J40: =($D40-$H40)*F40 -> 0 | K40: 0
C41: ='1.0'!D85 -> Transmission | D41: ='1.0'!H85 -> 0 | E41: 0.65 | F41: 0.35 | I41: 0 | J41: 0 | K41: 0
C42: ='1.0'!D86 -> Distribution | D42: ='1.0'!H86 -> 27.586 | E42: =$E$26 -> 0.65 | F42: =1-E42 -> 0.35 | H42: =IF('4.0'!$E$26="SQ",+($H$26/SUM($D$25:$D$26)),'6.0'!$D$9)*D42 -> 0.1522465823 | I42: 17.83193972 | J42: 9.601813696 | K42: 0
C43: ='1.0'!D87 -> Customer Care | D43: ='1.0'!H87 -> 0 | E43: =$E$26 -> 0.65 | F43: =1-E43 -> 0.35 | I43: 0 | J43: 0 | K43: 0
C44: ='1.0'!D88 -> Corporate | D44: ='1.0'!H88 -> 5.689081488 | E44: =$E$26 -> 0.65 | F44: =1-E44 -> 0.35 | I44: 3.697902967 | J44: 1.991178521 | K44: 0
B45: Total | D45: =SUM(D40:D44) -> 33.27508149 | H45: =SUM(H40:H44) -> 0.1522465823 | I45: =SUM(I40:I44) -> 21.52984269 | J45: =SUM(J40:J44) -> 11.59299222
B47: ='1.0'!$C$91 -> Finance Charges
C48: ='1.0'!D92 -> Generation | D48: ='1.0'!H92 -> 0 | E48: =$E$26 -> 0.65 | F48: =1-E48 -> 0.35 | I48: =($D48-$H48)*E48 -> 0 | J48: =($D48-$H48)*F48 -> 0 | K48: 0
C49: ='1.0'!D93 -> Transmission | D49: ='1.0'!H93 -> 0 | E49: 0.65 | F49: 0.35 | I49: 0 | J49: 0 | K49: 0
C50: ='1.0'!D94 -> Distribution | D50: ='1.0'!H94 -> 209.0162197 | E50: =$E$26 -> 0.65 | F50: =1-E50 -> 0.35 | H50: =IF('4.0'!$E$26="SQ",+($H$26/SUM($D$25:$D$26)),'6.0'!$D$9)*D50 -> 1.153556336 | I50: 135.1107312 | J50: 72.75193218 | K50: 0
C51: ='1.0'!D95 -> Customer Care | D51: ='1.0'!H95 -> 0 | E51: =$E$26 -> 0.65 | F51: =1-E51 -> 0.35 | I51: 0 | J51: 0 | K51: 0
C52: Interest on Regulatory Accounts | D52: ='1.0'!H108 -> -15.84041949 | E52: =$E$26 -> 0.65 | F52: =1-E52 -> 0.35 | I52: -10.29627267 | J52: -5.544146823 | K52: 0
C53: Regulatory Account Recoveries | D53: ='1.0'!H111 -> -6.733305803 | E53: =$E$26 -> 0.65 | F53: =1-E53 -> 0.35 | I53: -4.376648772 | J53: -2.356657031 | K53: 0
B54: Total | D54: =SUM(D48:D53) -> 186.4424944 | H54: =SUM(H48:H53) -> 1.153556336 | I54: =SUM(I48:I53) -> 120.4378098 | J54: =SUM(J48:J53) -> 64.85112833 | K54: =SUM(K48:K53) -> 0
B56: ='1.0'!$C$114 -> Allowed Net Income
C57: ='1.0'!D115 -> Generation | D57: ='1.0'!H115 -> 0 | E57: =$E$26 -> 0.65 | F57: =1-E57 -> 0.35 | I57: =($D57-$H57)*E57 -> 0 | J57: =($D57-$H57)*F57 -> 0 | K57: 0
C58: ='1.0'!D116 -> Transmission | D58: ='1.0'!H116 -> 0 | E58: 0.65 | F58: 0.35 | I58: 0 | J58: 0 | K58: 0
C59: ='1.0'!D117 -> Distribution | D59: ='1.0'!H117 -> 167.2507778 | E59: =$E$26 -> 0.65 | F59: =1-E59 -> 0.35 | H59: =IF('4.0'!$E$26="SQ",+($H$26/SUM($D$25:$D$26)),'6.0'!$D$9)*D59 -> 0.9230536979 | I59: 108.1130207 | J59: 58.21470344 | K59: 0
C60: ='1.0'!D118 -> Customer Care | D60: ='1.0'!H118 -> 0 | E60: =$E$26 -> 0.65 | F60: =1-E60 -> 0.35 | I60: 0 | J60: 0 | K60: 0
B61: Total | D61: =SUM(D57:D60) -> 167.2507778 | H61: =SUM(H57:H60) -> 0.9230536979 | I61: =SUM(I57:I60) -> 108.1130207 | J61: =SUM(J57:J60) -> 58.21470344
B63: ='1.0'!$C$121 -> Miscellaneous Revenues
C64: ='1.0'!D122 -> Non Tariff Revenue (Functionalized) | D64: ='1.0'!H122 -> -51.08936132 | E64: =$E$26 -> 0.65 | F64: =1-E64 -> 0.35 | I64: =($D64-$H64)*E64 -> -33.20808486 | J64: =($D64-$H64)*F64 -> -17.88127646 | K64: 0
C65: ='1.0'!D123 -> Corporate Miscellaneous Revenue | D65: ='1.0'!H123 -> -5.097498701 | E65: =$E$26 -> 0.65 | F65: =1-E65 -> 0.35 | I65: -3.313374156 | J65: -1.784124545 | K65: 0
B66: Total | D66: =SUM(D64:D65) -> -56.18686002 | H66: =SUM(H64:H65) -> 0 | I66: =SUM(I64:I65) -> -36.52145902 | J66: =SUM(J64:J65) -> -19.66540101 | K66: =SUM(K64:K65) -> 0
B68: ='1.0'!$C$126 -> Deferral Accounts, Revenue Offsets & Other
C69: ='1.0'!D127 -> Subsidiary Net Income | D69: ='1.0'!H127 -> 0 | E69: =$E$26 -> 0.65 | F69: =1-E69 -> 0.35 | I69: =($D69-$H69)*E69 -> 0 | J69: =($D69-$H69)*F69 -> 0 | K69: 0
C70: ='1.0'!D128 -> Other Utility Revenue | D70: ='1.0'!H128 -> 0 | E70: =$E$26 -> 0.65 | F70: =1-E70 -> 0.35 | I70: 0 | J70: 0 | K70: 0
C71: Deferral Rider Revenue | D71: ='1.0'!H129 -> 0 | E71: =$E$26 -> 0.65 | F71: =1-E71 -> 0.35 | I71: 0 | J71: 0 | K71: 0
C72: ='1.0'!D130 -> Intersegment revenues | D72: ='1.0'!H130 -> 0 | E72: =$E$26 -> 0.65 | F72: =1-E72 -> 0.35 | I72: 0 | J72: 0 | K72: 0
C73: ='1.0'!D131 -> Internal Allocations (GRTA, SDA) | D73: ='1.0'!H131 -> 148.2740661 | E73: =IF('4.0'!E26="SQ",0.65,1) -> 0.65 | F73: =1-E73 -> 0.35 | I73: 96.378143 | J73: 51.89592315 | K73: 0
B74: Total | D74: =SUM(D69:D73) -> 148.2740661 | H74: =SUM(H69:H73) -> 0 | I74: =SUM(I69:I73) -> 96.378143 | J74: =SUM(J69:J73) -> 51.89592315 | K74: =SUM(K69:K73) -> 0
B76: Total Distribution Costs | D76: =D66+D61+D54+D45+D37+D29+D20+D74 -> 958.4509867 | H76: =H66+H61+H54+H45+H37+H29+H20+H74 -> 4.619064913 | I76: =I66+I61+I54+I45+I37+I29+I20+I74 -> 619.9907492 | J76: =J66+J61+J54+J45+J37+J29+J20+J74 -> 333.8411726 | K76: =K66+K61+K54+K45+K37+K29+K20+K74 -> 0

Sheet 2.3
A1: Classification of Customer Care Function
A2: (Functionalized Costs from Schedule 1.0)
D4: Functionalized Costs | E4: Demand Related | F4: Customer Related | G4: Demand Costs | H4: Customer Costs
B6: ='1.0'!$C$5 -> Cost of Energy
C7: ='1.0'!D6 -> IPPs and Long-term Purchases commitment | D7: ='1.0'!I6 -> 0 | E7: =IF('4.0'!E27="SQ",0.65,0) -> 0.65 | F7: =1-E7 -> 0.35 | G7: =D7*E7 -> 0 | H7: =D7*F7 -> 0
C8: ='1.0'!D7 -> Domestic Transmission (Non-Heritage) | D8: ='1.0'!I7 -> 0 | E8: =$E$7 -> 0.65 | F8: =1-E8 -> 0.35 | G8: 0 | H8: 0
C9: ='1.0'!D8 -> NIA Generation | D9: ='1.0'!I8 -> 0 | E9: =$E$7 -> 0.65 | F9: 0.35 | G9: 0 | H9: 0
C10: ='1.0'!D9 -> Gas Transportation | D10: ='1.0'!I9 -> 0 | E10: 0.65 | F10: 0.35 | G10: 0 | H10: 0
C11: ='1.0'!D10 -> Water Rentals | D11: ='1.0'!I10 -> 0 | E11: 0.65 | F11: 0.35 | G11: 0 | H11: 0
C12: ='1.0'!D11 -> Market Purchases | D12: ='1.0'!I11 -> 0 | E12: 0.65 | F12: 0.35 | G12: 0 | H12: 0
C13: ='1.0'!D12 -> Natural gas for thermal generation | D13: ='1.0'!I12 -> 0 | E13: 0.65 | F13: 0.35 | G13: 0 | H13: 0
C14: ='1.0'!D13 -> Domestic Transmission (Heritage) | D14: ='1.0'!I13 -> 0 | E14: 0.65 | F14: 0.35 | G14: 0 | H14: 0
C15: ='1.0'!D15 -> Other and Surplus Sales | D15: ='1.0'!I15 -> 0 | E15: 0.65 | F15: 0.35 | G15: 0 | H15: 0
B16: Total | D16: =SUM(D7:D15) -> 0 | G16: =SUM(G7:G15) -> 0 | H16: =SUM(H7:H15) -> 0
B18: ='1.0'!$C$21 -> O M & A Expenses
C19: ='1.0'!D31 -> Generation | D19: ='1.0'!I31 -> 9.4286305 | E19: =$E$7 -> 0.65 | F19: =1-E19 -> 0.35 | G19: =D19*E19 -> 6.128609825 | H19: =D19*F19 -> 3.300020675
C20: ='1.0'!D37 -> Transmission | D20: ='1.0'!I37 -> 0 | E20: 0.65 | F20: 0.35 | G20: =D20*E20 -> 0 | H20: =D20*F20 -> 0
C21: ='1.0'!D44 -> Distribution | D21: ='1.0'!I44 -> 0 | E21: 0.65 | F21: 0.35 | G21: =D21*E21 -> 0 | H21: =D21*F21 -> 0
C22: Customer Care | D22: ='1.0'!I47 -> 106.9341381 | E22: 0.65 | F22: 0.35 | G22: =D22*E22 -> 69.50718973 | H22: =D22*F22 -> 37.42694832
C23: ='1.0'!D58 -> Corp Service | D23: ='1.0'!I58 -> 12.62581367 | E23: 0.65 | F23: 0.35 | G23: =D23*E23 -> 8.206778887 | H23: =D23*F23 -> 4.419034785
B24: Total | D24: =SUM(D19:D23) -> 128.9885822 | G24: =SUM(G19:G23) -> 83.84257844 | H24: =SUM(H19:H23) -> 45.14600378
B26: ='1.0'!$C$61 -> Depreciation & Amortization
C27: ='1.0'!D65 -> Generation | D27: ='1.0'!I65 -> 0 | E27: =$E$7 -> 0.65 | F27: =1-E27 -> 0.35 | G27: =D27*E27 -> 0 | H27: =D27*F27 -> 0
C28: ='1.0'!D69 -> Transmission | D28: ='1.0'!I69 -> 0 | E28: 0.65 | F28: 0.35 | G28: 0 | H28: =D28*F28 -> 0
C29: ='1.0'!D74 -> Distribution | D29: ='1.0'!I74 -> 0 | E29: 0.65 | F29: 0.35 | G29: 0 | H29: =D29*F29 -> 0
C30: Customer Care | D30: ='1.0'!I76 -> 25.8 | E30: 0.65 | F30: 0.35 | G30: 16.77 | H30: =D30*F30 -> 9.03
C31: ='1.0'!D80 -> Corporate Services | D31: ='1.0'!I80 -> 1.339742257 | E31: 0.65 | F31: 0.35 | G31: 0.870832467 | H31: =D31*F31 -> 0.4689097899
B32: Total | D32: =SUM(D27:D31) -> 27.13974226 | G32: =SUM(G27:G31) -> 17.64083247 | H32: =SUM(H27:H31) -> 9.49890979
B34: ='1.0'!$C$83 -> Taxes
C35: ='1.0'!D84 -> Generation | D35: ='1.0'!I84 -> 0 | E35: =$E$7 -> 0.65 | F35: =1-E35 -> 0.35 | G35: =D35*E35 -> 0 | H35: =D35*F35 -> 0
C36: ='1.0'!D85 -> Transmission | D36: ='1.0'!I85 -> 0 | E36: 0.65 | F36: 0.35 | G36: 0 | H36: 0
C37: ='1.0'!D86 -> Distribution | D37: ='1.0'!I86 -> 0 | E37: 0.65 | F37: 0.35 | G37: 0 | H37: 0
C38: ='1.0'!D87 -> Customer Care | D38: ='1.0'!I87 -> 5.754555554 | E38: 0.65 | F38: 0.35 | G38: 3.74046111 | H38: 2.014094444
C39: ='1.0'!D88 -> Corporate | D39: ='1.0'!I88 -> 1.186766312 | E39: 0.65 | F39: 0.35 | G39: 0.7713981025 | H39: 0.4153682091
B40: Total | D40: =SUM(D35:D39) -> 6.941321865 | G40: =SUM(G35:G39) -> 4.511859213 | H40: =SUM(H35:H39) -> 2.429462653
B42: ='1.0'!$C$91 -> Finance Charges
C43: ='1.0'!D92 -> Generation | D43: ='1.0'!I92 -> 0 | E43: =$E$7 -> 0.65 | F43: =1-E43 -> 0.35 | G43: =D43*E43 -> 0 | H43: =D43*F43 -> 0
C44: ='1.0'!D93 -> Transmission | D44: ='1.0'!I93 -> 0 | E44: 0.65 | F44: 0.35 | G44: 0 | H44: =D44*F44 -> 0
C45: ='1.0'!D94 -> Distribution | D45: ='1.0'!I94 -> 0 | E45: 0.65 | F45: 0.35 | G45: 0 | H45: =D45*F45 -> 0
C46: ='1.0'!D95 -> Customer Care | D46: ='1.0'!I95 -> -0.001295373444 | E46: 0.65 | F46: 0.35 | G46: -0.0008419927383 | H46: =D46*F46 -> -0.0004533807052
C47: Interest on Regulatory Accounts | D47: ='1.0'!I108 -> 9.817065286e-05 | E47: 0.65 | F47: 0.35 | G47: 6.381092436e-05 | H47: =+D47*F47 -> 3.43597285e-05
C48: Regulatory Account Recoveries | D48: ='1.0'!I111 -> 4.172951523e-05 | E48: 0.65 | F48: 0.35 | G48: 2.71241849e-05 | H48: 1.460533033e-05
B49: Total | D49: =SUM(D43:D48) -> -0.001155473275 | G49: =SUM(G43:G48) -> -0.000751057629 | H49: =SUM(H43:H48) -> -0.0004044156464
B51: ='1.0'!$C$114 -> Allowed Net Income
C52: ='1.0'!D115 -> Generation | D52: ='1.0'!I115 -> 0 | E52: =$E$7 -> 0.65 | F52: =1-E52 -> 0.35 | G52: =D52*E52 -> 0 | H52: =D52*F52 -> 0
C53: Transmission | D53: ='1.0'!I116 -> 0 | E53: 0.65 | F53: =1-E53 -> 0.35 | G53: =D53*E53 -> 0 | H53: =D53*F53 -> 0
C54: ='1.0'!D117 -> Distribution | D54: ='1.0'!I117 -> 0 | E54: =$E$7 -> 0.65 | F54: =1-E54 -> 0.35 | G54: =D54*E54 -> 0 | H54: =D54*F54 -> 0
C55: ='1.0'!D118 -> Customer Care | D55: ='1.0'!I118 -> -0.001162037843 | E55: 0.65 | F55: 0.35 | G55: =D55*E55 -> -0.0007553245982 | H55: =D55*F55 -> -0.0004067132452
B56: Total | D56: =SUM(D52:D55) -> -0.001162037843 | G56: =SUM(G52:G55) -> -0.0007553245982 | H56: =SUM(H52:H55) -> -0.0004067132452
B58: ='1.0'!$C$121 -> Miscellaneous Revenues
C59: ='1.0'!D122 -> Non Tariff Revenue (Functionalized) | D59: ='1.0'!I122 -> -18.72813103 | E59: =$E$7 -> 0.65 | F59: =1-E59 -> 0.35 | G59: =D59*E59 -> -12.17328517 | H59: =D59*F59 -> -6.554845862
C60: ='1.0'!D123 -> Corporate Miscellaneous Revenue | D60: ='1.0'!I123 -> -1.868620416 | E60: 0.65 | F60: 0.35 | G60: =D60*E60 -> -1.21460327 | H60: =D60*F60 -> -0.6540171456
B61: Total | D61: =SUM(D59:D60) -> -20.59675145 | G61: =SUM(G59:G60) -> -13.38788844 | H61: =SUM(H59:H60) -> -7.208863007
B63: ='1.0'!$C$126 -> Deferral Accounts, Revenue Offsets & Other
C64: ='1.0'!D127 -> Subsidiary Net Income | D64: ='1.0'!I127 -> 0 | E64: =$E$7 -> 0.65 | F64: =1-E64 -> 0.35 | G64: =D64*E64 -> 0 | H64: =D64*F64 -> 0
C65: ='1.0'!D128 -> Other Utility Revenue | D65: ='1.0'!I128 -> 0 | E65: 0.65 | F65: 0.35 | G65: 0 | H65: 0
C66: Deferral Rider Revenue | D66: ='1.0'!I129 -> 0 | E66: 0.65 | F66: 0.35 | G66: 0 | H66: 0
C67: ='1.0'!D130 -> Intersegment revenues | D67: ='1.0'!I130 -> 0 | E67: 0.65 | F67: 0.35 | G67: 0 | H67: 0
C68: ='1.0'!D131 -> Internal Allocations (GRTA, SDA) | D68: ='1.0'!I131 -> 0 | E68: 0.65 | F68: 0.35 | G68: 0 | H68: 0
B69: Total | D69: ='1.0'!I132 -> 0 | G69: =SUM(G64:G65) -> 0 | H69: =SUM(H64:H65) -> 0
B71: Total Customer Care Costs | D71: =D61+D56+D49+D40+D32+D24+D16+D69 -> 142.4705774 | G71: =G61+G56+G49+G40+G32+G24+G16+G69 -> 92.6058753 | H71: =H61+H56+H49+H40+H32+H24+H16+H69 -> 49.86470208
D73: =IF(ROUND(D71,2)<>ROUND('1.0'!I134,2),"error","") -> 

Sheet 3.0
B1: Allocation of Generation Costs
B2: (Classified Costs from Schedule 2.0)
B4: Cost Classification | C4: Generation Demand | D4: Generation Demand-Related Costs | E4: Generation Energy | F4: Generation Energy Related Costs
B5: Allocation Basis | C5: 4 CP Demand including losses (Sched 5.1) | D5: ='2.0'!G77 -> 754.0476274 | E5: Energy Including Loss (Sched 5.0) | F5: ='2.0'!H77 -> 1839.280731
B6: Residential | C6: ='5.1'!H5 -> 0.4648068649 | D6: =C6*D$5 -> 350.4865137 | E6: ='5.0'!K5 -> 0.3579163709 | F6: =E6*F$5 -> 658.3086844
B7: GS Under 35 kW | C7: ='5.1'!H6 -> 0.07158613979 | D7: 53.97935886 | E7: ='5.0'!K6 -> 0.07070519671 | F7: 130.0467059
B8: MGS < 150 kW | C8: ='5.1'!H7 -> 0.06636708318 | D8: 50.04394161 | E8: ='5.0'!K9 -> 0.06528460854 | F8: 120.0767226
B9: LGS > 150 kW | C9: ='5.1'!H8 -> 0.1859977379 | D9: 140.251153 | E9: ='5.0'!K12 -> 0.2110541393 | F9: 388.1878116
B10: Irrigation | C10: ='5.1'!H9 -> 0 | D10: 0 | E10: ='5.0'!K13 -> 0.001512540249 | F10: 2.781986135
B11: Street Lighting | C11: ='5.1'!H10 -> 0.006861749761 | D11: 5.174086127 | E11: ='5.0'!K14 -> 0.004388700369 | F11: 8.072052025
B12: Transmission | C12: ='5.1'!H11 -> 0.2043804245 | D12: 154.1125742 | E12: ='5.0'!K15 -> 0.289138444 | F12: 531.8067688
B13: Total | C13: =SUM(C6:C12) -> 1 | D13: =SUM(D6:D12) -> 754.0476274 | E13: =SUM(E6:E12) -> 1 | F13: =SUM(F6:F12) -> 1839.280731

Sheet 3.1
B1: Allocation of Transmission Costs
B2: (Classified Costs from Schedule 2.1)
B4: Cost Classification | C4: Transmission Demand | D4: Demand Related Costs (Sched 2.1)
B5: Allocation Basis | C5: 4 CP demand including losses (Sched 5.1) | D5: ='2.1'!F71 -> 765.4532982
B6: Residential | C6: ='5.1'!H5 -> 0.4648068649 | D6: =C6*D$5 -> 355.7879477
B7: GS Under 35 kW | C7: ='5.1'!H6 -> 0.07158613979 | D7: 54.7958468
B8: MGS < 150 kW | C8: ='5.1'!H7 -> 0.06636708318 | D8: =C8*D$5 -> 50.80090271
B9: LGS > 150 kW | C9: ='5.1'!H8 -> 0.1859977379 | D9: =C9*D$5 -> 142.3725819
B10: Irrigation | C10: ='5.1'!H9 -> 0 | D10: =C10*D$5 -> 0
B11: Street Lighting | C11: ='5.1'!H10 -> 0.006861749761 | D11: 5.252348986
B12: Transmission | C12: ='5.1'!H11 -> 0.2043804245 | D12: 156.44367
B13: Total | C13: =SUM(C6:C12) -> 1 | D13: =SUM(D6:D12) -> 765.4532982

Sheet 3.2
B1: Allocation of Distribution Costs
B2: (Classified Costs from Schedule 2.2)
B4: Cost Classification | C4: Distribution Demand Related | D4: Distribution Demand-Related | E4: Distribution Transformer Related | F4: Distribution Transformer Related | G4: Distribution Customer Related | H4: Distribution Customer Related | I4: Distribution SMI Energy Related | J4: Distribution SMI Energy Related | K4: Distribution Metering Related | L4: Distribution Metering Related | M4: Street Light Customer | N4: Street Light Customer Related
B5: Allocation Basis | C5: NCP (Sched 5.1) | D5: ='2.2'!I76-(F5*0.5) -> 619.9907492 | E5: Transformer Allocator (Sched 5.4) | F5: =IF('4.0'!E31="SQ",0,'6.0'!$E$7*('2.2'!D76-'2.2'!D73)) -> 0 | G5: Customer Count (Sched 5.2) | H5: ='2.2'!J76-(F5*0.5)-IF('4.0'!$E$32="SQ",0,L5) -> 333.8411726 | I5: Energy Including Loss (Sched 5.0) | J5: ='2.2'!K76 -> 0 | K5: Metering Allocator (Sched 5.2) | L5: =IF('4.0'!$E$32="SQ",0,'2.2'!J76*'6.0'!K6) -> 0 | M5: Street Light Direct Assignment | N5: ='2.2'!H76 -> 4.619064913
B6: Residential | C6: ='5.1'!I5 -> 0.5428523497 | D6: =C6*D$5 -> 336.563435 | E6: ='5.4'!E4 -> 0.6551095745 | F6: 0 | G6: ='5.2'!D4 -> 0.8885177377 | H6: =G6*H$5 -> 296.6238035 | I6: ='5.0'!K5 -> 0.3579163709 | J6: 0 | K6: ='5.2'!F4 -> 0.7715240213 | L6: =K6*L$5 -> 0 | M6: 0 | N6: =M6*N$5 -> 0
B7: GS Under 35 kW | C7: ='5.1'!I6 -> 0.1033060148 | D7: 64.04877348 | E7: ='5.4'!E5 -> 0.1680318764 | F7: 0 | G7: ='5.2'!D5 -> 0.09189191554 | H7: 30.67730484 | I7: ='5.0'!K6 -> 0.07070519671 | J7: 0 | K7: ='5.2'!F5 -> 0.1595844792 | L7: 0 | M7: 0 | N7: 0
B8: MGS < 150 kW | C8: ='5.1'!I7 -> 0.09104345187 | D8: =C8*D$5 -> 56.44609793 | E8: ='5.4'!E6 -> 0.1074441281 | F8: 0 | G8: ='5.2'!D6 -> 0.009377367733 | H8: =G8*H$5 -> 3.13055144 | I8: ='5.0'!K9 -> 0.06528460854 | J8: 0 | K8: ='5.2'!F6 -> 0.04885573459 | L8: 0 | M8: 0 | N8: =M8*N$5 -> 0
B9: LGS > 150 kW | C9: ='5.1'!I8 -> 0.2513496136 | D9: =C9*D$5 -> 155.8344353 | E9: ='5.4'!E7 -> 0.05405442516 | F9: 0 | G9: ='5.2'!D7 -> 0.003253031749 | H9: =G9*H$5 -> 1.085995934 | I9: ='5.0'!K12 -> 0.2110541393 | J9: 0 | K9: ='5.2'!F7 -> 0.01694817355 | L9: 0 | M9: 0 | N9: =M9*N$5 -> 0
B10: Irrigation | C10: ='5.1'!I9 -> 0.004337381451 | D10: =C10*D$5 -> 2.689136375 | E10: ='5.4'!E8 -> 0.005359995537 | F10: 0 | G10: ='5.2'!D8 -> 0.001777896471 | H10: =G10*H$5 -> 0.5935350427 | I10: ='5.0'!K13 -> 0.001512540249 | J10: 0 | K10: ='5.2'!F8 -> 0.003087591337 | L10: 0 | M10: 0 | N10: =M10*N$5 -> 0
B11: Street Lighting | C11: ='5.1'!I10 -> 0.007111188609 | D11: =C11*D$5 -> 4.408871153 | E11: ='5.4'!E9 -> 0.01000000053 | F11: 0 | G11: ='5.2'!D9 -> 0.00502910481 | H11: =G11*H$5 -> 1.678922247 | I11: ='5.0'!K14 -> 0.004388700369 | J11: 0 | K11: ='5.2'!F9 -> 0 | L11: 0 | M11: 1 | N11: =N5 -> 4.619064913
B12: Transmission | C12: ='5.1'!I11 -> 0 | D12: 0 | E12: ='5.4'!E10 -> 0 | F12: 0 | G12: ='5.2'!D10 -> 0.0001529459646 | H12: 0.05105966017 | I12: ='5.0'!K15 -> 0.289138444 | J12: 0 | K12: ='5.2'!F10 -> 0 | L12: 0 | M12: 0 | N12: 0
B13: Total | C13: =SUM(C6:C12) -> 1 | D13: 619.9907492 | E13: 1 | F13: 0 | G13: 1 | H13: 333.8411726 | I13: 1 | J13: 0 | K13: =SUM(K6:K12) -> 1 | L13: 0 | M13: 1 | N13: 4.619064913

Sheet 3.3
B1: Allocation of Customer Care Costs
B2: (Classified Costs from Schedule 2.3)
B4: Cost Classification | C4: Customer Care Demand | D4: Customer Care Demand Related Costs | E4: Customer Care Customer | F4: Customer Care Customer Related Costs
B5: Allocation Basis | C5: NCP Sched 5.1 | D5: ='2.3'!G71 -> 92.6058753 | E5: Blended Customer Count & Revenue Sched 5.3 | F5: ='2.3'!H71 -> 49.86470208
B6: Residential | C6: ='5.1'!I5 -> 0.5428523497 | D6: =C6*D$5 -> 50.271317 | E6: ='5.3'!M4 -> 0.8295841827 | F6: =E6*F$5 -> 41.36696813
B7: GS Under 35 kW | C7: ='5.1'!I6 -> 0.1033060148 | D7: 9.56674392 | E7: ='5.3'!M5 -> 0.09058420623 | F7: 4.516954457
B8: MGS < 150 kW | C8: ='5.1'!I7 -> 0.09104345187 | D8: =C8*D$5 -> 8.431158551 | E8: ='5.3'!M6 -> 0.02468661188 | F8: =E8*F$5 -> 1.230990547
B9: LGS > 150 kW | C9: ='5.1'!I8 -> 0.2513496136 | D9: =C9*D$5 -> 23.27645098 | E9: ='5.3'!M7 -> 0.02450818002 | F9: =E9*F$5 -> 1.222093095
B10: Irrigation | C10: ='5.1'!I9 -> 0.004337381451 | D10: =C10*D$5 -> 0.4016670058 | E10: ='5.3'!M8 -> 0.0006601528687 | F10: =E10*F$5 -> 0.03291832613
B11: Street Lighting | C11: ='5.1'!I10 -> 0.007111188609 | D11: =C11*D$5 -> 0.6585378456 | E11: ='5.3'!M9 -> 0.009765060387 | F11: =E11*F$5 -> 0.4869318271
B12: Transmission | C12: ='5.1'!I11 -> 0 | D12: 0 | E12: ='5.3'!M10 -> 0.0202116059 | F12: 1.007845707
B13: Total | C13: =SUM(C6:C12) -> 1 | D13: =SUM(D6:D12) -> 92.6058753 | E13: =SUM(E6:E12) -> 1 | F13: =SUM(F6:F12) -> 49.86470208

Sheet 4.0
B1: Summary of Costs by Functions and Revenue to Cost Ratios
B3: Rate Class | C3: Generation Costs | D3: Transmission Costs | E3: Distribution Costs | F3: Customer Care Costs | G3: Total Cost | H3: Total Revenue | I3: Revenue - Cost ($ million) | J3: Updated Rev/Cost Ratio | K3: SQ Rev/Cost Ratio | L3: Δ from SQ Rev/Cost Ratio | M3: Δ from SQ is
B4: Residential | C4: ='3.0'!D6+'3.0'!F6 -> 1008.795198 | D4: ='3.1'!D6 -> 355.7879477 | E4: ='3.2'!D6+'3.2'!H6+'3.2'!N6+'3.2'!J6+'3.2'!F6+'3.2'!L6 -> 633.1872384 | F4: =+'3.3'!D6+'3.3'!F6 -> 91.63828513 | G4: =SUM(C4:F4) -> 2089.408669 | H4: ='5.3'!H4 -> 1917.574679 | I4: =H4-G4 -> -171.8339903 | J4: =H4/G4 -> 0.9177595112 | K4: 0.9177595112 | L4: =J4-K4 -> 0 | M4: =IF(K4=J4,"",(IF(K4<1,IF(L4>0,"better","worse"),IF(L4<0,"better","worse")))) -> 
B5: GS Under 35 kW | C5: ='3.0'!D7+'3.0'!F7 -> 184.0260648 | D5: ='3.1'!D7 -> 54.7958468 | E5: ='3.2'!D7+'3.2'!H7+'3.2'!N7+'3.2'!J7+'3.2'!F7+'3.2'!L7 -> 94.72607832 | F5: =+'3.3'!D7+'3.3'!F7 -> 14.08369838 | G5: =SUM(C5:F5) -> 347.6316883 | H5: ='5.3'!H5 -> 411.8219197 | I5: =H5-G5 -> 64.19023138 | J5: 1.184650115 | K5: 1.184650115 | L5: =J5-K5 -> 0 | M5: =IF(K5=J5,"",(IF(K5<1,IF(L5>0,"better","worse"),IF(L5<0,"better","worse")))) -> 
B6: MGS < 150 kW | C6: ='3.0'!D8+'3.0'!F8 -> 170.1206642 | D6: ='3.1'!D8 -> 50.80090271 | E6: ='3.2'!D8+'3.2'!H8+'3.2'!N8+'3.2'!J8+'3.2'!F8+'3.2'!L8 -> 59.57664937 | F6: =+'3.3'!D8+'3.3'!F8 -> 9.662149098 | G6: 290.1603653 | H6: ='5.3'!H6 -> 360.5034884 | I6: =H6-G6 -> 70.34312304 | J6: =H6/G6 -> 1.242428434 | K6: 1.242428434 | L6: 0
B7: LGS > 150 kW | C7: ='3.0'!D9+'3.0'!F9 -> 528.4389646 | D7: ='3.1'!D9 -> 142.3725819 | E7: ='3.2'!D9+'3.2'!H9+'3.2'!N9+'3.2'!J9+'3.2'!F9+'3.2'!L9 -> 156.9204312 | F7: =+'3.3'!D9+'3.3'!F9 -> 24.49854407 | G7: 852.2305217 | H7: ='5.3'!H7 -> 836.1437148 | I7: -16.08680693 | J7: =H7/G7 -> 0.9811238784 | K7: 0.9811238784 | L7: 0
B8: Irrigation | C8: ='3.0'!D10+'3.0'!F10 -> 2.781986135 | D8: ='3.1'!D10 -> 0 | E8: ='3.2'!D10+'3.2'!H10+'3.2'!N10+'3.2'!J10+'3.2'!F10+'3.2'!L10 -> 3.282671418 | F8: =+'3.3'!D10+'3.3'!F10 -> 0.4345853319 | G8: 6.499242884 | H8: ='5.3'!H8 -> 6.043344345 | I8: -0.4558985397 | J8: 0.9298535925 | K8: 0.9298535925 | L8: 0
B9: Street Lighting | C9: ='3.0'!D11+'3.0'!F11 -> 13.24613815 | D9: ='3.1'!D11 -> 5.252348986 | E9: ='3.2'!D11+'3.2'!H11+'3.2'!N11+'3.2'!J11+'3.2'!F11+'3.2'!L11 -> 10.70685831 | F9: =+'3.3'!D11+'3.3'!F11 -> 1.145469673 | G9: 30.35081512 | H9: ='5.3'!H9 -> 38.38658048 | I9: 8.035765358 | J9: 1.264762753 | K9: 1.264762753 | L9: 0
B10: Transmission | C10: ='3.0'!D12+'3.0'!F12 -> 685.919343 | D10: ='3.1'!D12 -> 156.44367 | E10: ='3.2'!D12+'3.2'!H12+'3.2'!N12+'3.2'!J12+'3.2'!F12+'3.2'!L12 -> 0.05105966017 | F10: =+'3.3'!D12+'3.3'!F12 -> 1.007845707 | G10: 843.4219184 | H10: ='5.3'!H10 -> 889.3185089 | I10: 45.89659053 | J10: 1.054417119 | K10: 1.054417119 | L10: 0
B11: Total Classes | C11: =SUM(C4:C10) -> 2593.328359 | D11: =SUM(D4:D10) -> 765.4532982 | E11: =SUM(E4:E10) -> 958.4509867 | F11: =SUM(F4:F10) -> 142.4705774 | G11: =ROUND(SUM(G4:G10),2) -> 4459.7 | H11: =SUM(H4:H10) -> 4459.792236 | I11: 0.09223564181 | J11: 1.000020682 | K11: 1.000020682
B13: Preferred or Status Quo (SQ) Options
B14: Functionalization | D14: Choose from dropdown menus:
B15: IT costs | E15: SQ | G15: Preferred: IT costs changed from 100% Generation to functionalized total OMA
B16: IPP Capital Leases | E16: SQ | G16: Preferred: Costs functionalized as 100% Generation
B17: ERP Costs | E17: SQ | G17: Preferred: Energy & Resource Planning & Economic Development costs as 100% Generation
B18: Corporate Tax & Depreciation | E18: SQ | G18: Preferred: Portion of corporate costs assigned to Transmission
B19: DSM | E19: SQ | G19: Preferred: Functionalized as 90-5-5 Generation-Transmission-Distribution
B20: Regulatory Accounts | E20: SQ | G20: Preferred: Functionalized by cost causation
B21: Classification
B22: IPP costs | E22: SQ | G22: Preferred: Energy 93%
B23: Heritage Hydro | E23: SQ | G23: Preferred: Option 1B Load Factor. Also shows Capacity Factor (Option 3) & 50-50.
B24: Thermal OMA | E24: SQ | G24: Status Quo is Preferred - Minimal impact from alternative 100% demand for thermal
B25: SMI | E25: SQ | G25: Preferred: Option 1 100% Customer Classification
B26: Distribution | E26: SQ | G26: Preferred: Sub-functionalization and classification by sub-functions
B27: Customer Care | E27: SQ | G27: Preferred: 100% Customer
B28: Allocation
B29: Energy: Single Year vs. 5-Year Average | E29: F16 | G29: Preferred: F16
B30: Demand: Single Year vs. 5-Year Average | E30: F13 | G30: Preferred: 5-Year Average
B31: Distribution Transformers | E31: SQ | G31: Preferred: Transformer direct assignment
B32: Weighted Metering Allocators | E32: SQ | G32: Preferred: Metering allocator weighted by rate class meter cost

Sheet 4.1
B1: Summary of Costs by Classification
B3: Cost Classes | C3: Energy Related Costs | D3: Generation Demand Related Costs | E3: Transmission Demand Related Costs | F3: Distribution Demand Related Costs | G3: Total Demand Related Costs | H3: Customer Related Costs | I3: Total
B4: Residential | C4: ='3.0'!F6+'3.2'!J6 -> 658.3086844 | D4: ='3.0'!D6 -> 350.4865137 | E4: ='3.1'!D6 -> 355.7879477 | F4: ='3.2'!D6+'3.2'!F6*0.5+'3.3'!D6 -> 386.834752 | G4: =SUM(D4:F4) -> 1093.109213 | H4: =+'3.2'!H6+'3.2'!N6+'3.2'!F6*0.5+'3.2'!L6+'3.3'!F6 -> 337.9907716 | I4: =C4+G4+H4 -> 2089.408669
B5: GS Under 35 kW | C5: ='3.0'!F7+'3.2'!J7 -> 130.0467059 | D5: ='3.0'!D7 -> 53.97935886 | E5: ='3.1'!D7 -> 54.7958468 | F5: ='3.2'!D7+'3.2'!F7*0.5+'3.3'!D7 -> 73.6155174 | G5: 182.3907231 | H5: =+'3.2'!H7+'3.2'!N7+'3.2'!F7*0.5+'3.2'!L7+'3.3'!F7 -> 35.1942593 | I5: 347.6316883
B6: MGS < 150 kW | C6: ='3.0'!F8+'3.2'!J8 -> 120.0767226 | D6: ='3.0'!D8 -> 50.04394161 | E6: ='3.1'!D8 -> 50.80090271 | F6: ='3.2'!D8+'3.2'!F8*0.5+'3.3'!D8 -> 64.87725648 | G6: =SUM(D6:F6) -> 165.7221008 | H6: =+'3.2'!H8+'3.2'!N8+'3.2'!F8*0.5+'3.2'!L8+'3.3'!F8 -> 4.361541987 | I6: =C6+G6+H6 -> 290.1603653
B7: LGS > 150 kW | C7: ='3.0'!F9+'3.2'!J9 -> 388.1878116 | D7: ='3.0'!D9 -> 140.251153 | E7: ='3.1'!D9 -> 142.3725819 | F7: ='3.2'!D9+'3.2'!F9*0.5+'3.3'!D9 -> 179.1108862 | G7: 461.7346211 | H7: =+'3.2'!H9+'3.2'!N9+'3.2'!F9*0.5+'3.2'!L9+'3.3'!F9 -> 2.308089029 | I7: 852.2305217
B8: Irrigation | C8: ='3.0'!F10+'3.2'!J10 -> 2.781986135 | D8: ='3.0'!D10 -> 0 | E8: ='3.1'!D10 -> 0 | F8: ='3.2'!D10+'3.2'!F10*0.5+'3.3'!D10 -> 3.090803381 | G8: 3.090803381 | H8: =+'3.2'!H10+'3.2'!N10+'3.2'!F10*0.5+'3.2'!L10+'3.3'!F10 -> 0.6264533688 | I8: 6.499242884
B9: Street Lighting | C9: ='3.0'!F11+'3.2'!J11 -> 8.072052025 | D9: ='3.0'!D11 -> 5.174086127 | E9: ='3.1'!D11 -> 5.252348986 | F9: ='3.2'!D11+'3.2'!F11*0.5+'3.3'!D11 -> 5.067408999 | G9: 15.49384411 | H9: =+'3.2'!H11+'3.2'!N11+'3.2'!F11*0.5+'3.2'!L11+'3.3'!F11 -> 6.784918987 | I9: 30.35081512
B10: Transmission | C10: ='3.0'!F12+'3.2'!J12 -> 531.8067688 | D10: ='3.0'!D12 -> 154.1125742 | E10: ='3.1'!D12 -> 156.44367 | F10: ='3.2'!D12+'3.2'!F12*0.5+'3.3'!D12 -> 0 | G10: 310.5562442 | H10: =+'3.2'!H12+'3.2'!N12+'3.2'!F12*0.5+'3.2'!L12+'3.3'!F12 -> 1.058905367 | I10: 843.4219184
B11: Total Classes | C11: =SUM(C4:C10) -> 1839.280731 | D11: 754.0476274 | E11: 765.4532982 | F11: 712.5966245 | G11: 2232.09755 | H11: 388.3249396 | I11: =SUM(I4:I10) -> 4459.703221

Sheet 5.0
B1: Energy Allocators
B3: F10 - F14 | C3: Energy @ Customer Meter | D3: Distribution Loss Factor | E3: Energy @ Transmission Interface | F3: Transmission Loss Factor | G3: Energy @ Generation Interface | H3: Energy by Rate Class | I3: Energy at Generator Allocation Factor | K3: =CONCATENATE("Selection from 4.0: ",'4.0'!E29) -> Selection from 4.0: F16
C4: (MWh) | E4: (MWh) | G4: (MWh)
B5: Residential | C5: 17890814.57 | D5: 0.06 | E5: =C5*(1+D5) -> 18964263.44 | F5: 0.06 | G5: =E5*(1+F5) -> 20102119.25 | H5: =G5 -> 20102119.25 | I5: =H5/H$16 -> 0.3594571274 | K5: =IF('4.0'!$E$29="F16",I20,IF('4.0'!$E$29="F13",I35,I5)) -> 0.3579163709
B6: GS Under 35 kW | C6: 3918567.371 | D6: =D5 -> 0.06 | E6: =C6*(1+D6) -> 4153681.413 | F6: =F5 -> 0.06 | G6: =E6*(1+F6) -> 4402902.298 | H6: =G6 -> 4402902.298 | I6: =H6/H$16 -> 0.07873073442 | K6: =IF('4.0'!$E$29="F16",I21,IF('4.0'!$E$29="F13",I36,I6)) -> 0.07070519671
B7: MGS < 150 kW Primary | C7: 96180.29424 | D7: 0.0344 | E7: 99488.89636 | F7: 0.06 | G7: 105458.2301
B8: MGS < 150 kW Secondary | C8: 3447436.476 | D8: =D6 -> 0.06 | E8: 3654282.665 | F8: 0.06 | G8: 3873539.624
B9: MGS | H9: =+G7+G8 -> 3978997.855 | I9: =H9/H$16 -> 0.07115066431 | K9: =IF('4.0'!$E$29="F16",I24,IF('4.0'!$E$29="F13",I39,I9)) -> 0.06528460854
B10: LGS > 150 kW Primary | C10: 6981482.558 | D10: =D7 -> 0.0344 | E10: 7221645.558 | F10: =F8 -> 0.06 | G10: 7654944.291
B11: LGS > 150 kW Secondary | C11: 3707421.97 | D11: =D8 -> 0.06 | E11: 3929867.289 | F11: 0.06 | G11: 4165659.326
B12: LGS | H12: =G10+G11 -> 11820603.62 | I12: =H12/H$16 -> 0.2113707598 | K12: =IF('4.0'!$E$29="F16",I27,IF('4.0'!$E$29="F13",I42,I12)) -> 0.2110541393
B13: Irrigation | C13: 73801.3799 | D13: =D5 -> 0.06 | E13: 78229.4627 | F13: =F8 -> 0.06 | G13: 82923.23046 | H13: =G13 -> 82923.23046 | I13: =H13/H$16 -> 0.001482796209 | K13: =IF('4.0'!$E$29="F16",I28,IF('4.0'!$E$29="F13",I43,I13)) -> 0.001512540249
B14: Street Lighting | C14: 224721.5607 | D14: =D5 -> 0.06 | E14: 238204.8543 | F14: 0.06 | G14: 252497.1456 | H14: =G14 -> 252497.1456 | I14: =H14/H$16 -> 0.004515041299 | K14: =IF('4.0'!$E$29="F16",I29,IF('4.0'!$E$29="F13",I44,I14)) -> 0.004388700369
B15: Transmission | C15: 14418404.07 | D15: 0 | E15: 14418404.07 | F15: 0.06 | G15: 15283508.31 | H15: =G15 -> 15283508.31 | I15: =H15/H$16 -> 0.2732928766 | K15: =IF('4.0'!$E$29="F16",I30,IF('4.0'!$E$29="F13",I45,I15)) -> 0.289138444
B16: Total | C16: =SUM(C5:C15) -> 50758830.25 | E16: =SUM(E5:E15) -> 52758067.65 | G16: =SUM(G5:G15) -> 55923551.71 | H16: =SUM(H5:H15) -> 55923551.71 | I16: =SUM(I5:I15) -> 1
G17: =G16/C16-1 -> 0.1017502065
B18: F16 | C18: Energy @ Customer Meter | D18: Distribution Loss Factor | E18: Energy @ Transmission Interface | F18: Transmission Loss Factor | G18: Energy @ Generation Interface | H18: Energy by Rate Class | I18: Energy at Generator Allocation Factor
C19: (MWh) | E19: (MWh) | G19: (MWh)
B20: Residential | C20: 18742647 | D20: 0.06 | E20: =C20*(1+D20) -> 19867205.82 | F20: 0.06 | G20: =E20*(1+F20) -> 21059238.17 | H20: =G20 -> 21059238.17 | I20: =H20/H$31 -> 0.3579163709
B21: GS Under 35 kW | C21: 3702548 | D21: =D20 -> 0.06 | E21: =C21*(1+D21) -> 3924700.88 | F21: =F20 -> 0.06 | G21: =E21*(1+F21) -> 4160182.933 | H21: =G21 -> 4160182.933 | I21: =H21/H$31 -> 0.07070519671
B22: MGS < 150 kW Primary | C22: 87191.40688 | D22: 0.0344 | E22: 90190.79128 | F22: 0.06 | G22: 95602.23875
B23: MGS < 150 kW Secondary | C23: 3333607.853 | D23: =D21 -> 0.06 | E23: 3533624.324 | F23: 0.06 | G23: 3745641.784
B24: MGS | H24: =+G22+G23 -> 3841244.023 | I24: =H24/H$31 -> 0.06528460854
B25: LGS > 150 kW Primary | C25: 7118064.088 | D25: =D22 -> 0.0344 | E25: =C25*(1+D25) -> 7362925.493 | F25: =F23 -> 0.06 | G25: =E25*(1+F25) -> 7804701.022
B26: LGS > 150 kW Secondary | C26: 4105903.942 | D26: =D23 -> 0.06 | E26: 4352258.179 | F26: 0.06 | G26: 4613393.67
B27: LGS | H27: =G25+G26 -> 12418094.69 | I27: =H27/H$31 -> 0.2110541393
B28: Irrigation | C28: 79205.67557 | D28: =D20 -> 0.06 | E28: =C28*(1+D28) -> 83958.01611 | F28: =F23 -> 0.06 | G28: =E28*(1+F28) -> 88995.49707 | H28: =G28 -> 88995.49707 | I28: 0.001512540249
B29: Street Lighting | C29: 229818.663 | D29: =D20 -> 0.06 | E29: 243607.7828 | F29: 0.06 | G29: 258224.2497 | H29: =G29 -> 258224.2497 | I29: 0.004388700369
B30: Transmission | C30: 16049483.75 | D30: 0 | E30: 16049483.75 | F30: 0.06 | G30: 17012452.77 | H30: =G30 -> 17012452.77 | I30: 0.289138444
B31: Total | C31: =SUM(C20:C30) -> 53448470.38 | E31: =SUM(E20:E30) -> 55507955.04 | G31: =SUM(G20:G30) -> 58838432.34 | H31: =SUM(H20:H30) -> 58838432.34 | I31: =SUM(I20:I30) -> 1
B33: F13 | C33: Energy @ Customer Meter | D33: Distribution Loss Factor | E33: Energy @ Transmission Interface | F33: Transmission Loss Factor | G33: Energy @ Generation Interface | H33: Energy by Rate Class | I33: Energy at Generator Allocation Factor
C34: (MWh) | E34: (MWh) | G34: (MWh)
B35: Residential | C35: 17703115.01 | D35: 0.06 | E35: =C35*(1+D35) -> 18765301.91 | F35: 0.06 | G35: =E35*(1+F35) -> 19891220.03 | H35: =G35 -> 19891220.03 | I35: =H35/H$46 -> 0.3562077735
B36: GS Under 35 kW | C36: 3922246.721 | D36: =D35 -> 0.06 | E36: =C36*(1+D36) -> 4157581.524 | F36: =F35 -> 0.06 | G36: =E36*(1+F36) -> 4407036.416 | H36: =G36 -> 4407036.416 | I36: =H36/H$46 -> 0.07892027877
B37: MGS < 150 kW Primary | C37: 93814.76505 | D37: 0.0344 | E37: 97041.99296 | F37: 0.06 | G37: 102864.5125
B38: MGS < 150 kW Secondary | C38: 3442589.388 | D38: =D36 -> 0.06 | E38: 3649144.752 | F38: 0.06 | G38: 3868093.437
B39: MGS | H39: =+G37+G38 -> 3970957.949 | I39: =H39/H$46 -> 0.07111107756
B40: LGS > 150 kW Primary | C40: 7013179.591 | D40: =D37 -> 0.0344 | E40: =C40*(1+D40) -> 7254432.969 | F40: =F38 -> 0.06 | G40: =E40*(1+F40) -> 7689698.947
B41: LGS > 150 kW Secondary | C41: 3911671.995 | D41: =D38 -> 0.06 | E41: 4146372.315 | F41: 0.06 | G41: 4395154.653
B42: LGS | H42: =G40+G41 -> 12084853.6 | I42: =H42/H$46 -> 0.2164130098
B43: Irrigation | C43: 69777.824 | D43: =D35 -> 0.06 | E43: =C43*(1+D43) -> 73964.49344 | F43: =F38 -> 0.06 | G43: =E43*(1+F43) -> 78402.36305 | H43: =G43 -> 78402.36305 | I43: =H43/H$46 -> 0.001404012984
B44: Street Lighting | C44: 222179.835 | D44: =D35 -> 0.06 | E44: 235510.6251 | F44: 0.06 | G44: 249641.2626 | H44: =G44 -> 249641.2626 | I44: =H44/H$46 -> 0.004470523086
B45: Transmission | C45: 14301425.37 | D45: 0 | E45: 14301425.37 | F45: 0.06 | G45: 15159510.89 | H45: =G45 -> 15159510.89 | I45: =H45/H$46 -> 0.2714733242
B46: Total | C46: =SUM(C35:C45) -> 50680000.5 | E46: =SUM(E35:E45) -> 52680775.95 | G46: =SUM(G35:G45) -> 55841622.51 | H46: =SUM(H35:H45) -> 55841622.51 | I46: =SUM(I35:I45) -> 1

Sheet 5.1
B1: Demand Allocators
H2: =CONCATENATE("Selection from Schedule 4.0: ",IF('4.0'!E30="F13",E3,C3)) -> Selection from Schedule 4.0: F13
C3: F10-F14 Average | E3: F13
B4: Rate Classes | C4: 4 CP | D4: NCP w/o T | E4: 4 CP | F4: NCP w/o T | H4: 4 CP | I4: NCP w/o T
B5: Residential | C5: 0.458507735 | D5: 0.566082357 | E5: 0.4648068649 | F5: 0.5428523497 | H5: =IF('4.0'!$E$30="F13",E5,C5) -> 0.4648068649 | I5: =IF('4.0'!$E$30="F13",F5,D5) -> 0.5428523497
B6: GS Under 35 kW | C6: 0.07219232704 | D6: 0.1061945135 | E6: 0.07158613979 | F6: 0.1033060148 | H6: =IF('4.0'!$E$30="F13",E6,C6) -> 0.07158613979 | I6: =IF('4.0'!$E$30="F13",F6,D6) -> 0.1033060148
B7: MGS < 150 kW | C7: 0.06443244803 | D7: 0.08557345379 | E7: 0.06636708318 | F7: 0.09104345187 | H7: =IF('4.0'!$E$30="F13",E7,C7) -> 0.06636708318 | I7: =IF('4.0'!$E$30="F13",F7,D7) -> 0.09104345187
B8: LGS > 150 kW | C8: 0.1841645544 | D8: 0.2311519487 | E8: 0.1859977379 | F8: 0.2513496136 | H8: =IF('4.0'!$E$30="F13",E8,C8) -> 0.1859977379 | I8: =IF('4.0'!$E$30="F13",F8,D8) -> 0.2513496136
B9: Irrigation | C9: 0 | D9: 0.004303170143 | E9: 0 | F9: 0.004337381451 | H9: =IF('4.0'!$E$30="F13",E9,C9) -> 0 | I9: =IF('4.0'!$E$30="F13",F9,D9) -> 0.004337381451
B10: Street Lighting | C10: 0.005931128552 | D10: 0.006694556805 | E10: 0.006861749761 | F10: 0.007111188609 | H10: =IF('4.0'!$E$30="F13",E10,C10) -> 0.006861749761 | I10: =IF('4.0'!$E$30="F13",F10,D10) -> 0.007111188609
B11: Transmission | C11: 0.214771807 | D11: 0 | E11: 0.2043804245 | F11: 0 | H11: =IF('4.0'!$E$30="F13",E11,C11) -> 0.2043804245 | I11: =IF('4.0'!$E$30="F13",F11,D11) -> 0
B12: Total Integrated Area | C12: =SUM(C5:C11) -> 1 | D12: =SUM(D5:D11) -> 1 | E12: =SUM(E5:E11) -> 1 | F12: =SUM(F5:F11) -> 1

Sheet 5.2
B1: Distribution Customer Allocators
B3: Rate Class | C3: Distribution Customer Count | D3: Distribution Customer Allocator | E3: Distribution Meter Weighting | F3: Distribution Metering Allocator
B4: Residential | C4: 1766044.583 | D4: =C4/C$11 -> 0.8885177377 | E4: 1 | F4: =(D4*E4)/$E$11 -> 0.7715240213
B5: GS Under 35 kW | C5: 182647.1355 | D5: 0.09189191554 | E5: 2 | F5: =(D5*E5)/$E$11 -> 0.1595844792
B6: MGS < 150 kW | C6: 18638.73818 | D6: 0.009377367733 | E6: 6 | F6: 0.04885573459
B7: LGS > 150 kW | C7: 6465.823758 | D7: 0.003253031749 | E7: 6 | F7: 0.01694817355
B8: Irrigation | C8: 3533.800506 | D8: 0.001777896471 | E8: 2 | F8: 0.003087591337
B9: Street Lighting | C9: 9996 | D9: 0.00502910481 | E9: 0 | F9: 0
B10: Transmission | C10: 304 | D10: 0.0001529459646 | E10: 0 | F10: 0
B11: Total | C11: =SUM(C4:C10) -> 1987630.081 | D11: =SUM(D4:D10) -> 1 | E11: =D4*E4+D5*E5+D6*E6+D7*E7+D8*E8+D9*E9+D10*E10 -> 1.151639759 | F11: =SUM(F4:F10) -> 1

Sheet 5.3
B1: Customer Care Allocators
B3: Rate Class | C3: Number of Accounts | D3: Annual bills per account | E3: Annual bills per rate class | F3: # of Bills Allocator | H3: Revenue ($millions) | I3: Revenue Allocator | K3: 90% # of Bills Allocator | L3: 10% Revenue Allocator | M3: Blended Customer Care Allocator
B4: Residential | C4: ='5.2'!C4 -> 1766044.583 | D4: 6 | E4: =D4*C4 -> 10596267.5 | F4: =E4/E$11 -> 0.8739858131 | H4: 1917.574679 | I4: =H4/H$11 -> 0.4299695093 | K4: =F4*LEFT(K$3,3) -> 0.7865872318 | L4: =I4*LEFT(L$3,3) -> 0.04299695093 | M4: =SUM(K4:L4) -> 0.8295841827
B5: GS Under 35 kW | C5: ='5.2'!C5 -> 182647.1355 | D5: 6 | E5: 1095882.813 | F5: 0.09038900082 | H5: 411.8219197 | I5: =H5/H$11 -> 0.0923410549 | K5: =F5*LEFT(K$3,3) -> 0.08135010074 | L5: =I5*LEFT(L$3,3) -> 0.00923410549 | M5: 0.09058420623
B6: MGS < 150 kW | C6: ='5.2'!C6 -> 18638.73818 | D6: 12 | E6: 223664.8582 | F6: 0.01844799719 | H6: 360.5034884 | I6: 0.08083414413 | K6: 0.01660319747 | L6: 0.008083414413 | M6: =SUM(K6:L6) -> 0.02468661188
B7: LGS > 150 kW | C7: ='5.2'!C7 -> 6465.823758 | D7: 12 | E7: 77589.88509 | F7: 0.00639965524 | H7: 836.1437148 | I7: 0.187484903 | K7: 0.005759689716 | L7: 0.0187484903 | M7: =SUM(K7:L7) -> 0.02450818002
B8: Irrigation | C8: ='5.2'!C8 -> 3533.800506 | D8: 2 | E8: 7067.601013 | F8: 0.0005829395133 | H8: 6.043344345 | I8: 0.001355073067 | K8: 0.000524645562 | L8: 0.0001355073067 | M8: =SUM(K8:L8) -> 0.0006601528687
B9: Street Lighting | C9: ='5.2'!C9 -> 9996 | D9: 12 | E9: 119952 | F9: 0.009893705145 | H9: 38.38658048 | I9: 0.00860725757 | K9: 0.00890433463 | L9: 0.000860725757 | M9: 0.009765060387
B10: Transmission | C10: ='5.2'!C10 -> 304 | D10: 12 | E10: 3648 | F10: 0.000300888992 | H10: 889.3185089 | I10: 0.199408058 | K10: 0.0002708000928 | L10: 0.0199408058 | M10: 0.0202116059
B11: Total | C11: =SUM(C4:C10) -> 1987630.081 | E11: =SUM(E4:E10) -> 12124072.65 | F11: =SUM(F4:F10) -> 1 | H11: =SUM(H4:H10) -> 4459.792236 | I11: =SUM(I4:I10) -> 1 | M11: =SUM(M4:M10) -> 1

Sheet 5.4
B1: Distribution Transformer Allocators
B3: Rate Class | C3: OH Transformers | D3: UG Transformers | E3: Weighted Allocator
B4: Residential | C4: =515066294/713863409 -> 0.7215193936 | D4: =272085224.591667/487693627 -> 0.5579019481 | E4: =C4*$C$11+D4*$D$11 -> 0.6551095745
B5: GS Under 35 kW | C5: =121555362/713863409 -> 0.1702781799 | D5: =80344521.3033332/487693627 -> 0.1647438409 | E5: =C5*$C$11+D5*$D$11 -> 0.1680318764
B6: MGS < 150 kW | C6: =49271631/713863409 -> 0.06902109056 | D6: =79828617.1553334/487693627 -> 0.1636859962 | E6: 0.1074441281
B7: LGS > 150 kW | C7: =11831802/713863409 -> 0.01657432199 | D7: =53117672.875/487693627 -> 0.1089160693 | E7: 0.05405442516
B8: Irrigation | C8: =6082680/713863409 -> 0.008520789724 | D8: =357660.35/487693627 -> 0.0007333709735 | E8: 0.005359995537
B9: Street Lighting | C9: =10055640/713863409 -> 0.01408622416 | D9: =1959931/487693627 -> 0.004018775091 | E9: 0.01000000053
B10: Transmission | E10: 0
B11: Total | C11: =713863409/(713863409+487693627) -> 0.5941152918 | D11: =487693627/(713863409+487693627) -> 0.4058847082 | E11: =SUM(E4:E10) -> 1
B13: * Based on replacement costs

Sheet 6.0
B1: Distribution Classification by Sub-Functionalization
B3: Sub-Function | C3: F14 Year-End Assets | D3: % of assets (excluding Substation) | E3: % of assets without Streetlighting | F3: Demand-related % | G3: Customer-related % | H3: Demand % of Total Costs | I3: Customer % of Total Costs | J3: % of total Demand costs | K3: % of total Customer costs
B4: Primary | C4: 2176.230779 | D4: =C4/($C$10-$C$8) -> 0.5523428372 | E4: =ROUND(D4/SUM($D$4:$D$7),10) -> 0.5555775709 | F4: 1 | G4: =1-F4 -> 0 | H4: =E4*F4 -> 0.5555775709 | I4: =E4*G4 -> 0 | J4: =H4/$H$10 -> 0.7778803779 | K4: =I4/$I$10 -> 0
B5: Secondary/Services | C5: 576.0639387 | D5: =C5/($C$10-$C$8) -> 0.1462091215 | E5: =ROUND(D5/SUM($D$4:$D$7),10) -> 0.1470653788 | F5: 0.5 | G5: =1-F5 -> 0.5 | H5: =E5*F5 -> 0.0735326894 | I5: =E5*G5 -> 0.0735326894 | J5: =H5/$H$10 -> 0.1029552653 | K5: =I5/$I$10 -> 0.257305056
B6: Meters | C6: 498.007053 | D6: =C6/($C$10-$C$8) -> 0.1263977292 | E6: =ROUND(D6/SUM($D$4:$D$7),10) -> 0.1271379633 | F6: 0 | G6: 1 | H6: =E6*F6 -> 0 | I6: 0.1271379633 | J6: =H6/$H$10 -> 0 | K6: =I6/$I$10 -> 0.4448802435
B7: Transformers | C7: 666.7584075 | D7: =C7/($C$10-$C$8) -> 0.1692280222 | E7: =ROUND(D7/SUM($D$4:$D$7),10) -> 0.1702190871 | F7: 0.5 | G7: 0.5 | H7: =E7*F7 -> 0.08510954355 | I7: 0.08510954355 | J7: =H7/$H$10 -> 0.1191643568 | K7: =I7/$I$10 -> 0.2978147005
B8: Substation | C8: 629.5
B9: Streetlighting | C9: 22.93982227 | D9: =C9/($C$10-$C$8) -> 0.005822289916
B10: Total | C10: =SUM(C4:C9) -> 4569.5 | D10: =SUM(D4:D9) -> 1 | E10: =SUM(E4:E9) -> 1 | H10: =SUM(H4:H7) -> 0.7142198039 | I10: =SUM(I4:I7) -> 0.2857801963 | J10: =SUM(J4:J7) -> 1 | K10: =SUM(K4:K7) -> 1

Sheet 6.1
B1: Rate Base
B2: (re-calculated with DSM 90-5-5 alternative)
B4: Function | D4: SQ | F4: Preferred
B5: Generation | C5: Mid-Year Net Assets | D5: ='RRA 10.0'!G12-D6 -> 6500.20889 | E5: =SUM(D5:D6)/SUM($D$5:$D$10) -> 0.4227358635 | F5: =D5 -> 6500.20889 | G5: =SUM(F5:F6)/SUM($F$5:$F$10) -> 0.4227358635
C6: 90% of DSM | D6: ='RRA 10.0'!G10 -> 851.0153986 | F6: =D6 -> 851.0153986
B7: Transmission | C7: Mid-Year Net Assets | D7: ='RRA 10.0'!$G$19-D8 -> 5482.055488 | E7: =SUM(D7:D8)/SUM($D$5:$D$10) -> 0.3206859314 | F7: =D7 -> 5482.055488 | G7: =SUM(F7:F8)/SUM($F$5:$F$10) -> 0.3179671498
C8: % DSM | D8: ='RRA 10.0'!$G$17 -> 94.55726651 | F8: =D8/2 -> 47.27863325
B9: Distribution | C9: Mid-Year Net Assets | D9: ='RRA 10.0'!$G$25-D10 -> 4461.8025 | E9: =SUM(D9:D10)/SUM($D$5:$D$10) -> 0.256578205 | F9: =D9 -> 4461.8025 | G9: =SUM(F9:F10)/SUM($F$5:$F$10) -> 0.2592969867
C10: % DSM | D10: 0 | F10: =F8 -> 47.27863325
B11: Corporate | C11: Mid-Year Net Assets | D11: ='RRA 10.0'!$G$37 -> 776.3375 | F11: =D11 -> 776.3375

Sheet RRA 1.0
A1: Revenue Requirements Summary
A2: ($ million)
G3: F2016
E4: Reference | G4: Plan
A5: Line | D5: Column | G5: 11
A7: 1 | C7: Cost of Energy | E7: 3.0 L14 | G7: 1391.7
A9: =A7+1 -> 2 | C9: Operating Costs | E9: 3.0 L20 | G9: 1146.615899
A11: =A9+1 -> 3 | C11: Taxes | E11: 3.0 L24 | G11: 224.1305556
A13: =A11+1 -> 4 | C13: Amortization | E13: 3.0 L28 | G13: 758.002
A15: =A13+1 -> 5 | C15: Finance Charges | E15: 3.0 L33 | G15: 838.3282226
A17: =A15+1 -> 6 | C17: Return on Equity | E17: 3.0 L37 | G17: 651.8510713
A19: =A17+1 -> 7 | C19: Non-Tariff Revenue | E19: 3.0 L41 | G19: -126.6246633
A21: =A19+1 -> 8 | C21: Inter-Segment Revenue | E21: 3.0 L47 | G21: -53.51035904
C23: Deferral Accounts
A24: =A21+1 -> 9 | D24: Deferral Account Additions | E24: 2.1 L33 | G24: 0
A25: =A24+1 -> 10 | D25: Interest on Deferral Accounts | E25: 2.1 L34 | G25: -23.79468337
A26: =A25+1 -> 11 | D26: Deferral Account Recoveries | E26: 2.1 L35 | G26: 222.9917468
A27: =A26+1 -> 12 | D27: Total | G27: 199.1970635
C29: Other Regulatory Accounts
A30: =A27+1 -> 13 | D30: Regulatory Account Additions | E30: 2.2 L212 | G30: -310.2888
A31: =A30+1 -> 14 | D31: Interest on Regulatory Accounts | E31: 2.2 L213 | G31: -37.94451917
A32: =A31+1 -> 15 | D32: Regulatory Account Recoveries | E32: 2.2 L214 | G32: 132.8568254
A33: =A32+1 -> 16 | D33: Total | G33: -215.3764938
C35: Subsidiary Net Income
A36: =A33+1 -> 17 | D36: Powerex Net Income | G36: -110
A37: =A36+1 -> 18 | D37: Powertech Net Income | G37: -5.12
A38: =A37+1 -> 19 | D38: Total | G38: -115.12
A40: =A38+1 -> 20 | C40: Less Other Utilities Revenue | E40: 14.0 L17 | G40: -16.49991634
A41: =A40+1 -> 21 | C41: Less Deferral Rider | E41: 14.0 L21 | G41: -222.9917468
A43: =A41+1 -> 22 | C43: Total Rate Revenue Requirement | G43: 4459.701633
C45: Rate Revenue at Current Rates
A46: =A43+1 -> 23 | D46: Total Domestic Revenue | E46: 14.0 L22 | G46: 4099.483819
A47: =A46+1 -> 24 | D47: Less Other Utilities | E47: Line 20 | G47: -16.49991634
A48: =A47+1 -> 25 | D48: Less Deferral Rider | E48: Line 21 | G48: -222.9917468
A49: =A48+1 -> 26 | D49: Revenue Subject to Rate Increase | G49: 3859.992156
A51: =+A49+1 -> 27 | C51: Revenue Shortfall | E51: Line 22 - 26 | G51: 599.7094769
A53: =A51+1 -> 28 | C53: Rate Increases (May 1 for F2012) | G53: 0.06
A55: =A53+1 -> 29 | C55: Deferral Account Rate Rider | G55: 0.05
A56: =A55+1 -> 30 | C56: Net Bill Impact | G56: 0.06

Sheet RRA 2.1
A1: Deferral Accounts
A2: ($ million)
G3: F2016
E4: Reference | G4: Plan
A5: Line | D5: Column | G5: 11
C7: Heritage Deferral Account
A8: 1 | D8: Beginning of Year | G8: 51.21390663
A9: =A8+1 -> 2 | D9: Adjustment to Opening Balance | G9: 0
A10: 3 | D10: Additions | E10: Line 41 | G10: 0
A11: 4 | D11: Interest | G11: 1.893107539
A12: 5 | D12: Recovery | G12: -17.74124709
A13: 6 | D13: Transfer of GM Shrum 3 | E13: 2.2 L67 | G13: 0
A14: 7 | D14: End of Year | G14: 35.36576709
C16: Non-Heritage Deferral Account
A17: =A14+1 -> 8 | D17: Beginning of Year | G17: 302.5900812
A18: =A17+1 -> 9 | D18: Adjustment to Opening Balance | G18: 0
A19: 10 | D19: Additions | E19: Line 42 | G19: 0
A20: 11 | D20: Interest | G20: 11.18515656
A21: 12 | D21: Recovery | G21: -104.8216344
A22: 13 | D22: Transfer of Storm Restoration | E22: 2.2 L47 | G22: 0
A23: 14 | D23: Transfer from BCTCDA | G23: 0
A24: 15 | D24: End of Year | G24: 208.9536034
C26: Trade Income Deferral Account
A27: =A24+1 -> 16 | D27: Beginning of Year | G27: 289.9094133
A28: =A27+1 -> 17 | D28: Adjustment to Opening Balance | G28: 0
A29: =A28+1 -> 18 | D29: Additions | E29: Line 43 | G29: 0
A30: =A29+1 -> 19 | D30: Interest | G30: 10.71641927
A31: =A30+1 -> 20 | D31: Recovery | G31: -100.4288654
A32: =A31+1 -> 21 | D32: End of Year | G32: 200.1969672
C34: BCTC Deferral Account
A35: =A32+1 -> 22 | D35: Beginning of Year | G35: 0
A36: =A35+1 -> 23 | D36: Additions | G36: 0
A37: =A36+1 -> 24 | D37: Interest | G37: 0
A38: =A37+1 -> 25 | D38: Recovery | G38: 0
A39: =A38+1 -> 26 | D39: Transfer to NHDA | G39: 0
A40: =A39+1 -> 27 | D40: End of Year | G40: 0
C42: End of Year Balances
A43: =A40+1 -> 28 | D43: Heritage | E43: Line 7 | G43: 35.36576709
A44: =A43+1 -> 29 | D44: Non-Heritage | E44: Line 15 | G44: 208.9536034
A45: =A44+1 -> 30 | D45: Trade Income | E45: Line 21 | G45: 200.1969672
A46: =A45+1 -> 31 | D46: BCTC | E46: Line 27 | G46: 0
A47: =A46+1 -> 32 | D47: Total | G47: 444.5163377
C49: Summary
A50: =A47+1 -> 33 | D50: Deferral Account Additions | G50: 0
A51: =A50+1 -> 34 | D51: Interest on Deferral Accounts | G51: 23.79468337
A52: 35 | D52: Deferral Account Recoveries | G52: -222.9917468
A53: 36 | D53: Transfer of GM Shrum 3 | E53: Line 6 | G53: 0
A54: 37 | D54: Transfer of Storm Restoration | E54: Line 13 | G54: 0
A55: 38 | D55: Adjustment to Opening Balance | E55: Line 2 | G55: 0
A56: 39 | D56: Deferral Account Net Transfers | G56: -199.1970635
A58: =A56+1 -> 40 | C58: Interest Rate | E58: 8.0 L104 | G58: 0.04470856771
B60: Summary of Items Subject to Deferral
A61: =A58+1 -> 41 | C61: Heritage Payment Obligation | E61: 4.0 L75 | G61: 399.2187186
A62: =A61+1 -> 42 | C62: Cost of Non-Heritage Energy | E62: 4.0 L88 | G62: 1032.2
A63: =A62+1 -> 43 | C63: Trade Income | E63: 1.0 L17 | G63: 110

Sheet RRA 2.2
A1: Other Regulatory Accounts
A2: ($ million)
G3: F2016
E4: Reference | G4: Plan
A5: Line | D5: Column | G5: 11
C7: Demand-Side Management
A8: =1 -> 1 | D8: Beginning of Year | G8: 897.7824213
A9: =A8+1 -> 2 | D9: Adjustment to Opening Balance | G9: 0
A10: 3 | D10: Additions | E10: 5.0 L49 | G10: 131.1
A11: 4 | D11: F11 RRA NSA Adjustment | E11: 5.0 L9 | G11: 0
A12: 5 | D12: Amortization on Existing | G12: -73.27642289
A13: 6 | D13: Amortization on Additions | E13: 13.0 L72 | G13: -10.03333333
A14: 7 | D14: End of Year | G14: 945.5726651
C16: First Nations Costs
A17: =A14+1 -> 8 | D17: Beginning of Year | G17: 174.1503619
A18: =A17+1 -> 9 | D18: Adjustment to Opening Balance | G18: 0
A19: 10 | D19: Additions | E19: 5.0 L50 | G19: 2.981
A20: 11 | D20: Transfer from Provision | E20: Line 18 | G20: 13.67777852
A21: 12 | D21: Interest | G21: 7.192286674
A22: 13 | D22: Recovery | E22: 5.0 L28 | G22: -43.21863497
A23: 14 | D23: End of Year | G23: 154.7827921
C25: First Nations Settlement Provisions
A26: =A23+1 -> 15 | D26: Beginning of Year | G26: 401.4324543
A27: =A26+1 -> 16 | D27: Additions - Operating | E27: 5.0 L84 | G27: 0
A28: =A27+1 -> 17 | D28: Additions - Accretion | E28: 8.0 L76 | G28: 17.7
A29: =A28+1 -> 18 | D29: Transfer to Negotiation Costs | G29: -13.67777852
A30: =A29+1 -> 19 | D30: End of Year | G30: 405.4546758
C32: F07/F08 RRA Depreciation Study
A33: =A30+1 -> 20 | D33: Beginning of Year | G33: 0
A34: =A33+1 -> 21 | D34: Additions | E34: 7.0 L27 | G34: 0
A35: =A34+1 -> 22 | D35: Recovery | E35: 7.0 L43 | G35: 0
A36: =A35+1 -> 23 | D36: End of Year | G36: 0
C38: Site C
A39: =A36+1 -> 24 | D39: Beginning of Year | G39: 376.8557522
A40: =A39+1 -> 25 | D40: Additions | E40: 5.0 L51 | G40: 0
A41: =A40+1 -> 26 | D41: Interest | G41: 16.84868091
A42: =A41+1 -> 27 | D42: Recovery | E42: 5.0 L29 | G42: 0
A43: =A42+1 -> 28 | D43: End of Year | G43: 393.7044331
C45: Future Removal and Site Restoration
A46: =A43+1 -> 29 | D46: Beginning of Year | G46: -41.09192588
A47: =A46+1 -> 30 | D47: Adjustment to Opening Balance | G47: 0
A48: =A47+1 -> 31 | D48: Additions | E48: N/A | G48: 0
A49: =A48+1 -> 32 | D49: Recovery | E49: 7.0 L50 | G49: 31.171
A50: =A49+1 -> 33 | D50: End of Year | G50: -9.92092588
C52: Foreign Exchange Gains/Losses
A53: =A50+1 -> 34 | D53: Beginning of Year | G53: -94.418
A54: =A53+1 -> 35 | D54: Adjustment to Opening Balance | G54: 0
A55: =A54+1 -> 36 | D55: Additions | E55: 8.0 L72 | G55: -0.1
A56: =A55+1 -> 37 | D56: Recovery | E56: 8.0 L67 | G56: 0.7
A57: =A56+1 -> 38 | D57: End of Year | G57: -93.818
C59: Pre-1996 Customer Contributions
A60: =A57+1 -> 39 | D60: Beginning of Year | G60: 87.438
A61: =A60+1 -> 40 | D61: Additions | E61: N/A | G61: 0
A62: =A61+1 -> 41 | D62: Recovery | E62: 7.0 L51 | G62: 4.69
A63: =A62+1 -> 42 | D63: End of Year | G63: 92.128
C65: Storm Restoration Costs
A66: =A63+1 -> 43 | D66: Beginning of Year | G66: -1.299337735
A67: =A66+1 -> 44 | D67: Additions | E67: 5.0 L52 | G67: 0
A68: =A67+1 -> 45 | D68: Interest | G68: -0.02741564706
A69: =A68+1 -> 46 | D69: Recovery | E69: 5.0 L30 | G69: 1.372259664
A70: =A69+1 -> 47 | D70: Transfer to NHDA | G70: 0
A71: =A70+1 -> 48 | D71: End of Year | G71: 0.0455062817
C73: Procurement Enhancement
A74: =A71+1 -> 49 | D74: Beginning of Year | G74: 0.04702725819
A75: =A74+1 -> 50 | D75: Additions - Operating | E75: 5.0 L53 | G75: 0
A76: 51 | D76: Additions - Amortization | E76: 7.0 L32 | G76: 0
A77: 52 | D77: Interest | G77: 0.002102521357
A78: 53 | D78: F11 RRA NSA Adjustment | E78: 5.0 L31 | G78: 0
A79: 54 | D79: Recovery | E79: 5.0 L32 | G79: 0
A80: 55 | D80: End of Year | G80: 0.04912977955
C82: Capital Project Investigation
A83: =A80+1 -> 56 | D83: Beginning of Year | G83: 29.87895891
A84: =A83+1 -> 57 | D84: Adjustment to Opening Balance | G84: 0
A85: =A84+1 -> 58 | D85: Additions | E85: 5.0 L54 | G85: 0
A86: =A85+1 -> 59 | D86: Interest | G86: 0
A87: =A86+1 -> 60 | D87: Recovery | E87: 5.0 L33 | G87: -4.83104108
A88: =A87+1 -> 61 | D88: End of Year | G88: 25.04791783
C90: GM Shrum 3
A91: =A88+1 -> 62 | D91: Beginning of Year | G91: 0
A92: =A91+1 -> 63 | D92: Additions - Deferred Operating | E92: 5.0 L55 | G92: 0
A93: 64 | D93: Additions - COE | E93: 4.0 L49 | G93: 0
A94: 65 | D94: Interest | G94: 0
A95: 66 | D95: Insurance Proceeds | E95: 4.0 L50 | G95: 0
A96: 67 | D96: Transfer to HDA | G96: 0
A97: 68 | D97: End of Year | G97: 0
C99: F2010 ROE Adjustment
A100: =A97+1 -> 69 | D100: Beginning of Year | G100: 0
A101: =A100+1 -> 70 | D101: Additions | E101: 9.0 L53 | G101: 0
A102: =A101+1 -> 71 | D102: Interest | E102: N/A | G102: 0
A103: =A102+1 -> 72 | D103: Recovery | E103: 9.0 L54 | G103: 0
A104: =A103+1 -> 73 | D104: End of Year | G104: 0
C106: Net Employment Costs
A107: =A104+1 -> 74 | D107: Beginning of Year | G107: 0
A108: =A107+1 -> 75 | D108: Additions | E108: N/A | G108: 0
A109: =A108+1 -> 76 | D109: Interest | G109: 0
A110: =A109+1 -> 77 | D110: Recovery | E110: 5.0 L34 | G110: 0
A111: =A110+1 -> 78 | D111: End of Year | G111: 0
C113: Total Taxes
A114: =A111+1 -> 79 | D114: Beginning of Year | G114: -0.03115186317
A115: =A114+1 -> 80 | D115: Additions | E115: N/A | G115: 0
A116: =A115+1 -> 81 | D116: Interest | G116: 0
A117: =A116+1 -> 82 | D117: Recovery | E117: 6.0 L27 | G117: 0
A118: =A117+1 -> 83 | D118: End of Year | G118: -0.03115186317
C120: Amortization of Capital Additions
A121: =A118+1 -> 84 | D121: Beginning of Year | G121: -9.326122202
A122: =A121+1 -> 85 | D122: Additions - Bad Debt | E122: 5.0 L60 | G122: 0
A123: =A122+1 -> 86 | D123: Interest | G123: -0.2064011577
A124: =A123+1 -> 87 | D124: Recovery | E124: 7.0 L57 | G124: 9.419063011
A125: =A124+1 -> 88 | D125: End of Year | G125: -0.1134603488
C127: Total Finance Charges
A128: =A125+1 -> 89 | D128: Beginning of Year | G128: -25.60617421
A129: =A128+1 -> 90 | D129: Adjustment to Opening Balance | G129: 0
A130: =A129+1 -> 91 | D130: Additions | E130: N/A | G130: 0
A131: =A130+1 -> 92 | D131: Interest | E131: N/A | G131: 0
A132: =A131+1 -> 93 | D132: Recovery | E132: 8.0 L69 | G132: 25.54266194
A133: =A132+1 -> 94 | D133: End of Year | G133: -0.0635122643
C135: Smart Metering & Infrastructure
A136: =A133+1 -> 95 | D136: Beginning of Year | G136: 286.7497415
A137: =A136+1 -> 96 | D137: Adjustment to Opening Balance | G137: 0
A138: 97 | D138: Additions - Deferred Operating | E138: 5.0 L56 | G138: 21.46325527
A139: 98 | D139: Additions - Amortization | E139: 7.0 L28 | G139: 0
A140: 99 | D140: Legacy Meter Contributions | G140: 0
A141: 100 | D141: Additions - Finance Charges | E141: 8.0 L73 | G141: 0
A142: 101 | D142: Additions - ROE | E142: 9.0 L51 | G142: 0
A143: 102 | D143: Additions - Non tariff revenues | E143: 15.0 L34 | G143: -3.363255267
A144: 103 | D144: Interest | G144: 12.52450705
A145: 104 | D145: Recovery | E145: 5.0 L35 | G145: -31.32624282
A146: 105 | D146: End of Year | G146: 286.0480057
C148: Home Purchase Option Plan
A149: =A146+1 -> 106 | D149: Beginning of Year | G149: 11.13207483
A150: =A149+1 -> 107 | D150: Additions - Deferred Operating | E150: 5.0 L57 | G150: 0
A151: =A150+1 -> 108 | D151: Additions - Interest | E151: 8.0 L74 | G151: 0
A152: =A151+1 -> 109 | D152: Interest | G152: 0.2444517525
A153: =A152+1 -> 110 | D153: Recovery | E153: 5.0 L36 | G153: -11.32880707
A154: =A153+1 -> 111 | D154: End of Year | G154: 0.04771951664
C156: Non-Current Pension Cost
A157: =A154+1 -> 112 | D157: Beginning of Year | G157: 186.3393167
A158: =A157+1 -> 113 | D158: Adjustment to Opening Balance | G158: 0
A159: 114 | D159: OCI Deferral | E159: 9.0 L8 | G159: 0
A160: 115 | D160: Additions | G160: 0
A161: 116 | D161: Interest | E161: N/A | G161: 0
A162: 117 | D162: Recovery - Operating | E162: 5.0 L37 | G162: -15.52069231
A163: 118 | D163: Recovery - Finance Charges | E163: 8.0 L68 | G163: 0
A164: 119 | D164: End of Year | G164: 170.8186244
C166: Waneta
A167: =A164+1 -> 120 | D167: Beginning of Year | G167: 0
A168: =A167+1 -> 121 | D168: Additions | G168: 0
A169: =A168+1 -> 122 | D169: Recovery | G169: 0
A170: =A169+1 -> 123 | D170: End of Year | G170: 0
C172: Environmental Provisions
A173: =A170+1 -> 124 | D173: Beginning of Year | G173: 239.0693145
A174: =A173+1 -> 125 | D174: Adjustment to Opening Balance | G174: 0
A175: 126 | D175: Additions - Deferred Operating | E175: 5.0 L85 | G175: 0
A176: 127 | D176: Additions - Amortization | E176: 7.0 L29 | G176: 0
A177: 128 | D177: Additions - Accretion | E177: 8.0 L71 | G177: 6
A178: 129 | D178: Transfer to Rock Bay | G178: 0
A179: 130 | D179: Transfer to Asbestos | G179: -0.9181812
A180: 131 | D180: Recovery | E180: 5.0 L90-93 | G180: -13.29130208
A181: 132 | D181: End of Year | G181: 230.8598312
C183: Rock Bay Remediation
A184: =A181+1 -> 133 | D184: Beginning of Year | G184: 49.40742797
A185: =A184+1 -> 134 | D185: Transfer from Environmental | E185: Line 129 | G185: 0
A186: =A185+1 -> 135 | D186: Additions | G186: 0
A187: =A186+1 -> 136 | D187: Interest | G187: 1.0803562
A188: =A187+1 -> 137 | D188: Recovery | E188: 5.0 L99 | G188: -50.48603421
A189: =A188+1 -> 138 | D189: End of Year | G189: 0.001749968053
C191: IFRS PP&E
A192: =A189+1 -> 139 | D192: Beginning of Year | G192: 758.1630597
A193: =A192+1 -> 140 | D193: Adjustment to Opening Balance | G193: 0
A194: 141 | D194: Additions - Deferred Operating | E194: 5.0 L58 | G194: 134.4078
A195: 142 | D195: Additions - IDC | E195: 8.0 L75 | G195: 0
A196: 143 | D196: Interest | E196: N/A | G196: 0
A197: 144 | D197: Recovery | E197: 5.0 L38 | G197: -19.82892108
A198: 145 | D198: End of Year | G198: 872.7419386
C200: IFRS Pension
A201: =A198+1 -> 146 | D201: Beginning of Year | G201: 650.0611111
A202: =A201+1 -> 147 | D202: Adjustment to Opening Balance | G202: 0
A203: =A202+1 -> 148 | D203: Additions | E203: N/A | G203: 0
A204: =A203+1 -> 149 | D204: Recovery | E204: 5.0 L39 | G204: -38.23888889
A205: =A204+1 -> 150 | D205: End of Year | G205: 611.8222222
C207: F12-F14 Rate Smoothing
A208: =A205+1 -> 151 | D208: Beginning of Year | G208: 0
A209: =A208+1 -> 152 | D209: Additions | E209: N/A | G209: 0
A210: =A209+1 -> 153 | D210: Recovery | E210: 5.0 L102 | G210: 0
A211: =A210+1 -> 154 | D211: End of Year | G211: 0
C213: Arrow Water Divestiture Costs
A214: =A211+1 -> 155 | D214: Beginning of Year | G214: 4.441913227
A215: =A214+1 -> 156 | D215: Additions | E215: 5.0 L86 | G215: 0
A216: =A215+1 -> 157 | D216: Interest | G216: 0.09768116021
A217: =A216+1 -> 158 | D217: Recovery | E217: 5.0 L100 | G217: -4.514142287
A218: =A217+1 -> 159 | D218: End of Year | G218: 0.02545209984
C220: Arrow Water Provision
A221: =A218+1 -> 160 | D221: Beginning of Year | G221: 3.02053975
A222: =A221+1 -> 161 | D222: Additions | E222: 5.0 L87 | G222: 0
A223: =A222+1 -> 162 | D223: Additions - Accretion | G223: 0.1
A224: =A223+1 -> 163 | D224: Recovery | E224: 5.0 L101 | G224: -0.3
A225: =A224+1 -> 164 | D225: End of Year | G225: 2.82053975
C227: Asbestos Remediation
A228: =A225+1 -> 165 | D228: Beginning of Year | G228: 9.58971658
A229: =A228+1 -> 166 | D229: Transfer from Environmental | E229: Line 130 | G229: 0.9181812
... 58 more rows

Sheet RRA 3.0
A1: Reconciliation of Current and Gross Views
A2: ($ million)
G3: F2016
E4: Reference | G4: Plan
A5: Line | D5: Column | G5: 11
C7: Cost of Energy
A8: 1 | D8: Total Current | E8: 4.0 L58 | G8: 1514.262881
A9: =A8+1 -> 2 | D9: HDA Additions | E9: 4.0 L46 | G9: 0
A10: 3 | D10: NHDA Additions | E10: 4.0 L47 | G10: 0
A11: 4 | D11: BCTCDA Additions | E11: 4.0 L48 | G11: 0
A12: 5 | D12: Deferred GMS 3 COE | E12: 4.0 L49 | G12: 0
A13: 6 | D13: GMS 3 Insurance Proceeds | E13: 4.0 L50 | G13: 0
A14: 7 | D14: Water License Variances | E14: 4.0 L51 | G14: 0
A15: 8 | D15: Deferred Operating HDA | E15: 4.0 L52 | G15: 0
A16: 9 | D16: Deferred Operating NHDA | E16: 4.0 L53 | G16: 0
A17: 10 | D17: Deferred Waneta Costs | E17: 4.0 L54 | G17: 0
A18: 11 | D18: HDA Recoveries | E18: 4.0 L55 | G18: -17.74124709
A19: 12 | D19: NHDA Recoveries | E19: 4.0 L56 | G19: -104.8216344
A20: 13 | D20: BCTCDA Recoveries | E20: 4.0 L57 | G20: 0
A21: 14 | D21: Total Gross | G21: 1391.7
C23: Operating Costs
A24: =A21+1 -> 15 | D24: Total Current | E24: 5.0 L124 | G24: 977.7336379
A25: =A24+1 -> 16 | D25: Deferral Account Additions | E25: 5.0 L48 | G25: 0
A26: =A25+1 -> 17 | D26: Deferral Account Recoveries | E26: 5.0 L41 | G26: 0
A27: =A26+1 -> 18 | D27: Regulatory Account Additions | E27: 5.0 L61+88 | G27: 289.9520553
A28: =A27+1 -> 19 | D28: Regulatory Account Recoveries | E28: 5.0 L40+104 | G28: -121.0697941
A29: =A28+1 -> 20 | D29: Total Gross | G29: 1146.615899
C31: Taxes
A32: =A29+1 -> 21 | D32: Total Current | E32: 6.0 L28 | G32: 224.1305556
A33: =A32+1 -> 22 | D33: Regulatory Account Additions | E33: N/A | G33: 0
A34: =A33+1 -> 23 | D34: Regulatory Account Recoveries | E34: 6.0 L27 | G34: 0
A35: =A34+1 -> 24 | D35: Total Gross | G35: 224.1305556
C37: Amortization
A38: =A35+1 -> 25 | D38: Total Current | E38: 7.0 L59 | G38: 796.0316932
A39: =A38+1 -> 26 | D39: Regulatory Account Additions | E39: 7.0 L30+34 | G39: 0
A40: =A39+1 -> 27 | D40: Regulatory Account Recoveries | E40: 7.0 L58 | G40: -38.02969321
A41: =A40+1 -> 28 | D41: Total Gross | G41: 758.002
C43: Finance Charges
A44: =A41+1 -> 29 | D44: Total Current | E44: 8.0 L71 | G44: 726.6463581
A45: =A44+1 -> 30 | D45: Interest on Regulatory Accounts | E45: 8.0 L66 | G45: 61.73920254
A46: =A45+1 -> 31 | D46: Regulatory Account Additions | E46: 8.0 L79 | G46: 23.7
A47: =A46+1 -> 32 | D47: Regulatory Account Recoveries | E47: 8.0 L70 | G47: 26.24266194
A48: =A47+1 -> 33 | D48: Total Gross | G48: 838.3282226
C50: Return on Equity
A51: =A48+1 -> 34 | D51: Total Current | E51: 9.0 L56 | G51: 651.8510713
A52: =A51+1 -> 35 | D52: Regulatory Account Additions | E52: 9.0 L53 | G52: 0
A53: =A52+1 -> 36 | D53: Regulatory Account Recoveries | E53: 9.0 L54 | G53: 0
A54: =A53+1 -> 37 | D54: Total Gross | G54: 651.8510713
C56: Non-Tariff Revenue
A57: =A54+1 -> 38 | D57: Total Current | E57: 15.0 L35 | G57: -123.2614081
A58: =A57+1 -> 39 | D58: Regulatory Account Additions | E58: 15.0 L33+34 | G58: -3.363255267
A59: =A58+1 -> 40 | D59: Regulatory Account Recoveries | G59: 0
A60: =A59+1 -> 41 | D60: Total Gross | E60: 15.0 L32 | G60: -126.6246633
C62: Inter-Segment Revenue
A63: =A60+1 -> 42 | D63: Powerex - Corporate Allocation | E63: 3.1 L17 | G63: -3
A64: =A63+1 -> 43 | D64: Mark to Market Losses (Gains) | E64: 3.1 L18 | G64: 0
A65: =A64+1 -> 44 | D65: Other | E65: 3.1 L19 | G65: 0
A66: =A65+1 -> 45 | D66: Powerex PTP Charges | E66: 3.4 L18 | G66: -29.202932
A67: =A66+1 -> 46 | D67: BC Hydro PTP Charges | E67: 3.4 L19 | G67: -21.30742704
A68: =A67+1 -> 47 | D68: Total | G68: -53.51035904
C70: Regulatory Account Transfers
A71: =A68+1 -> 48 | D71: Deferral Accounts | E71: 1.0 L12 | G71: 199.1970635
A72: =A71+1 -> 49 | D72: Other Regulatory Accounts | E72: 1.0 L16 | G72: -215.3764938
A73: =A72+1 -> 50 | D73: Total | G73: -16.17943032
C75: Powerex Net Income
A76: =A73+1 -> 51 | D76: Total Current | G76: -9.571134629
A77: =A76+1 -> 52 | D77: TIDA Additions | E77: 2.1 L18 | G77: 0
A78: =A77+1 -> 53 | D78: TIDA Recoveries | E78: 2.1 L20 | G78: -100.4288654
A79: =A78+1 -> 54 | D79: Total Gross | G79: -110
A81: =A79+1 -> 55 | C81: Powertech Net Income | E81: 1.0 L18 | G81: -5.12
A82: =A81+1 -> 56 | C82: Other Utilities Revenue | E82: 14.0 L17 | G82: -16.49991634
A83: =A82+1 -> 57 | C83: Deferral Rider Revenue | E83: 14.0 L21 | G83: -222.9917468
A85: =A83+1 -> 58 | C85: Total Rate Revenue Requirement | G85: 4459.701633
C87: Summary - Current Rates View
A88: =A85+1 -> 59 | D88: Cost of Energy | E88: Line 1 | G88: 1514.262881
A89: =A88+1 -> 60 | D89: Operating Costs | E89: Line 15 | G89: 977.7336379
A90: 61 | D90: Taxes | E90: Line 21 | G90: 224.1305556
A91: 62 | D91: Amortization | E91: Line 25 | G91: 796.0316932
A92: 63 | D92: Finance Charges | E92: Line 29 | G92: 726.6463581
A93: 64 | D93: Return on Equity | E93: Line 34 | G93: 651.8510713
A94: 65 | D94: Non-Tariff Revenue | E94: Line 38 | G94: -123.2614081
A95: 66 | D95: Inter-Segment Revenue | E95: Line 47 | G95: -53.51035904
A96: 67 | D96: Subsididary Net Income | E96: Lines 51+55 | G96: -14.69113463
A97: 68 | D97: Other Utilities Revenue | E97: Line 56 | G97: -16.49991634
A98: 69 | D98: Deferral Rider Revenue | E98: Line 57 | G98: -222.9917468
A99: 70 | D99: Total Rate Revenue Requirement | G99: 4459.701633
C101: Current Costs by Business Group
A102: =A99+1 -> 71 | D102: Generation | E102: 3.2 L17 | G102: 1600.779656
A103: =A102+1 -> 72 | D103: Transmission | E103: 3.4 L21 | G103: 747.6841764
A104: 73 | D104: Distribution | E104: 3.5 L13 | G104: 1078.024309
A105: 74 | D105: Customer Care | E105: 3.3 L16 | G105: 1287.396289
A106: 75 | D106: Corporate Groups | E106: 3.1 L21 | G106: -5.684341886e-14
A107: 76 | D107: Subsididary Net Income | E107: Line 67 | G107: -14.69113463
A108: 77 | D108: Other Utilities Revenue | E108: Line 68 | G108: -16.49991634
A109: 78 | D109: Deferral Rider Revenue | E109: Line 69 | G109: -222.9917468
A110: 79 | D110: Total Rate Revenue Requirement | G110: 4459.701633

Sheet RRA 3.4
A1: Total Current Costs - Transmission
A2: ($ million)
G3: F2016
E4: Reference | G4: Plan
A5: Line | D5: Column | G5: 11
A7: 1 | C7: Cost of Energy | E7: N/A | G7: 0
A9: =A7+1 -> 2 | C9: Current Operating Costs | E9: 5.0 L114 | G9: 237.9564253
A11: 3 | C11: Taxes | E11: 6.0 L31 | G11: 131.963
A13: =A11+1 -> 4 | C13: Current Amortization | E13: 7.0 L61 | G13: 187.1349756
A15: =A13+1 -> 5 | C15: Current Finance Charges | E15: 8.0 L88 | G15: 233.0256796
A17: =A15+1 -> 6 | C17: Return on Equity | E17: 9.0 L64 | G17: 209.0398406
A19: =A17+1 -> 7 | C19: Corporate Allocation | E19: 3.1 L68 | G19: 95.69261324
A21: =A19+1 -> 8 | C21: Non-Tariff Revenue | E21: 15.0 L12 | G21: -39.19134332
C23: Internal Allocations:
A24: =A21+1 -> 9 | D24: GRTA Allocation | G24: -43.3
A25: =A24+1 -> 10 | D25: SDA Allocation | G25: -148.2740661
A26: 11 | D26: Generation Real Time Dispatch | G26: -1.818939007
A27: 12 | D27: Distribution Real Time Dispatch | G27: -17.12500875
A28: 13 | D28: PTP Allocation to Distribution | G28: -29.41696028
A29: 14 | D29: First Nations Comm Dev Fund | G29: 0
A30: 15 | D30: Aboriginal Relations | G30: -19.31401399
A31: 16 | D31: Generation Ancillary Services | G31: 1.82233258
A32: 17 | D32: Total | G32: -257.4266556
C34: Inter-Segment Revenue
A35: =A32+1 -> 18 | D35: Powerex PTP Charges | G35: -29.202932
A36: =A35+1 -> 19 | D36: BC Hydro PTP Charges | G36: -21.30742704
A37: =A36+1 -> 20 | D37: Total | G37: -50.51035904
A39: =A37+1 -> 21 | C39: Total Current Costs | G39: 747.6841764
C41: Transmission Revenue Requirement
A42: =A39+1 -> 22 | D42: Total Current Costs | E42: Line 21 | G42: 747.6841764
A43: =A42+1 -> 23 | D43: PTP Allocation to Distribution | E43: Line 13 | G43: 29.41696028
A44: =A43+1 -> 24 | D44: Inter-Segment Revenue | E44: Line 20 | G44: 50.51035904
A45: =A44+1 -> 25 | D45: External OATT Revenue | E45: Line 71 | G45: 11.80358741
A46: =A45+1 -> 26 | D46: Total TRR | G46: 839.4150831
C48: NITS Charge to BC Hydro
A49: =A46+1 -> 27 | D49: Total Current Costs | E49: Line 21 | G49: 747.6841764
A50: =A49+1 -> 28 | D50: Internal Ancillary Services | E50: Line 33 | G50: 0
A51: =A50+1 -> 29 | D51: Internal Scheduling & Dispatch | E51: Line 35 | G51: -2.880503813
A52: =A51+1 -> 30 | D52: Total | G52: 744.8036726
A53: =A52+1 -> 31 | D53: NITS Monthly Rate | E53: Line 30 / 12 | G53: 62.06666667
C55: Long-Term PTP Rate
A56: =A53+1 -> 32 | D56: Total TRR | E56: Line 26 | G56: 839.4150831
A57: =A56+1 -> 33 | D57: Internal Ancillary Services | G57: 0
A58: =A57+1 -> 34 | D58: External Ancillary Services | G58: -1.82233258
A59: =A58+1 -> 35 | D59: Internal Scheduling & Dispatch | G59: -2.880503813
A60: =A59+1 -> 36 | D60: External Scheduling & Dispatch | G60: -0.135350028
A61: =A60+1 -> 37 | D61: Total | G61: 834.5768967
A63: =A61+1 -> 38 | D63: Maximum Supply (MW) | G63: 12846
A64: =A63+1 -> 39 | D64: Long-Term Firm PTP Rate ($/MW/year) | G64: 64967.84187
C66: Maximum Price for Short-Term Firm and
C67: Non-Firm (per MW of Reserved Capacity)
A68: =A64+1 -> 40 | D68: Monthly ($/MW/month) | G68: 5413.99
A69: =A68+1 -> 41 | D69: Weekly ($/MW/week) | G69: 1249.38
A70: =A69+1 -> 42 | D70: Daily ($/MW/day) | G70: 177.99
A71: =A70+1 -> 43 | D71: Hourly ($/MW/hour) | G71: 7.42
C73: Scheduling Fee
A74: =A71+1 -> 44 | D74: Scheduling, Control & Dispatch | E74: Lines 35 + 36 | G74: 3.015853841
A75: =A74+1 -> 45 | D75: Total Volumne (GWh) | G75: 30463.17011
A76: =A75+1 -> 46 | D76: Scheduling Fee ($/MWh) | E76: Line 44 / 45 | G76: 0.099
C78: Long-Term PTP Volumes (GWh)
A79: =A76+1 -> 47 | D79: Internal | G79: 8926.44
A80: =A79+1 -> 48 | D80: External | G80: 1314
A81: =A80+1 -> 49 | D81: Total | G81: 10240.44
C83: Long-Term PTP Revenue
A84: =A81+1 -> 50 | D84: Internal | E84: Line 43 * 47 | G84: 66.2341848
A85: =A84+1 -> 51 | D85: External | E85: Line 43 * 48 | G85: 9.74988
A86: =A85+1 -> 52 | D86: Total | G86: 75.9840648
C88: Long-Term PTP Average Price ($/MWh)
A89: =A86+1 -> 53 | D89: Internal | E89: Line 50 / 47 | G89: 7.42
A90: =A89+1 -> 54 | D90: External | E90: Line 51 / 48 | G90: 7.42
A91: =A90+1 -> 55 | D91: Total | E91: Line 52 / 49 | G91: 7.42
C93: Short-Term PTP Volumes (GWh)
A94: =A91+1 -> 56 | D94: Internal | G94: 7582.326115
A95: =A94+1 -> 57 | D95: External | G95: 53.172
A96: =A95+1 -> 58 | D96: Total | G96: 7635.498115
C98: Short-Term PTP Revenue
A99: =A96+1 -> 59 | D99: Internal | G99: 13.69313452
A100: =A99+1 -> 60 | D100: External | G100: 0.0960248
A101: =A100+1 -> 61 | D101: Total | G101: 13.78915932
C103: Short-Term PTP Average Price ($/MWh)
A104: =A101+1 -> 62 | D104: Internal | E104: Line 59 / 56 | G104: 1.805927932
A105: =A104+1 -> 63 | D105: External | E105: Line 60 / 57 | G105: 1.805927932
A106: =A105+1 -> 64 | D106: Total | E106: Line 61 / 58 | G106: 1.805927932
C108: Total PTP Revenue
A109: =A106+1 -> 65 | D109: Internal | E109: Line 50 + 59 | G109: 79.92731932
A110: =A109+1 -> 66 | D110: External | E110: Line 51 + 60 | G110: 9.8459048
A111: =A110+1 -> 67 | D111: Total | G111: 89.77322412
C113: Total External OATT Revenue
A114: =A111+1 -> 68 | D114: Total External PTP | E114: Line 66 | G114: 9.8459048
A115: =A114+1 -> 69 | D115: External Ancillary Services | E115: Line 34 | G115: 1.82233258
A116: =A115+1 -> 70 | D116: External Scheduling & Dispatch | E116: Line 36 | G116: 0.135350028
A117: =A116+1 -> 71 | D117: Total | G117: 11.80358741

Sheet RRA 4.0
A1: Cost of Energy
A2: ($ million)
G3: F2016
E4: Reference | G4: Plan
A5: Line | D5: Column | G5: 11
B7: Cost of Energy ($ million)
C9: Heritage Energy
A10: 1 | D10: Hydroelectric (water rentals) | G10: 384.5
A11: =A10+1 -> 2 | D11: Market Electricity Purchases | G11: 56.6
A12: 3 | D12: Market Purchases to Non-Heritage | G12: 0
A13: 4 | D13: Natural Gas for Thermal Generation | G13: 26.9
A14: 5 | D14: Domestic Transmission | G14: 25.7
A15: 6 | D15: Non-Treaty Storage Agreement | G15: -19.8
A16: 7 | D16: Surplus Sales | G16: -84.2
A17: 8 | D17: Other | G17: -32.1
A18: 9 | D18: Total | G18: 357.6
C20: Non-Heritage Energy
A21: =A18+1 -> 10 | D21: Mkt Purchases From Heritage | E21: Line 3 | G21: 0
A22: =A21+1 -> 11 | D22: Waneta (water rentals) | G22: 7.4
A23: 12 | D23: IPPs and Long-Term Commitments | G23: 975.5
A24: 13 | D24: New Capital Leases Under IFRS | G24: 0
A25: 14 | D25: Non-Integrated Area | G25: 34.3
A26: 15 | D26: Gas & Other Transportation | G26: 12.1
A27: 16 | D27: Domestic Transmission | G27: 0
A28: 17 | D28: Net Purchases (Sales) from Powerex | G28: 4.8
A29: 18 | D29: Total | G29: 1034.1
A31: =A29+1 -> 19 | C31: Total Gross COE | E31: Lines 9+18 | G31: 1391.7
B33: Sources of Supply (GWh)
C35: Heritage Energy
A36: =A31+1 -> 20 | D36: Hydroelectric (water rentals) | G36: 46312
A37: =A36+1 -> 21 | D37: Net Purchases (Sales) from Powerex | G37: 255
A38: 22 | D38: Market Electricity Purchases | G38: 1553
A39: 23 | D39: Market Purchases to Non-Heritage | G39: 0
A40: 24 | D40: Natural Gas for Thermal Generation | G40: 301
A41: 25 | D41: Surplus Sales | G41: -2446
A42: 26 | D42: Exchange Net | G42: -204
A43: 27 | D43: Total | G43: 45771
C45: Non-Heritage Energy
A46: =A43+1 -> 28 | D46: Waneta (water rentals) | G46: 594
A47: =A46+1 -> 29 | D47: IPPs and Long-Term Commitments | G47: 12002
A48: =A47+1 -> 30 | D48: Mkt Purchases From Heritage | E48: Line 23 | G48: 0
A49: =A48+1 -> 31 | D49: Non-Integrated Area | G49: 135
A50: =A49+1 -> 32 | D50: Total | G50: 12731
A52: =A50+1 -> 33 | C52: Total Sources of Supply | E52: Lines 27+32 | G52: 58502
A54: =A52+1 -> 34 | C54: Less Line Loss and System Use | G54: -4742.238912
A56: =A54+1 -> 35 | C56: Total Domestic Sales | E56: 14.0 L9 | G56: 53759.76109
A58: =A56+1 -> 36 | C58: Line Loss as % of Sales | G58: 0.0882116813
B60: Unit Costs ($/MWh)
A61: =A58+1 -> 37 | D61: Hydroelectric (water rentals) | G61: 8.302383831
A62: =A61+1 -> 38 | D62: Waneta (water rentals) | G62: 12.45791246
A63: 39 | D63: IPPs and Long-Term Commitments | G63: 81.27812031
A64: 40 | D64: Market Electricity Purchases | G64: 36.44558918
A65: 41 | D65: Surplus Sales | G65: -34.42354865
A66: 42 | D66: Natural Gas for Thermal Generation | G66: 89.36877076
A67: 43 | D67: Non-Integrated Area | G67: 254.0740741
A68: 44 | D68: Total Weighted Cost | G68: 25.88739183
B70: Current Cost of Energy
A71: =A68+1 -> 45 | D71: Gross Cost of Energy | E71: Line 19 | G71: 1391.7
A72: =A71+1 -> 46 | D72: HDA Additions | G72: 0
A73: 47 | D73: NHDA Additions | G73: 0
A74: 48 | D74: BCTCDA Additions | G74: 0
A75: 49 | D75: Deferred GMS 3 COE | G75: 0
A76: 50 | D76: GMS 3 Insurance Proceeds | G76: 0
A77: 51 | D77: Water License Variances | G77: 0
A78: 52 | D78: Deferred Operating HDA | G78: 0
A79: 53 | D79: Deferred Operating NHDA | G79: 0
A80: 54 | D80: Deferred Waneta Costs | G80: 0
A81: 55 | D81: HDA Recoveries | G81: 17.74124709
A82: 56 | D82: NHDA Recoveries | G82: 104.8216344
A83: 57 | D83: BCTCDA Recoveries | G83: 0
A84: 58 | D84: Total | G84: 1514.262881
B86: Total Current COE by Function
A87: =A84+1 -> 59 | D87: Generation | G87: 375.3412471
A88: =A87+1 -> 60 | D88: Transmission | G88: 0
A89: =A88+1 -> 61 | D89: Distribution | G89: 0
A90: =A89+1 -> 62 | D90: Customer Care | G90: 1138.921634
A91: =A90+1 -> 63 | D91: Corporate Groups | G91: 0
A92: =A91+1 -> 64 | D92: Total | G92: 1514.262881
B94: Heritage Payment Obligation
A95: =A92+1 -> 65 | C95: Heritage Energy | E95: Line 9 | G95: 357.6
A96: =A95+1 -> 66 | C96: Costs in Operating/Amortization | G96: 13
A97: 67 | C97: Commodity Risk | G97: 0
A98: 68 | C98: Notional Water Rentals | G98: 1.9
A99: 69 | C99: Skagit and Ancillary Revenue | E99: 14.0 L17 | G99: -16.49991634
A100: 70 | C100: Load Curtailment | G100: 0
A101: 71 | C101: Water License Variances | E101: 5.0 L41 | G101: 0
A102: 72 | C102: Deferred Operating HDA | E102: 5.0 L46 | G102: 0
A103: 73 | C103: Transfer to GMS 3 Reg Account | G103: 0
A104: 74 | C104: Other | G104: 43.21863497
A105: 75 | C105: Total | G105: 399.2187186
A107: =A105+1 -> 76 | C107: Total System Inflow (% of Normal) | G107: 1
B109: Non-Heritage COE Subject to NHDA
A110: =A107+1 -> 77 | C110: Non-Heritage Cost of Energy | E110: Line 18 | G110: 1034.1
A111: =A110+1 -> 78 | C111: Commodity Risk | G111: 0
A112: 79 | C112: F/X Gains on Powerex Trade | G112: 0
A113: 80 | C113: Less Domestic Transmission | E113: Line 16 | G113: 0
A114: 81 | C114: Notional Water Rental | E114: Line 68 | G114: -1.9
A115: 82 | C115: Revenue Variance | G115: 0
A116: 83 | C116: ROE Adjustment | G116: 0
A117: 84 | C117: ABSU Founding Partner Benefits | G117: 0
A118: 85 | C118: Deferred Operating NHDA | E118: 5.0 L47 | G118: 0
A119: 86 | C119: Other | G119: 0
A120: 87 | C120: F11 NSA & F12-F14 Adjustments | G120: 0
A121: 88 | C121: Total | G121: 1032.2
B123: IPP Summary
A124: =A121+1 -> 89 | C124: IPP Costs in Non-Heritage COE | E124: Line 12 | G124: 975.5
A125: =A124+1 -> 90 | C125: Less COE Impact of New Leases | E125: Line 13 | G125: 0
C126: Existing Capital Leases
A127: =A125+1 -> 91 | D127: Operating Costs | E127: 5.1 L13 | G127: 33.77013204
A128: =A127+1 -> 92 | D128: Taxes | E128: 6.0 L12 | G128: 5.754555554
A129: =A128+1 -> 93 | D129: Amortization | E129: 7.0 L23 | G129: 25.8
A130: =A129+1 -> 94 | D130: Finance Charges | E130: 8.0 L57 | G130: 93.9
A131: =A130+1 -> 95 | D131: Total | G131: 159.2246876
C132: New IPP Capital Leases Under IFRS
A133: =A131+1 -> 96 | D133: Operating Costs | G133: 0
A134: =A133+1 -> 97 | D134: Taxes | G134: 0
A135: =A134+1 -> 98 | D135: Amortization | G135: 0
A136: =A135+1 -> 99 | D136: Finance Charges | G136: 0
A137: =A136+1 -> 100 | D137: Total | G137: 0
A139: =A137+1 -> 101 | C139: Total Costs in Revenue Requirement | G139: 1134.724688
A141: =A139+1 -> 102 | C141: Total Payments to IPPs | G141: 1130.9
A142: =A141+1 -> 103 | C142: Difference | E142: Line 101 - 102 | G142: 3.824687594
B144: IPP Capital Leases
C145: Gross Assets in Service
A146: =A142+1 -> 104 | D146: Opening Balance | G146: 1113.2
A147: =A146+1 -> 105 | D147: Adjustment to Opening Balance | G147: 0
A148: =A147+1 -> 106 | D148: Capital Additions | G148: 0
A149: =A148+1 -> 107 | D149: Retirements & Transfers | G149: 0
A150: =A149+1 -> 108 | D150: Closing Balance | G150: 1113.2
C152: Accumulated Amortization
A153: =A150+1 -> 109 | D153: Opening Balance | G153: 182.299
A154: =A153+1 -> 110 | D154: Adjustment to Opening Balance | G154: 0
A155: =A154+1 -> 111 | D155: Amortization | G155: 25.8
A156: =A155+1 -> 112 | D156: Retirements & Transfers | G156: 0
A157: =A156+1 -> 113 | D157: Closing Balance | G157: 208.099
A159: =A157+1 -> 114 | C159: Net Capital Leases (Year-End) | G159: 905.101

Sheet RRA 5.0
A1: Operating Costs and Provisions - Total Company
A2: ($ million)
G3: F2016
E4: Reference | G4: Plan
A5: Line | D5: Column | G5: 11
C7: Operating Costs by Business Group
A8: 1 | D8: Generation | G8: 298.4525956
A9: =A8+1 -> 2 | D9: Transmission & Distribution | G9: 335.3741042
A10: 3 | D10: Customer Care | G10: 0
A11: 4 | D11: Corporate Groups (excl PEB) | G11: 193.1115949
A12: 5 | D12: Severance Costs | G12: 0
A13: 6 | D13: Non-Current PEB - Pension | G13: 0
A14: 7 | D14: Non-Current PEB - Other | G14: 0
A15: 8 | D15: F09/F10 RRA Adjustments | G15: 0
A16: 9 | D16: F11 RRA NSA Adjustment | G16: 0
A17: 10 | D17: F12-F14 RRA Adjustment | G17: 0
A18: 11 | D18: Total Before Regulatory Accounts | G18: 826.9382947
C20: Operating Costs by Resource
A21: =A18+1 -> 12 | D21: Labour (excl Non-Current PEB) | G21: 478.104569
A22: =A21+1 -> 13 | D22: Services - ABSU | G22: 59.02021188
A23: 14 | D23: Services - BCTC | G23: 0
A24: 15 | D24: Services - Other | G24: 427.7654171
A25: 16 | D25: Materials | G25: 40.12034751
A26: 17 | D26: Buildings & Equipment | G26: 49.56576137
A27: 18 | D27: Capitalized Overhead | G27: -199.8432921
A28: 19 | D28: External Recoveries | G28: -27.79472001
A29: 20 | D29: Severance Costs | G29: 0
A30: 21 | D30: Non-Current PEB - Pension | G30: 0
A31: 22 | D31: Non-Current PEB - Other | G31: 0
A32: 23 | D32: F09/F10 RRA Adjustments | G32: 0
A33: 24 | D33: F11 RRA NSA Adjustment | G33: 0
A34: 25 | D34: F12-F14 RRA Adjustment | G34: 0
A35: 26 | D35: Total Before Regulatory Accounts | G35: 826.9382947
C37: Regulatory Account Recoveries
A38: =A35+1 -> 27 | D38: DSM - F11 RRA NSA Adjustment | G38: 0
A39: =A38+1 -> 28 | D39: First Nation Costs | G39: 43.21863497
A40: 29 | D40: Site C | G40: 0
A41: 30 | D41: Storm Restoration | G41: -1.372259664
A42: 31 | D42: PEI - F11 RRA NSA Adjustment | G42: 0
A43: 32 | D43: Procurement Enhancement | G43: 0
A44: 33 | D44: Capital Project Investigation | G44: 4.83104108
A45: 34 | D45: Net Employment Costs | G45: 0
A46: 35 | D46: Smart Metering & Infrastructure | G46: 31.32624282
A47: 36 | D47: Home Purchase Offer Plan | G47: 11.32880707
A48: 37 | D48: Non-Current Pension Cost | G48: 15.52069231
A49: 38 | D49: IFRS PP&E | G49: 19.82892108
A50: 39 | D50: IFRS Pension | G50: 38.23888889
A51: 40 | D51: Total | G51: 162.9209686
C53: Deferral Account Recoveries
A54: =A51+1 -> 41 | D54: Water License Variances | G54: 0
C56: Current IFRS Impact
A57: =A54+1 -> 42 | D57: New IPP Capital Leases | G57: 0
A58: =A57+1 -> 43 | D58: Other Operating Costs | G58: 0
A59: =A58+1 -> 44 | D59: Total | G59: 0
A61: =+A59+1 -> 45 | C61: Total Current Operating | E61: L 11+40+41+44 | G61: 989.8592633
C63: Deferral Account Additions
A64: =A61+1 -> 46 | D64: Transfers to HDA | G64: 0
A65: =A64+1 -> 47 | D65: Transfers to NHDA | G65: 0
A66: =A65+1 -> 48 | D66: Total | G66: 0
C68: Regulatory Account Additions
A69: =A66+1 -> 49 | D69: Demand-Side Management | G69: 131.1
A70: =A69+1 -> 50 | D70: First Nations Costs | G70: 2.981
A71: =A70+1 -> 51 | D71: Site C | G71: 0
A72: =A71+1 -> 52 | D72: Storm Restoration | G72: 0
A73: =+A72+1 -> 53 | D73: Procurement Enhancement | G73: 0
A74: 54 | D74: Capital Project Investigation | G74: 0
A75: 55 | D75: GM Shrum 3 | G75: 0
A76: 56 | D76: Smart Metering & Infrastructure | G76: 21.46325527
A77: 57 | D77: Home Purchase Offer Plan | G77: 0
A78: 58 | D78: IFRS Capitalized Overhead | G78: 134.4078
A79: 59 | D79: Outsourcing Implementation | G79: 0
A80: 60 | D80: Bad Debt (Meziadin Lake) | G80: 0
A81: 61 | D81: Total | G81: 289.9520553
A83: =+A81+1 -> 62 | C83: Total Gross Operating | E83: L 11+44+48+61 | G83: 1116.89035
C85: Current Operating by Business Group
A86: =+A83+1 -> 63 | D86: Generation | G86: 303.2836367
A87: =+A86+1 -> 64 | D87: Transmission | G87: 222.351735
A88: 65 | D88: Distribution | G88: 186.1949873
A89: 66 | D89: Customer Care | G89: 0
A90: 67 | D90: Corporate Groups (excl PEB) | G90: 262.508212
A91: 68 | D91: Severance Costs | E91: Line 5 | G91: 0
A92: 69 | D92: Non-Current PEB - Pension | E92: Lines 6 + 37 | G92: 15.52069231
A93: 70 | D93: Non-Current PEB - Other | E93: Line 7 | G93: 0
A94: 71 | D94: F09/F10 RRA Adjustments | E94: Line 8 | G94: 0
A95: 72 | D95: F11 RRA NSA Adjustment | E95: Line 9 | G95: 0
A96: 73 | D96: F12-F14 RRA Adjustment | E96: Line 10 | G96: 0
A97: 74 | D97: Total | G97: 989.8592633
C99: Provisions Before Regulatory Accounts
A100: =+A97+1 -> 75 | D100: Generation | G100: 3.618191
A101: =+A100+1 -> 76 | D101: Transmission | G101: 8.3
A102: 77 | D102: Distribution | G102: 22.7
A103: 78 | D103: Customer Care | G103: 0
A104: 79 | D104: Corporate Groups | G104: 5.107358
A105: 80 | D105: Increase in Mass Asset Rtmts | G105: 0
A106: 81 | D106: FRSR Write-Off | G106: 0
A107: 82 | D107: Real Property Sales | G107: -10
A108: 83 | D108: Total | G108: 29.725549
C110: Deferred Provisions
A111: =+A108+1 -> 84 | D111: First Nations Provisions | G111: 0
A112: =+A111+1 -> 85 | D112: Environmental Provisions | G112: 0
A113: =+A112+1 -> 86 | D113: Arrow Water Divestiture Costs | G113: 0
A114: =+A113+1 -> 87 | D114: Arrow Water Provision | G114: 0
A116: =+A114+1 -> 88 | D116: Total | G116: 0
A118: =+A116+1 -> 89 | C118: Total Gross Provisions | E118: Lines 83 + 88 | G118: 29.725549
C120: Recovery of Deferred Provisions
D121: PCB Remediation
A122: =+A118+1 -> 90 | D122: Generation | G122: 0.3196961421
A123: =+A122+1 -> 91 | D123: Transmission | G123: 7.142331554
A124: 92 | D124: Distribution | G124: 5.613747103
A125: 93 | D125: Corporate | G125: 0.2155272829
A126: 94 | D126: Asbestos Remediation
A127: 95 | D127: Generation | G127: 2.012008535
A128: 96 | D128: Transmission | G128: 0.162358765
A129: 97 | D129: Distribution | G129: 8.582979696
A130: 98 | D130: Corporate | G130: 0
A131: 99 | D131: Rock Bay Remediation | G131: 50.48603421
A132: 100 | D132: Arrow Water Divestiture Costs | G132: 4.514142287
A133: 101 | D133: Arrow Water Provision | G133: 0.3
A134: 102 | D134: F12-F14 Rate Smoothing | G134: 0
A135: 103 | D135: Rate Smoothing | G135: -121.2
A136: 104 | D136: Total | G136: -41.85117443
A138: =+A136+1 -> 105 | C138: Total Current Provisions | E138: Lines 83 + 104 | G138: -12.12562543
C140: Current Provisions by Business Group
A141: =+A138+1 -> 106 | D141: Generation | G141: 10.76403796
A142: =+A141+1 -> 107 | D142: Transmission | G142: 15.60469032
A143: =+A142+1 -> 108 | D143: Distribution | G143: 36.8967268
A144: =+A143+1 -> 109 | D144: Customer Care | G144: 0
A145: =+A144+1 -> 110 | D145: Corporate Groups | G145: -75.39108051
A146: =+A145+1 -> 111 | D146: Total | G146: -12.12562543
A148: =+A146+1 -> 112 | C148: Total Gross Operating & Provisions | G148: 1146.615899
C150: Total Current Operating & Provisions
A151: =+A148+1 -> 113 | D151: Generation | G151: 314.0476747
A152: =+A151+1 -> 114 | D152: Transmission | G152: 237.9564253
A153: 115 | D153: Distribution | G153: 223.0917141
A154: 116 | D154: Customer Care | G154: 0
A155: 117 | D155: Corporate Groups (excl PEB) | G155: 187.1171314
A156: 118 | D156: Severance Costs | G156: 0
A157: 119 | D157: Non-Current PEB - Pension | G157: 15.52069231
A158: 120 | D158: Non-Current PEB - Other | G158: 0
A159: 121 | D159: F09/F10 RRA Adjustments | G159: 0
A160: 122 | D160: F11 RRA NSA Adjustment | G160: 0
A161: 123 | D161: F12-F14 RRA Adjustment | G161: 0
A162: 124 | D162: Total | G162: 977.7336379

Sheet RRA 5.1
A1: Operating Costs - Corporate Groups
A2: ($ million)
G3: F2016
E4: Reference | G4: Plan
A5: Line | D5: Column | G5: 11
C7: Operating Costs by KBU
A8: 1 | D8: Executive | G8: 0.94699081
A9: =A8+1 -> 2 | D9: Sustainability | G9: 0
A10: 3 | D10: Communications | G10: 12.21780019
A11: 4 | D11: Customer Care and Power Smart | G11: 73.16400601
A12: 5 | D12: Corporate Human Resources | G12: 0
A13: 6 | D13: Safety, Health & Environment | G13: 0
A14: 7 | D14: Human Resources | G14: 54.61313592
A15: 8 | D15: Finance & Corporate Resources | G15: 0
A16: 9 | D16: Finance & Supply Chain | G16: 64.55850028
A17: 10 | D17: Corporate Services & General Counsel | G17: 52.58834711
A18: 11 | D18: Energy Planning & Procurement | G18: 0
A19: 12 | D19: Economic & Business Development | G19: 0
A20: 13 | D20: IPP Capital Lease Operating Costs | G20: 33.77013204
A21: 14 | D21: Smart Metering & Infrastructure | G21: 0
A22: 15 | D22: Corporate Costs | G22: -98.74731744
A23: 16 | D23: Total | G23: 193.1115949
C25: Operating Costs by Resource
A26: =A23+1 -> 17 | D26: Labour | G26: 130.9318455
A27: =A26+1 -> 18 | D27: Services - ABSU | G27: 56.75851189
A28: 19 | D28: Services - BCTC | G28: 0
A29: 20 | D29: Services - Other | G29: 152.2524308
A30: 21 | D30: Materials | G30: 15.71316761
A31: 22 | D31: Buildings & Equipment | G31: 10.13173917
A32: 23 | D32: Capitalized Overhead | G32: -172.6761
A33: 24 | D33: External Recoveries | G33: 0
A34: 25 | D34: Total | G34: 193.1115949

Sheet RRA 5.2
A1: Operating Costs - Generation
A2: ($ million)
G3: F2016
E4: Reference | G4: Plan
A5: Line | D5: Column | G5: 11
C7: Operating Costs by KBU
A8: 1 | D8: Engineering | G8: 6.94458697
A9: =A8+1 -> 2 | D9: Dam Safety | G9: 9.48595591
A10: 3 | D10: Generation Asset Mgmt. | G10: 10.31628693
A11: 4 | D11: Generation Project Delivery | G11: 7.36334232
A12: 5 | D12: Generation Operations | G12: 91.03047075
A13: 6 | D13: Operational Safety | G13: 10.57389499
A14: 7 | D14: Environmental Risk Management | G14: 25.58626762
A15: 8 | D15: Generation Resource Mgmt | G15: 13.31006002
A16: 9 | D16: Energy Planning & Econ Development | G16: 9.4286305
A17: 10 | D17: Aboriginal Relations | G17: 0
A18: 11 | D18: Business Support | G18: 2.11519789
A19: 12 | D19: Technology | G19: 112.2979017
A20: 13 | D20: Total | G20: 298.4525956
C22: Operating Costs by Resource
A23: =A20+1 -> 14 | D23: Labour | G23: 137.2373337
A24: =A23+1 -> 15 | D24: Services - ABSU | G24: 0.5297
A25: 16 | D25: Services - BCTC | G25: 0
A26: 17 | D26: Services - Other | G26: 139.7360016
A27: 18 | D27: Materials | G27: 9.70655748
A28: 19 | D28: Buildings & Equipment | G28: 31.39735321
A29: 20 | D29: Capitalized Overhead | G29: -2.2592004
A30: 21 | D30: External Recoveries | G30: -17.89514996
A31: 22 | D31: Total | G31: 298.4525956

Sheet RRA 5.4
A1: Operating Costs - Transmission & Distribution
A2: ($ million)
G3: F2016
E4: Reference | G4: Plan
A5: Line | D5: Column | G5: 11
C7: Operating Costs by KBU
A8: 1 | D8: Distribution Operations | G8: 0
A9: =A8+1 -> 2 | D9: Transmission & Construction Services | G9: 0
A10: 3 | D10: Operational Support Services | G10: 0
A11: 4 | D11: Transmission Owner | G11: 0
A12: 5 | D12: Field Operations & Safety | G12: 110.3540623
A13: 6 | D13: Grid Operations | G13: 37.38525496
A14: 7 | D14: Asset Investment Management | G14: 147.0523404
A15: 8 | D15: Project & Program Delivery | G15: 14.54222087
A16: 9 | D16: Engineering and Design | G16: 22.45476861
A17: 10 | D17: Aboriginal Relations | G17: 5.06645871
A18: 11 | D18: Smart Metering & Infrastructure | G18: 0
A19: 12 | D19: Business Support | G19: -1.48100171
A20: 13 | D20: Total | G20: 335.3741042
C22: Operating Costs by Resource
A23: =A20+1 -> 14 | D23: Labour | G23: 209.9353899
A24: =A23+1 -> 15 | D24: Services - ABSU | G24: 1.73199999
A25: 16 | D25: Services - BCTC | G25: 0
A26: 17 | D26: Services - Other | G26: 135.7769847
A27: 18 | D27: Materials | G27: 14.70062242
A28: 19 | D28: Buildings & Equipment | G28: 8.03666899
A29: 20 | D29: Capitalized Overhead | G29: -24.90799175
A30: 21 | D30: External Recoveries | G30: -9.89957005
A31: 22 | D31: Total | G31: 335.3741042
C33: Operating Costs by Function
A34: =A31+1 -> 23 | D34: Allocation to Transmission (%) | G34: 0.5341291941
A36: =A34+1 -> 24 | D36: Transmission | G36: 179.1331
A37: =A36+1 -> 25 | D37: Distribution | G37: 156.2410042
A38: =A37+1 -> 26 | D38: Total | G38: 335.3741042

Sheet RRA 6.0
A1: Taxes
A2: ($ million)
G3: F2016
E4: Reference | G4: Plan
A5: Line | D5: Column | G5: 11
C7: Generation
A8: 1 | D8: Grants in Lieu | G8: 24.317
A9: =A8+1 -> 2 | D9: School Taxes | G9: 18.752
A10: =A9+1 -> 3 | D10: Total | G10: 43.069
C12: Transmission
A13: =A10+1 -> 4 | D13: Grants in Lieu | G13: 46.788
A14: =A13+1 -> 5 | D14: School Taxes | G14: 85.175
A15: =A14+1 -> 6 | D15: Total | G15: 131.963
C17: Distribution
A18: =A15+1 -> 7 | D18: Grants in Lieu | G18: 7.189
A19: =A18+1 -> 8 | D19: School Taxes | G19: 20.397
A20: =A19+1 -> 9 | D20: Total | G20: 27.586
C22: Customer Care
A23: =A20+1 -> 10 | D23: Grants in Lieu | G23: 0
A24: =A23+1 -> 11 | D24: School Taxes | G24: 0
A25: =A24+1 -> 12 | D25: Existing IPP Capital Leases | G25: 5.754555554
A26: =A25+1 -> 13 | D26: New Capital Leases Under IFRS | G26: 0
A27: =A26+1 -> 14 | D27: Total | G27: 5.754555554
C29: Corporate Groups
A30: =A27+1 -> 15 | D30: Grants in Lieu | G30: 10.176
A31: =A30+1 -> 16 | D31: School Taxes | G31: 5.582
A32: =A31+1 -> 17 | D32: Total | G32: 15.758
C34: Total Before Regulatory Accounts
A35: =A32+1 -> 18 | D35: Grants in Lieu | G35: 88.47
A36: =A35+1 -> 19 | D36: School Taxes | G36: 129.906
A37: =A36+1 -> 20 | D37: IPP Capital Leases | G37: 5.754555554
A38: =A37+1 -> 21 | D38: Total | G38: 224.1305556
C40: Regulatory Account Recoveries
A41: =A38+1 -> 22 | D41: Generation | G41: 0
A42: =A41+1 -> 23 | D42: Transmission | G42: 0
A43: =A42+1 -> 24 | D43: Distribution | G43: 0
A44: =A43+1 -> 25 | D44: Customer Care | G44: 0
A45: =A44+1 -> 26 | D45: Corporate Groups | G45: 0
A46: =A45+1 -> 27 | D46: Total | G46: 0
A48: =A46+1 -> 28 | C48: Total Current Taxes | E48: Lines 21+27 | G48: 224.1305556
A50: =A48+1 -> 29 | C50: Total Gross Taxes | E50: Line 21 | G50: 224.1305556
C52: Total Current Taxes by Business Group
A53: =A50+1 -> 30 | D53: Generation | G53: 43.069
A54: =A53+1 -> 31 | D54: Transmission | G54: 131.963
A55: =A54+1 -> 32 | D55: Distribution | G55: 27.586
A56: =A55+1 -> 33 | D56: Customer Care | G56: 5.754555554
A57: =A56+1 -> 34 | D57: Corporate Groups | G57: 15.758
A58: =A57+1 -> 35 | D58: Total | G58: 224.1305556

Sheet RRA 7.0
A1: Depreciation and Amortization
A2: ($ million)
G3: F2016
E4: Reference | G4: Plan
A5: Line | D5: Column | G5: 11
C7: Amortization of Capital Assets
A8: 1 | D8: Generation | E8: 12.2 L8+9 | G8: 257.42
A9: =A8+1 -> 2 | D9: Transmission | E9: 12.4 L8+9+10 | G9: 178.804
A10: =A9+1 -> 3 | D10: Distribution | E10: 12.5 L8+9 | G10: 225.33
A11: =A10+1 -> 4 | D11: Customer Care | E11: 12.3 L8+9 | G11: 0
A12: =A11+1 -> 5 | D12: Corporate Groups | E12: 12.1 L8+9 | G12: 39.477
A13: =A12+1 -> 6 | D13: Total | G13: 701.031
C15: Amortization of Contributions
A16: =A13+1 -> 7 | D16: Generation | G16: 0
A17: =A16+1 -> 8 | D17: Transmission | G17: 0
A18: =A17+1 -> 9 | D18: Distribution | G18: 0
A19: =A18+1 -> 10 | D19: Total | G19: 0
C21: Dismantling Costs
A22: =A19+1 -> 11 | D22: Generation | G22: 9.537
A23: =A22+1 -> 12 | D23: Transmission | G23: 10.696
A24: =A23+1 -> 13 | D24: Distribution | G24: 10.938
A25: =A24+1 -> 14 | D25: Customer Care | G25: 0
A26: =A25+1 -> 15 | D26: Corporate Groups | G26: 0
A27: =A26+1 -> 16 | D27: Total | G27: 31.171
C29: Capital Asset Write-Offs
A30: =A27+1 -> 17 | D30: Generation | G30: 0
A31: =A30+1 -> 18 | D31: Transmission | G31: 0
A32: =A31+1 -> 19 | D32: Distribution | G32: 0
A33: =A32+1 -> 20 | D33: Customer Care | G33: 0
A34: =A33+1 -> 21 | D34: Corporate Groups | G34: 0
A35: =A34+1 -> 22 | D35: Total | G35: 0
C37: IPP Capital Leases
A38: =A35+1 -> 23 | D38: Existing IPP Capital Leases | G38: 25.8
A39: =A38+1 -> 24 | D39: New Capital Leases Under IFRS | G39: 0
A40: =A39+1 -> 25 | D40: Total | G40: 25.8
A42: =A40+1 -> 26 | C42: Other Net IFRS Impact | G42: 0
C44: Regulatory Account Additions
A45: =A42+1 -> 27 | D45: F07/F08 RRA Depn Study | G45: 0
A46: =A45+1 -> 28 | D46: Deferred SMI Amortization | G46: 0
A47: =A46+1 -> 29 | D47: Deferred Environmental Liability | G47: 0
A48: =A47+1 -> 30 | D48: Total | G48: 0
A50: =A48+1 -> 31 | C50: Total Gross Amortization | G50: 758.002
C52: Other Regulatory Account Additions
A53: =A50+1 -> 32 | D53: Deferred PEI Amortization | G53: 0
A54: =A53+1 -> 33 | D54: Deferred SMI Amortization | G54: 0
A55: =A54+1 -> 34 | D55: Total | G55: 0
C57: Regulatory Account Recoveries
D59: DSM Amortization
A60: =A55+1 -> 35 | D60: Generation - 90% | E60: 2.2 L5+6 | G60: 74.9787806
A61: =A60+1 -> 36 | D61: Transmission - 10% | E61: 2.2 L5+6 | G61: 8.330975622
A62: =A61+1 -> 37 | D62: Total | G62: 83.30975622
D64: Depn Study Amortization
A65: =A62+1 -> 38 | D65: Generation | G65: 0
A66: =A65+1 -> 39 | D66: Transmission | G66: 0
A67: =A66+1 -> 40 | D67: Distribution | G67: 0
A68: =A67+1 -> 41 | D68: Customer Care | G68: 0
A69: =A68+1 -> 42 | D69: Corporate | G69: 0
A70: =A69+1 -> 43 | D70: Total | G70: 0
D72: FRSR Amortization
A73: =A70+1 -> 44 | D73: Generation | E73: Line 11 | G73: -9.537
A74: =A73+1 -> 45 | D74: Transmission | E74: Line 12 | G74: -10.696
A75: 46 | D75: Distribution | E75: Line 13 | G75: -10.938
A76: 47 | D76: Customer Care | E76: Line 14 | G76: 0
A77: 48 | D77: Corporate Groups | E77: Line 15 | G77: 0
A78: 49 | D78: Adjustment | G78: 0
A79: 50 | D79: Total | G79: -31.171
A81: =A79+1 -> 51 | D81: Pre-1996 CIAC Amortization | G81: -4.69
D83: Capital Additions Regulatory Account
A84: =A81+1 -> 52 | D84: Generation | G84: 0
A85: =A84+1 -> 53 | D85: Transmission | G85: 0
A86: =A85+1 -> 54 | D86: Distribution | G86: 0
A87: =A86+1 -> 55 | D87: Customer Care | G87: 0
A88: =A87+1 -> 56 | D88: Corporate Groups | G88: -9.419063011
A89: =A88+1 -> 57 | D89: Total | G89: -9.419063011
A91: =A89+1 -> 58 | D91: Total Recoveries | G91: 38.02969321
A93: =A91+1 -> 59 | C93: Total Current Amortization | G93: 796.0316932
C95: Current Amortization by Business Group
A96: =A93+1 -> 60 | D96: Generation | G96: 332.3987806
A97: =A96+1 -> 61 | D97: Transmission | G97: 187.1349756
A98: =A97+1 -> 62 | D98: Distribution | G98: 220.64
A99: =A98+1 -> 63 | D99: Customer Care | G99: 25.8
A100: =A99+1 -> 64 | D100: Corporate Groups | G100: 30.05793699
A101: =A100+1 -> 65 | D101: Total | G101: 796.0316932

Sheet RRA 8.0
A1: Finance Charges
A2: ($ million)
G3: F2016
E4: Reference | G4: Plan
A5: Line | D5: Column | G5: 11
C7: Increase in Cash
A8: 1 | D8: Net Income | E8: 9.0 L52 | G8: 651.8510713
A9: =A8+1 -> 2 | D9: Dividend (One Year Lag) | E9: 9.0 L4 | G9: -278.5715734
A10: 3 | D10: Amortization | E10: 7.0 L31 | G10: 758.002
A11: 4 | D11: Deferral Account Additions | E11: 2.1 L33 | G11: 0
A12: 5 | D12: Deferral Account Recoveries | E12: 2.1 L35 | G12: 222.9917468
A13: 6 | D13: Regulatory Account Additions | E13: 2.2 L212 | G13: -310.2888
A14: 7 | D14: Regulatory Account Recoveries | E14: 2.2 L214 | G14: 132.8568254
A15: 8 | D15: First Nations Provisions | E15: 2.2 L16 | G15: 0
A16: 9 | D16: Environmental Provisions | E16: 2.2 L126 | G16: 0
A17: 10 | D17: Capital Expenditures | E17: 13.0 L17-16 | G17: -1939.18
A18: 11 | D18: Contributions in Aid | E18: 11.0 L49 | G18: 124.1
A19: 12 | D19: Change in Sinking Funds | E19: Line 16 | G19: 0.1
A20: 13 | D20: Change in Working Cap & Other | G20: -136.8612702
A21: 14 | D21: Total | G21: -775
C23: Sinking Funds
A24: =A21+1 -> 15 | D24: Beginning of Year | G24: 125.2
A25: =A24+1 -> 16 | D25: Change in Sinking Funds | G25: -0.1
A26: =A25+1 -> 17 | D26: Sinking Fund Income | G26: 4.2
A27: =A26+1 -> 18 | D27: End of Year | G27: 129.3
A28: =A27+1 -> 19 | D28: Mid-Year Balance | G28: 127.25
C30: Long-Term Debt
A31: =A28+1 -> 20 | D31: Beginning of Year | G31: 12743.1
A32: =A31+1 -> 21 | D32: Adjustment to Opening Balance | G32: 0
A33: 22 | D33: Bonds Retired | G33: -150
A34: 23 | D34: Bonds Issued | G34: 0
A35: 24 | D35: Bonds Planned Issues | G35: 800
A36: 25 | D36: Revaluation of US $ Debt | G36: -1.2
A37: 26 | D37: Revaluation to Fair Value | G37: 0
A38: 27 | D38: Premiums/(Discounts) on Issues | G38: 0
A39: 28 | D39: Amortization of Issue Costs | G39: -12.5
A40: 29 | D40: End of Year | G40: 13379.4
A41: 30 | D41: Mid-Year Balance | G41: 13061.25
A43: =A41+1 -> 31 | D43: Interest Rate - Planned Issues | G43: 0.05
A45: =A43+1 -> 32 | D45: Debt Costs - Excluding Planned | G45: 608.4
A46: =A45+1 -> 33 | D46: Debt Costs - Planned Issues | G46: 68.6
A47: =A46+1 -> 34 | D47: Total Long-Term Debt Costs | G47: 677
C49: Short-Term Debt
A50: =A47+1 -> 35 | D50: Beginning of Year | G50: 4164.314941
A51: =A50+1 -> 36 | D51: Increase in Cash Requirement | E51: Line 14 | G51: 775
A52: =A51+1 -> 37 | D52: Change in Long-Term Debt | E52: Line 20-29 | G52: -636.3
A53: =A52+1 -> 38 | D53: End of Year | G53: 4303.014941
A54: =A53+1 -> 39 | D54: Mid-Year Balance | G54: 4233.664941
A56: =A54+1 -> 40 | D56: Interest Rate | G56: 0.0223
A58: =A56+1 -> 41 | D58: Debt Costs - Interest | G58: 94.41072819
A59: =A58+1 -> 42 | D59: Debt Costs - Other | G59: -0.2107281912
A60: =A59+1 -> 43 | D60: Total Short-Term Debt Costs | G60: 94.2
C62: Interest Capitalized
A63: =A60+1 -> 44 | D63: Unfinished Construction | E63: 13.0 L51 | G63: 2387.427571
A64: =A63+1 -> 45 | D64: Less Not Subject to IDC | G64: -1016.325719
A65: =A64+1 -> 46 | D65: Unfinished Subject to IDC | G65: 1371.101852
A67: =A65+1 -> 47 | D67: Interest Rate | E67: Line 104 | G67: 0.04470856771
A69: =A67+1 -> 48 | D69: Interest Capitalized | G69: 61.3
C71: Total Before Regulatory Accounts
A72: =A69+1 -> 49 | D72: Sinking Fund Income | E72: Line 17 | G72: -4.2
A73: =A72+1 -> 50 | D73: Long-Term Debt Costs | E73: Line 34 | G73: 677
A74: 51 | D74: Short-Term Debt Costs | E74: Line 43 | G74: 94.2
A75: 52 | D75: Interest Capitalized | E75: Line 48 | G75: -61.3
A76: 53 | D76: Swaps | G76: 0
A77: 54 | D77: Other (Income) / Loss | G77: 13.6
A78: 55 | D78: Deferred SMI Finance Charges | G78: 0
A79: 56 | D79: Deferred HPOP Finance Charges | G79: 0
A80: 57 | D80: Existing IPP Capital Leases | G80: 93.9
A81: 58 | D81: New Capital Leases Under IFRS | G81: 0
A82: 59 | D82: IFRS Reduced IDC Capitalized | G82: 0
A83: 60 | D83: Accretion - ARO | G83: 1.328222557
A84: 61 | D84: Non-Current PEB | G84: 0.1
A85: 62 | D85: F2013 Correction | G85: 0
A86: 63 | D86: Total | G86: 814.6282226
C88: Interest on Regulatory Accounts
A89: =A86+1 -> 64 | D89: Interest on Deferral Accounts | E89: 2.1 L34 | G89: -23.79468337
A90: =A89+1 -> 65 | D90: Interest on Other Reg Accounts | E90: 2.2 L213 | G90: -37.94451917
A91: =A90+1 -> 66 | D91: Total | G91: -61.73920254
C93: Regulatory Account Recoveries
A94: =A91+1 -> 67 | D94: Amort. of FX Gains/Losses | G94: -0.7
A95: =A94+1 -> 68 | D95: Non-Current Pension | G95: 0
A96: =A95+1 -> 69 | D96: Total Finance Charges | G96: -25.54266194
A97: =A96+1 -> 70 | D97: Total | G97: -26.24266194
A99: =A97+1 -> 71 | C99: Total Current Finance Chrgs | E99: L 63+66+70 | G99: 726.6463581
C101: Regulatory Account Additions
A102: =A99+1 -> 72 | D102: FX Gains/Losses | G102: -0.1
A103: =A102+1 -> 73 | D103: Net SMI Impact | G103: 0
A104: 74 | D104: Deferred HPOP Finance Chges | E104: Line 56 | G104: 0
A105: 75 | D105: IFRS Reduced IDC Capitalized | G105: 0
A106: 76 | D106: Accretion - First Nations | G106: 17.7
A107: 77 | D107: Accretion - Environmental | G107: 6
A108: 78 | D108: Accretion - Arrow Water | G108: 0.1
A109: 79 | D109: Total | G109: 23.7
A111: =A109+1 -> 80 | C111: Total Gross Finance Charges | E111: Lines 63+79 | G111: 838.3282226
C113: Portion of Rate Base
A114: =A111+1 -> 81 | D114: Generation | E114: 10.0 L28 | G114: 0.4227366171
A115: =A114+1 -> 82 | D115: Transmission | E115: 10.0 L29 | G115: 0.3206865031
A116: =A115+1 -> 83 | D116: Distribution | E116: 10.0 L30 | G116: 0.2565786624
A117: =A116+1 -> 84 | D117: Customer Care | E117: 10.0 L31 | G117: -1.782673826e-06
A118: =A117+1 -> 85 | D118: Corporate Groups | G118: 0
A119: =A118+1 -> 86 | D119: Total | G119: 1
C121: Allocation of Current Finance Charges
A122: =A119+1 -> 87 | D122: Generation | G122: 307.1800233
A123: =A122+1 -> 88 | D123: Transmission | G123: 233.0256796
A124: =A123+1 -> 89 | D124: Distribution | G124: 186.4419506
A125: =A124+1 -> 90 | D125: Customer Care | G125: -0.001295373444
A126: =A125+1 -> 91 | D126: Corporate Groups | G126: 0
A127: =A126+1 -> 92 | D127: Total | G127: 726.6463581
C129: Net Debt
A130: =A127+1 -> 93 | D130: Sinking Funds | E130: Line 18 | G130: -129.3
A131: =A130+1 -> 94 | D131: Temporary Investments | G131: -10
A132: 95 | D132: Long-Term Debt | E132: Line 29 | G132: 13379.4
A133: 96 | D133: Short-Term Debt | E133: Line 38 | G133: 4303.014941
A134: 97 | D134: Subtotal | G134: 17543.11494
A135: 98 | D135: IDC Adjustments | G135: 96.21820237
A136: 99 | D136: End of Year | G136: 17639.33314
A137: 100 | D137: Mid-Year Balance | G137: 17249.65715
C139: Weighted Average Cost of Debt
A140: =A137+1 -> 101 | D140: Total Gross Finance Charges | G140: 838.3282226
A141: =A140+1 -> 102 | D141: IDC Adjustments | G141: -67.12075812
A142: =A141+1 -> 103 | D142: Total | G142: 771.2074644
A144: =A142+1 -> 104 | D144: Weighted Average Cost of Debt | G144: 0.04470856771

Sheet RRA 9.0
A1: Return on Equity
A2: ($ million)
G3: F2016
E4: Reference | G4: Plan
A5: Line | D5: Column | G5: 11
C7: Shareholder's Equity
A8: 1 | D8: Retained Earnings - Begining of Year | G8: 4122.649735
A9: =A8+1 -> 2 | D9: Adjustment to Opening Balance | G9: 0
A10: 3 | D10: Gross Return on Equity | E10: Line 52 | G10: 651.8510713
A11: 4 | D11: Dividend to Province | E11: Line 16 | G11: -459.1260713
A12: 5 | D12: Distribution to Province | G12: 0
A13: 6 | D13: Retained Earnings - End of Year | G13: 4315.374735
A14: 7 | D14: Accum Other Comp Income | G14: 70.404
A15: 8 | D15: OCI Deferred (Pension) | G15: 0
A16: 9 | D16: Total Shareholder's Equity | G16: 4385.778735
C18: Dividend to Province
A19: =A16+1 -> 10 | D19: Net Income | E19: Line 52 | G19: 651.8510713
A20: =A19+1 -> 11 | D20: IDC (net of amortization) | G20: 0
A21: =A20+1 -> 12 | D21: Distributable Surplus | G21: 651.8510713
A23: =A21+1 -> 13 | D23: Maximum Dividend Percentage | G23: 0.85
A24: =A23+1 -> 14 | D24: Maximum Dividend Amount | G24: 554.0734106
A26: =A24+1 -> 15 | D26: Minimum Equity Percentage | G26: 0.2
A28: =A26+1 -> 16 | D28: Dividend to Province | G28: 459.1260713
C30: Deferred Revenue
A31: =A28+1 -> 17 | D31: Skagit - Beginning of Year
A32: =A31+1 -> 18 | D32: Payments Received
A33: =A32+1 -> 19 | D33: Interest
A34: =A33+1 -> 20 | D34: Revenues Earned
A35: =A34+1 -> 21 | D35: Skagit - End of Year
C37: Return on Equity
A38: =A35+1 -> 22 | D38: Shareholder's Equity | E38: Line 9
A39: =A38+1 -> 23 | D39: Deferred Revenue | E39: Line 21
A40: 24 | D40: Contributions - Columbia River
A41: 25 | D41: Contributions - EARG
A42: 26 | D42: Contributions - Field Operations
A43: 27 | D43: Contributions - Transmission
A44: 28 | D44: Pre-1996 CIAC Adjustment
A45: 29 | D45: Total Equity
C47: Capitalization
A48: =A45+1 -> 30 | D48: Net Debt | E48: 8.0 L97 | G48: 17543.11494
A49: =A48+1 -> 31 | D49: Shareholder's Equity | E49: Line 9 | G49: 4385.778735
A50: =A49+1 -> 32 | D50: Total | G50: 21928.89368
C52: Capital Structure
A53: =A50+1 -> 33 | D53: Net Debt | G53: 0.8
A54: =A53+1 -> 34 | D54: Equity | G54: 0.2
A55: =A54+1 -> 35 | D55: Total | G55: 1
C57: Deemed Equity
A58: =A55+1 -> 36 | D58: Rate Base | E58: 10.0 L26 | G58: 19215.89767
A59: =A58+1 -> 37 | D59: Pre-1996 Customer Contns | E59: 2.2 L42 | G59: -92.128
A60: 38 | D60: Powerex & Powertech Assets | G60: 26.6
A61: 39 | D61: Columbia River Treaty Contns | E61: 11.0 L10 | G61: 0
A62: 40 | D62: Allowance for Working Capital | G62: 250
A63: 41 | D63: Total | G63: 19400.36967
A64: 42 | D64: Deemed Equity Percentage | G64: 0.3
A65: 43 | D65: Year-End Deemed Equity | G65: 5820.1109
A66: 44 | D66: Mid-Year Deemed Equity | G66: 5505.498913
A68: =A66+1 -> 45 | D68: Achieved ROE
A69: =A68+1 -> 46 | D69: Allowed ROE | G69: 0.1184
A70: 47 | D70: Return on Equity | G70: 651.8510713
A71: 48 | D71: F11 RRA NSA Adjustment | G71: 0
A72: 49 | D72: Amortize PEI Reg Acct | G72: 0
A73: 50 | D73: IFRS ROE Impact | G73: 0
A74: 51 | D74: Deferred SMI ROE | G74: 0
A75: 52 | D75: Gross Return on Equity | G75: 651.8510713
C77: F2010 ROE Regulatory Account Transfers
A78: =A75+1 -> 53 | D78: Additions | G78: 0
A79: =A78+1 -> 54 | D79: Recoveries | G79: 0
A80: =A79+1 -> 55 | D80: Total | G80: 0
A82: =A80+1 -> 56 | C82: Current Return on Equity | G82: 651.8510713
C84: Portion of Rate Base
A85: =A82+1 -> 57 | D85: Generation | E85: 10.0 L28 | G85: 0.4227366171
A86: =A85+1 -> 58 | D86: Transmission | E86: 10.0 L29 | G86: 0.3206865031
A87: =A86+1 -> 59 | D87: Distribution | E87: 10.0 L30 | G87: 0.2565786624
A88: =A87+1 -> 60 | D88: Customer Care | E88: 10.0 L31 | G88: -1.782673826e-06
A89: =A88+1 -> 61 | D89: Corporate Groups | G89: 0
A90: =A89+1 -> 62 | D90: Total | G90: 1
C92: Allocation of ROE
A93: =A90+1 -> 63 | D93: Generation | G93: 275.5613168
A94: =A93+1 -> 64 | D94: Transmission | G94: 209.0398406
A95: =A94+1 -> 65 | D95: Distribution | G95: 167.251076
A96: =A95+1 -> 66 | D96: Customer Care | G96: -0.001162037843
A97: =A96+1 -> 67 | D97: Corporate Groups | G97: 0
A98: =A97+1 -> 68 | D98: Total | G98: 651.8510713

Sheet RRA 10.0
A1: Rate Base
A2: ($ million)
G3: F2016
E4: Reference | G4: Plan
A5: Line | D5: Column | G5: 11
C7: Generation
A8: 1 | D8: Net Assets in Service | E8: 12.2 L15 | G8: 6732.616
A9: =A8+1 -> 2 | D9: Net Contributions | E9: 11.0 L21 | G9: -2.308
A10: =A9+1 -> 3 | D10: 90% of Net DSM | E10: 2.2 L7 | G10: 851.0153986
A11: =A10+1 -> 4 | D11: Total | G11: 7581.323399
A12: =A11+1 -> 5 | D12: Mid-Year | G12: 7351.224289
C14: Transmission
A15: =A12+1 -> 6 | D15: Net Assets in Service | E15: 12.4 L15 | G15: 6535.742
A16: =A15+1 -> 7 | D16: Net Contributions | E16: 11.0 L32 | G16: -324.345
A17: =A16+1 -> 8 | D17: 10% of Net DSM | E17: 2.2 L7 | G17: 94.55726651
A18: =A17+1 -> 9 | D18: Total | G18: 6305.954267
A19: =A18+1 -> 10 | D19: Mid-Year | G19: 5576.612754
C21: Distribution
A22: =A19+1 -> 11 | D22: Net Assets in Service | E22: 12.5 L16 | G22: 5493.821
A23: =A22+1 -> 12 | D23: Net Contributions | E23: 11.0 L46 | G23: -984.619
A24: =A23+1 -> 13 | D24: Total | G24: 4509.202
A25: =A24+1 -> 14 | D25: Mid-Year | G25: 4461.8025
C27: Customer Care
A28: =A25+1 -> 15 | D28: Net Assets in Service | E28: 12.3 L14 | G28: -0.031
A29: =A28+1 -> 16 | D29: Net Contributions | E29: N/A | G29: 0
A30: =A29+1 -> 17 | D30: Total | G30: -0.031
A31: =A30+1 -> 18 | D31: Mid-Year | G31: -0.031
C33: Corporate Groups
A34: =A31+1 -> 19 | D34: Net Assets in Service | E34: 12.1 L14 | G34: 819.449
A35: =A34+1 -> 20 | D35: Net Contributions | E35: N/A | G35: 0
A36: =A35+1 -> 21 | D36: Total | G36: 819.449
A37: =A36+1 -> 22 | D37: Mid-Year | G37: 776.3375
C39: Total
A40: =A37+1 -> 23 | D40: Net Assets in Service | E40: 12.0 L17 | G40: 19581.597
A41: =A40+1 -> 24 | D41: Net Contributions | E41: 11.0 L60 | G41: -1311.272
A42: =A41+1 -> 25 | D42: Net DSM | E42: 2.2 L7 | G42: 945.5726651
A43: =A42+1 -> 26 | D43: Total | G43: 19215.89767
A44: =A43+1 -> 27 | D44: Mid-Year | G44: 18165.94604
C46: Portion of Rate Base
A47: =A44+1 -> 28 | D47: Generation | G47: 0.4227366171
A48: =A47+1 -> 29 | D48: Transmission | G48: 0.3206865031
A49: =A48+1 -> 30 | D49: Distribution | G49: 0.2565786624
A50: =A49+1 -> 31 | D50: Customer Care | G50: -1.782673826e-06
A51: =A50+1 -> 32 | D51: Corporate Groups | G51: 0
A52: =A51+1 -> 33 | D52: Total | G52: 1

Sheet RRA 12.1
A1: Assets - Corporate Groups
A2: ($ million)
G3: F2016
E4: Reference | G4: Plan
A5: Line | D5: Column | G5: 11
C7: Gross Assets in Service
A8: 1 | D8: Opening Balance | G8: 860.917
A9: =A8+1 -> 2 | D9: Adjustment to Opening Balance | G9: 0
A10: =A9+1 -> 3 | D10: Capital Additions | E10: 13.0 L44 | G10: 125.7
A11: =A10+1 -> 4 | D11: Retirements & Transfers | G11: 0
A12: =A11+1 -> 5 | D12: Closing Balance | G12: 986.617
C14: Accumulated Amortization
A15: =A12+1 -> 6 | D15: Opening Balance | G15: 127.691
A16: =A15+1 -> 7 | D16: Adjustment to Opening Balance | G16: 0
A17: 8 | D17: Amort on March 2014 Assets | G17: 31.686
A18: 9 | D18: Amortization on Additions | E18: 13.0 L78 | G18: 7.791
A19: 10 | D19: Capital Asset Write-Offs | G19: 0
A20: 11 | D20: Depn Study Adjustment | G20: 0
A21: 12 | D21: Retirements & Transfers | G21: 0
A22: 13 | D22: Closing Balance | G22: 167.168
A24: =A22+1 -> 14 | C24: Net Assets in Service (Year-End) | G24: 819.449

Sheet RRA 12.2
A1: Assets - Generation
A2: ($ million)
G3: F2016
E4: Reference | G4: Plan
A5: Line | D5: Column | G5: 11
C7: Gross Assets in Service
A8: 1 | D8: Opening Balance | G8: 7244.22
A9: =A8+1 -> 2 | D9: Adjustment to Opening Balance | G9: 0
A10: =A9+1 -> 3 | D10: Capital Additions | E10: 13.0 L40 | G10: 677.907
A11: =A10+1 -> 4 | D11: Retirements & Transfers | G11: -3.7
A12: =A11+1 -> 5 | D12: Closing Balance | G12: 7918.427
C14: Accumulated Amortization
A15: =A12+1 -> 6 | D15: Opening Balance | G15: 928.391
A16: =A15+1 -> 7 | D16: Adjustment to Opening Balance | G16: 0
A17: 8 | D17: Amort on March 2014 Assets | G17: 220.8283754
A18: 9 | D18: Amortization on Additions | E18: 13.0 L74 | G18: 36.5916246
A19: 10 | D19: Amort on CRT Contribution | G19: 0
A20: 11 | D20: Capital Asset Write-Offs | G20: 0
A21: 12 | D21: Depn Study Adjustment | G21: 0
A22: 13 | D22: Retirements & Transfers | G22: 0
A23: 14 | D23: Closing Balance | G23: 1185.811
A25: =A23+1 -> 15 | C25: Net Assets in Service (Year-End) | G25: 6732.616

Sheet RRA 12.4
A1: Assets - Transmission
A2: ($ million)
G3: F2016
E4: Reference | G4: Plan
A5: Line | D5: Column | G5: 11
C7: Gross Assets in Service
A8: 1 | D8: Opening Balance | G8: 5610.95
A9: =A8+1 -> 2 | D9: Adjustment to Opening Balance | G9: 0
A10: =A9+1 -> 3 | D10: Capital Additions | E10: 13.0 L41 | G10: 1680.115
A11: =A10+1 -> 4 | D11: Retirements & Transfers | G11: -9.007
A12: =A11+1 -> 5 | D12: Closing Balance | G12: 7282.058
C14: Accumulated Amortization
A15: =A12+1 -> 6 | D15: Opening Balance | G15: 567.512
A16: =A15+1 -> 7 | D16: Adjustment to Opening Balance | G16: 0
A17: 8 | D17: Amort on March 2014 Assets | G17: 132.4980716
A18: 9 | D18: Amortization on Additions | E18: 13.0 L75 | G18: 46.3059284
A19: 10 | D19: Amortization Adjustment | G19: 0
A20: 11 | D20: Capital Asset Write-Offs | G20: 0
A21: 12 | D21: Depn Study Adjustment | G21: 0
A22: 13 | D22: Retirements & Transfers | G22: 0
A23: 14 | D23: Closing Balance | G23: 746.316
A25: =A23+1 -> 15 | C25: Net Assets in Service (Year-End) | G25: 6535.742

Sheet RRA 12.5
A1: Assets - Distribution
A2: ($ million)
G3: F2016
E4: Reference | G4: Plan
A5: Line | D5: Column | G5: 11
C7: Gross Assets in Service
A8: 1 | D8: Opening Balance | G8: 6101.493
A9: =A8+1 -> 2 | D9: Adjustment to Opening Balance | G9: 0
A10: =A9+1 -> 3 | D10: Capital Additions | E10: 13.0 L42 | G10: 378.48
A11: =A10+1 -> 4 | D11: Retirements & Transfers | G11: -22.741
A12: =A11+1 -> 5 | D12: Closing Balance | G12: 6457.232
C14: Accumulated Amortization
A15: =A12+1 -> 6 | D15: Opening Balance | G15: 738.081
A16: =A15+1 -> 7 | D16: Adjustment to Opening Balance | G16: 0
A17: 8 | D17: Amort on March 2014 Assets | G17: 209.3217625
A18: 9 | D18: Amortization on Additions | E18: 13.0 L76 | G18: 16.0082375
A19: 10 | D19: SMI New Assets | G19: 0
A20: 11 | D20: SMI Legacy Meters | G20: 0
A21: 12 | D21: Capital Asset Write-Offs | G21: 0
A22: 13 | D22: Depn Study Adjustment | G22: 0
A23: 14 | D23: Retirements & Transfers | G23: 0
A24: 15 | D24: Closing Balance | G24: 963.411
A26: =A24+1 -> 16 | C26: Net Assets in Service (Year-End) | G26: 5493.821

Sheet RRA 15.0
A1: Miscellaneous Revenue
A2: ($ million)
G3: F2016
E4: Reference | G4: Plan
A5: Line | D5: Column | G5: 11
C7: Generation
A8: 1 | D8: Interconnected Operations Services | G8: 0
A9: =A8+1 -> 2 | D9: FX Loss - Cost of Energy | G9: 0
A10: =A9+1 -> 3 | D10: Amortization of Contributions | E10: 11.0 L18 | G10: 0.4
A11: =A10+1 -> 4 | D11: Other | G11: 2.6698
A12: =A11+1 -> 5 | D12: Total | G12: 3.0698
C14: Transmission
A15: =A12+1 -> 6 | D15: External OATT | E15: 3.4 L71 | G15: 11.80358741
A16: =A15+1 -> 7 | D16: FortisBC Wheeling Agreement | G16: 4.8
A17: 8 | D17: Secondary Revenue | G17: 7.537755908
A18: 9 | D18: Interconnections | G18: 4.15
A19: 10 | D19: Amortization of Contributions | E19: 11.0 L29+30-25 | G19: 10.9
A20: 11 | D20: Other | G20: 0
A21: 12 | D21: Total | G21: 39.19134332
C23: Distribution
A24: =A21+1 -> 13 | D24: Secondary Use Revenue & Other | G24: 16.58936132
A25: =A24+1 -> 14 | D25: Amortization of Contributions | E25: 11.0 L41+44-37 | G25: 34.5
A26: =A25+1 -> 15 | D26: Legacy Meter Contributions | E26: 11.0 L36+43 | G26: 0
A27: =A26+1 -> 16 | D27: Total | G27: 51.08936132
C29: Customer Care
A30: =A27+1 -> 17 | D30: Meter/Trans Rents & Power Factor Surcharges | G30: 10.50514059
A31: =A30+1 -> 18 | D31: Terasen Meter Reading | G31: 0
A32: 19 | D32: SMI Impact | G32: 3.363255267
A33: 20 | D33: Diversion Net Recoveries | G33: 0.9
A34: 21 | D34: FX Loss - Cost of Energy | G34: 0
A35: 22 | D35: Other Operating Recoveries | G35: 5.872990441
A36: 23 | D36: Other | G36: 1.45
A37: 24 | D37: Total | G37: 22.0913863
C39: Corporate Groups
A40: =A37+1 -> 25 | D40: Corporate General Rents | G40: 3.6308
A41: =A40+1 -> 26 | D41: Diversion Net Recoveries | G41: 0
A42: 27 | D42: Net Gains on Property Sales | G42: 0
A43: 28 | D43: Late Payment Charges | G43: 7.5659724
A44: 29 | D44: BCTC Recoveries | G44: 0
A45: 30 | D45: Other | G45: -0.014
A46: 31 | D46: Total | G46: 11.1827724
A48: =A46+1 -> 32 | C48: Total Gross Non-Tariff Revenue | G48: 126.6246633
C50: Regulatory Account Additions
A51: =A48+1 -> 33 | D51: Legacy Meter Contributions | E51: Line 15 | G51: 0
A52: =A51+1 -> 34 | D52: SMI Impact | E52: Line 19 | G52: 3.363255267
A54: =A52+1 -> 35 | C54: Total Current Non-Tariff Revenue | G54: 123.2614081
